Workbook

Sheet Cover
A3: Navigator
C5: =Client_Name -> Example
C6: =Model_Name -> Model 13 - Equity Completed.xlsm
C14: Primary Developer: Liam Bastick
C16: General Cover Notes:
C17: Simple example of a Project Finance Model.
C21: Any queries, please e-mail: | G21: liam.bastick@sumproduct.com
C22: Website: | G22: www.sumproduct.com

Sheet Navigator
A1: Navigator
A2: =Model_Name -> Model 13 - Equity Completed.xlsm
A3: Navigator
E4: Error Checks: | G4: =Overall_Error_Check -> 0
B7: 1 | C7: Table of Contents
F9: Cover
F10: Style Guide
F11: Model Parameters
F12: Timing
F13: Scenario Manager
F14: Assumptions
F15: Construction
F16: Operations
F17: Income Statement
F18: Opening Balance Sheet
F19: Balance Sheet
F20: Cash Flow Statement
F21: Cash Flow Waterfall
F22: Lookup
F23: Error Checks
F24: Change Log

Sheet Style Guide
A1: =IF(ISERROR(RIGHT(CELL("filename",A1),LEN(CELL("filename",A1))-FIND("]",CELL("filename",A1)))), "", RIGHT(CELL("filename",A1),LEN(CELL("filename",A1))-FIND("]",CELL("filename",A1)))) -> Style Guide
A2: =Model_Name -> Model 13 - Equity Completed.xlsm
A3: Navigator
E4: Error Checks: | I4: =Overall_Error_Check -> 0
B6: =MAX($B$5:$B5)+1 -> 1 | C6: Formatting of Headers / Dividers
C8: Description | I8: Display | K8: Style Name
C10: Sheet Title | I10: =C10 -> Sheet Title | K10: Sheet Title
C11: Model Name | I11: =C11 -> Model Name | K11: Model Name
C13: Header 1 | I13: =C13 -> Header 1 | K13: Header 1
C14: Header 2 | I14: =C14 -> Header 2 | K14: Header 2
C15: Header 3 | I15: =C15 -> Header 3 | K15: Header 3
C16: Header 4 | I16: =C16 -> Header 4 | K16: Header 4
C18: Notes | I18: =C18 -> Notes | K18: Notes
C20: Table Heading | I20: =C20 -> Table Heading | K20: Table Heading
B23: =MAX($B$5:$B22)+1 -> 2 | C23: Individual Cell Styles
C25: Description | I25: Display | K25: Style Name
C27: Assumption | I27: Assumption | K27: =C27 -> Assumption
C29: Constraint | I29: =C29 -> Constraint | K29: =C29 -> Constraint
C31: Empty | K31: =C31 -> Empty
C33: Error Check | I33: 0 | K33: =C33 -> Error Check
C35: Hyperlink | I35: Hyperlink | K35: =C35 -> Hyperlink
C37: Internal Reference | I37: =Days_in_Year -> 365 | K37: =C37 -> Internal Reference
C39: Line Calculation | I39: 77 | K39: Line Calc
C41: Line Total | I41: =I39 -> 77 | K41: =C41 -> Line Total
C43: Parameter | I43: 365 | K43: =C43 -> Parameter
C45: Range Name Description | I45: Not_Named | K45: =C45 -> Range Name Description
C47: Row Reference | I47: =ROW(C47) -> 47 | K47: Row Ref
C49: Row Summary | I49: =I41 -> 77 | K49: =C49 -> Row Summary
C51: Units | I51: A$ | K51: =C51 -> Units
C53: WIP | K53: =C53 -> WIP
B56: =MAX($B$5:$B55)+1 -> 3 | C56: Numerical Styles
C58: Description | I58: Display | K58: Style Name
C60: Comma | I60: 123456.789 | K60: =C60 -> Comma
C62: Comma [0] | I62: -123456.789 | K62: Comma [0]
C64: Currency | I64: 123456.789 | K64: Currency
C66: Currency [0] | I66: 123456.789 | K66: Currency [0]
C68: Date | I68: =TODAY() -> 2024-03-19 | K68: =C68 -> Date
C70: Date Heading | I70: =TODAY() -> 2024-03-19 | K70: =C70 -> Date Heading
C72: Numbers 0 | I72: -123456.789 | K72: =C72 -> Numbers 0
C74: Percent | I74: 0.5 | K74: =C74 -> Percent

Sheet Model Parameters
A1: =IF(ISERROR(RIGHT(CELL("filename",A1),LEN(CELL("filename",A1))-FIND("]",CELL("filename",A1)))), "", RIGHT(CELL("filename",A1),LEN(CELL("filename",A1))-FIND("]",CELL("filename",A1)))) -> Model Parameters
A2: =Model_Name -> Model 13 - Equity Completed.xlsm
A3: Navigator
E4: Error Checks: | I4: =Overall_Error_Check -> 0
B6: =MAX($B$5:$B5)+1 -> 1 | C6: General
C8: Key Inputs
E10: General
E11: Model Name | G11: =IF(ISERROR(OR(FIND("[",CELL("filename",A1)),FIND("]",CELL("filename",A1)))),"",MID(CELL("filename",A1),FIND("[",CELL("filename",A1))+1,FIND("]",CELL("filename",A1))-FIND("[",CELL("filename",A1))-1)) -> Model 13 - Equity Completed.xlsm
E12: Client Name | G12: Example
B15: =MAX($B$5:$B14)+1 -> 2 | C15: General Range Names
C17: Technical Assumptions
E19: Days in Year | G19: 365 | I19: Days_in_Year
E20: Months in Month | G20: 1 | I20: Months_in_Month
E21: Months in Quarter | G21: 3 | I21: Months_in_Qtr
E22: Months in Half Yr | G22: 6 | I22: Months_in_Half_Yr
E23: Months in Year | G23: 12 | I23: Months_in_Year
E24: Quarters in Year | G24: 4 | I24: Quarters_in_Year
E26: Rounding Accuracy | G26: 5 | I26: Rounding_Accuracy
E28: Very Large Number | G28: 1e+99 | I28: Very_Large_Number
E29: Very Small Number | G29: 1e-08 | I29: Very_Small_Number
E31: Thousand | G31: 1000 | I31: Thousand
B34: =MAX($B$5:$B33)+1 -> 3 | C34: Technical Assumptions
C36: Units
E38: Unit | G38: # | I38: Unit
E39: Currency | G39: US$'000 | I39: Currency
E40: Dollars | G40: $ | I40: Dollars
E41: Megawatt Hour | G41: MWh | I41: Megawatt_Hours
E42: Dollars per Megawatt Hour | G42: $/MWh | I42: Dollars_per_Megawatt_Hour
E43: Boolean | G43: [1,0] | I43: Boolean
E44: Percentage | G44: % | I44: Percentage
E45: No of Days | G45: # Days | I45: No_of_Days
E46: Year | G46: Year | I46: Year
E47: No of Years | G47: # Year(s) | I47: No_of_Years
E48: Multiplier | G48: x | I48: Multiplier
E49: Weight | G49: kg | I49: Weight
E50: Price / Weight | G50: $/kg | I50: Price_Weight
C53: Financial Statement Abbreviations
E55: Income Statement | G55: IS | I55: Income_Statement
E56: Balance Sheet | G56: BS | I56: Balance_Sheet
E57: Cash Flow Statement | G57: CFS | I57: Cash_Flow_Statement
C60: Tax Depreciation
E62: Declining Balance Multiple | G62: 2 | I62: Declining_Balance_Multiple

Sheet Timing
A1: =IF(ISERROR(RIGHT(CELL("filename",A1),LEN(CELL("filename",A1))-FIND("]",CELL("filename",A1)))), "", RIGHT(CELL("filename",A1),LEN(CELL("filename",A1))-FIND("]",CELL("filename",A1)))) -> Timing
A2: =Model_Name -> Model 13 - Equity Completed.xlsm
A3: Navigator
B4: Error Checks: | F4: =Overall_Error_Check -> 0
J5: =J$7 -> 2024-06-30 | K5: =K$7 -> 2025-06-30 | L5: 2026-06-30 | M5: 2027-06-30 | N5: 2028-06-30 | O5: 2029-06-30 | P5: 2030-06-30 | Q5: 2031-06-30 | R5: 2032-06-30 | S5: 2033-06-30
C6: Start Date | J6: =IF(J$11=1,Model_Start_Date,I$7+1) -> 2023-07-01 | K6: 2024-07-01 | L6: 2025-07-01 | M6: 2026-07-01 | N6: 2027-07-01 | O6: 2028-07-01 | P6: 2029-07-01 | Q6: 2030-07-01 | R6: 2031-07-01 | S6: 2032-07-01
C7: End Date | J7: =EOMONTH(J$6,MOD(Periodicity+Reporting_Month_Factor-MONTH(J$6),Periodicity)) -> 2024-06-30 | K7: 2025-06-30 | L7: 2026-06-30 | M7: 2027-06-30 | N7: 2028-06-30 | O7: 2029-06-30 | P7: 2030-06-30 | Q7: 2031-06-30 | R7: 2032-06-30 | S7: 2033-06-30
C8: Number of Days | J8: =J7-J6+1 -> 366 | K8: =K7-K6+1 -> 365 | L8: 365 | M8: 365 | N8: 366 | O8: 365 | P8: 365 | Q8: 365 | R8: 366 | S8: 365
C9: Construction period | J9: =IF(J$11<=ConstructionPeriod,J$11,) -> 1 | K9: 2 | L9: 3 | M9: 0 | N9: 0 | O9: 0 | P9: 0 | Q9: 0 | R9: 0 | S9: 0
C10: Operations period | J10: =IF(J$11<=ConstructionPeriod,,J$11-ConstructionPeriod) -> 0 | K10: 0 | L10: 0 | M10: 1 | N10: 2 | O10: 3 | P10: 4 | Q10: 5 | R10: 6 | S10: 7
C11: Counter | J11: =N(I$11)+1 -> 1 | K11: =N(J$11)+1 -> 2 | L11: 3 | M11: 4 | N11: 5 | O11: 6 | P11: 7 | Q11: 8 | R11: 9 | S11: 10
B13: =MAX($B$12:$B12)+1 -> 1 | C13: =A1 -> Timing
C15: Data (do not change once modelling has commenced)
D17: Model Start Date | H17: 2023-07-01
D19: Number of Months in a Full Period | H19: 12
D21: Example Reporting Month | H21: 6 | I21: ="e.g. "&TEXT(DATE(YEAR(Model_Start_Date)+IF(Example_Reporting_Month<MONTH(Model_Start_Date),1,0),Example_Reporting_Month+1,1)-1,"dd-Mmm-yy") -> e.g. 30-Jun-24
D23: Reporting Month Factor | H23: =MOD(Example_Reporting_Month-1,Periodicity)+1 -> 6
D25: Months per Year | H25: 12
D27: Construction year(s) | H27: 3

Sheet Scenario Manager
A1: =IF(ISERROR(RIGHT(CELL("filename",A1),LEN(CELL("filename",A1))-FIND("]",CELL("filename",A1)))), "", RIGHT(CELL("filename",A1),LEN(CELL("filename",A1))-FIND("]",CELL("filename",A1)))) -> Scenario Manager
A2: =Model_Name -> Model 13 - Equity Completed.xlsm
A3: Navigator
B4: Error Checks: | F4: =Overall_Error_Check -> 0
B13: =MAX($B$12:$B12)+1 -> 1 | C13: =A1 -> Scenario Manager
C15: Assumptions
H17: Scenario
E18: Scenario Selection | G18: =Unit -> # | H18: 1
H20: ="Scenario "&TEXT(Active_Scenario,"0") -> Scenario 1 | J20: =N(I20)+1 -> 1 | K20: =N(J20)+1 -> 2 | L20: 3 | M20: 4 | N20: 5 | O20: 6 | P20: 7 | Q20: 8 | R20: 9 | S20: 10
E21: Construction cost sensitivity | G21: =Percentage -> % | H21: =IF(Active_Scenario>0,OFFSET($I21,,Active_Scenario),J21) -> 0 | J21: 0 | K21: 0.1 | L21: -0.1 | M21: 0 | N21: 0 | O21: 0 | P21: 0 | Q21: 0 | R21: 0 | S21: 0
E22: Generation profile in use | H22: =IF(Active_Scenario>0,OFFSET($I22,,Active_Scenario),J22) -> P90 | J22: P90 | K22: P50 | L22: P10 | M22: P90 | N22: P90 | O22: P90 | P22: P90 | Q22: P90 | R22: P90 | S22: P90
E23: Electricity sales price sensitivity | G23: =Percentage -> % | H23: 0 | J23: 0 | K23: 0.1 | L23: -0.1 | M23: 0 | N23: 0 | O23: 0 | P23: 0 | Q23: 0 | R23: 0 | S23: 0
E24: COGS sensitivity | G24: =Percentage -> % | H24: 0 | J24: 0 | K24: 0.1 | L24: -0.1 | M24: 0 | N24: 0 | O24: 0 | P24: 0 | Q24: 0 | R24: 0 | S24: 0
E25: Loan term | G25: =No_of_Years -> # Year(s) | H25: 6 | J25: 6 | K25: 7 | L25: 6 | M25: 6 | N25: 6 | O25: 6 | P25: 6 | Q25: 6 | R25: 6 | S25: 6
E26: Debt margin | G26: =Percentage -> % | H26: 0.03 | J26: 0.03 | K26: 0.02 | L26: 0.03 | M26: 0.03 | N26: 0.03 | O26: 0.03 | P26: 0.03 | Q26: 0.03 | R26: 0.03 | S26: 0.03
E27: Post Tax Cost of Equity | G27: % | H27: 0.15 | J27: 0.15 | K27: 0.14 | L27: 0.15 | M27: 0.15 | N27: 0.15 | O27: 0.15 | P27: 0.15 | Q27: 0.15 | R27: 0.15 | S27: 0.15
E28: Pre-Tax Cost of Debt | G28: % | H28: 0.08 | J28: 0.08 | K28: 0.075 | L28: 0.08 | M28: 0.08 | N28: 0.08 | O28: 0.08 | P28: 0.08 | Q28: 0.08 | R28: 0.08 | S28: 0.08
E29: Debt as a Proportion of Debt + Equity | G29: % | H29: 0.3 | J29: 0.3 | K29: 0.35 | L29: 0.3 | M29: 0.3 | N29: 0.3 | O29: 0.3 | P29: 0.3 | Q29: 0.3 | R29: 0.3 | S29: 0.3
E30: Growth Rate | G30: % | H30: 0.02 | J30: 0.02 | K30: 0.03 | L30: 0.02 | M30: 0.02 | N30: 0.02 | O30: 0.02 | P30: 0.02 | Q30: 0.02 | R30: 0.02 | S30: 0.02
C33: Scenario results
H35: =H20 -> Scenario 1 | J35: =J20 -> 1 | K35: 2 | L35: 3 | M35: 4 | N35: 5 | O35: 6 | P35: 7 | Q35: 8 | R35: 9 | S35: 10
E36: Closing cash balance | G36: =Currency -> US$'000
E37: Equity Value | G37: =Currency -> US$'000
E38: Enterprise Value | G38: =Currency -> US$'000
E39: Minimum DSCR | G39: x
E40: Minimum LLCR | G40: x
E41: Minimum PLCR | G41: x

Sheet Assumptions
A1: =IF(ISERROR(RIGHT(CELL("filename",A1),LEN(CELL("filename",A1))-FIND("]",CELL("filename",A1)))), "", RIGHT(CELL("filename",A1),LEN(CELL("filename",A1))-FIND("]",CELL("filename",A1)))) -> Assumptions
A2: =Model_Name -> Model 13 - Equity Completed.xlsm
A3: Navigator
B4: Error Checks: | F4: =Overall_Error_Check -> 0
J5: =Timing!J5 -> 2024-06-30 | K5: =Timing!K5 -> 2025-06-30 | L5: =Timing!L5 -> 2026-06-30 | M5: =Timing!M5 -> 2027-06-30 | N5: =Timing!N5 -> 2028-06-30 | O5: =Timing!O5 -> 2029-06-30 | P5: =Timing!P5 -> 2030-06-30 | Q5: =Timing!Q5 -> 2031-06-30 | R5: =Timing!R5 -> 2032-06-30 | S5: =Timing!S5 -> 2033-06-30
C6: =Timing!C6 -> Start Date | J6: =Timing!J6 -> 2023-07-01 | K6: =Timing!K6 -> 2024-07-01 | L6: =Timing!L6 -> 2025-07-01 | M6: =Timing!M6 -> 2026-07-01 | N6: =Timing!N6 -> 2027-07-01 | O6: =Timing!O6 -> 2028-07-01 | P6: =Timing!P6 -> 2029-07-01 | Q6: =Timing!Q6 -> 2030-07-01 | R6: =Timing!R6 -> 2031-07-01 | S6: =Timing!S6 -> 2032-07-01
C7: =Timing!C7 -> End Date | J7: =Timing!J7 -> 2024-06-30 | K7: =Timing!K7 -> 2025-06-30 | L7: =Timing!L7 -> 2026-06-30 | M7: =Timing!M7 -> 2027-06-30 | N7: =Timing!N7 -> 2028-06-30 | O7: =Timing!O7 -> 2029-06-30 | P7: =Timing!P7 -> 2030-06-30 | Q7: =Timing!Q7 -> 2031-06-30 | R7: =Timing!R7 -> 2032-06-30 | S7: =Timing!S7 -> 2033-06-30
C8: =Timing!C8 -> Number of Days | J8: =Timing!J8 -> 366 | K8: =Timing!K8 -> 365 | L8: =Timing!L8 -> 365 | M8: =Timing!M8 -> 365 | N8: =Timing!N8 -> 366 | O8: =Timing!O8 -> 365 | P8: =Timing!P8 -> 365 | Q8: =Timing!Q8 -> 365 | R8: =Timing!R8 -> 366 | S8: =Timing!S8 -> 365
C9: =Timing!C9 -> Construction period | J9: =Timing!J9 -> 1 | K9: =Timing!K9 -> 2 | L9: =Timing!L9 -> 3 | M9: =Timing!M9 -> 0 | N9: =Timing!N9 -> 0 | O9: =Timing!O9 -> 0 | P9: =Timing!P9 -> 0 | Q9: =Timing!Q9 -> 0 | R9: =Timing!R9 -> 0 | S9: =Timing!S9 -> 0
C10: =Timing!C10 -> Operations period | J10: =Timing!J10 -> 0 | K10: =Timing!K10 -> 0 | L10: =Timing!L10 -> 0 | M10: =Timing!M10 -> 1 | N10: =Timing!N10 -> 2 | O10: =Timing!O10 -> 3 | P10: =Timing!P10 -> 4 | Q10: =Timing!Q10 -> 5 | R10: =Timing!R10 -> 6 | S10: =Timing!S10 -> 7
C11: =Timing!C11 -> Counter | J11: =Timing!J11 -> 1 | K11: =Timing!K11 -> 2 | L11: =Timing!L11 -> 3 | M11: =Timing!M11 -> 4 | N11: =Timing!N11 -> 5 | O11: =Timing!O11 -> 6 | P11: =Timing!P11 -> 7 | Q11: =Timing!Q11 -> 8 | R11: =Timing!R11 -> 9 | S11: =Timing!S11 -> 10
B13: =MAX($B$12:$B12)+1 -> 1 | C13: Construction
C15: Construction costs
D17: Construction costs
E19: Modules | G19: =Currency -> US$'000 | J19: 1000 | K19: 2000 | L19: 3000 | U19: =IFERROR(_xlfn.FORMULATEXT(J19),"") -> 
E20: Inverters | G20: US$'000 | J20: 1000 | K20: 2000 | L20: 3000 | U20: =IFERROR(_xlfn.FORMULATEXT(J20),"") -> 
E21: Racking and mounting | G21: US$'000 | J21: 1000 | K21: 2000 | L21: 3000
E22: Grid connection | G22: US$'000 | J22: 1000 | K22: 2000 | L22: 3000
E23: Other hardware | G23: US$'000
E24: Installation | G24: US$'000
E25: Other | G25: US$'000
E26: Total | G26: US$'000 | J26: =SUM(J19:J25) -> 4000 | K26: =SUM(K19:K25) -> 8000 | L26: 12000 | M26: 0 | N26: 0 | O26: 0 | P26: 0 | Q26: 0 | R26: 0 | S26: 0 | U26: =SUM(J19:J25)
E28: Construction cost sensitivity | G28: =Percentage -> % | I28: ='Scenario Manager'!$H$21 -> 0 | U28: =IFERROR(_xlfn.FORMULATEXT(I28),"") -> ='Scenario Manager'!$H$21
E30: Modules in use | G30: =Currency -> US$'000 | J30: =J19*(1+$I$28)*(J$9>0) -> 1000 | K30: =K19*(1+$I$28)*(K$9>0) -> 2000 | L30: 3000 | M30: 0 | N30: 0 | O30: 0 | P30: 0 | Q30: 0 | R30: 0 | S30: 0 | U30: =J19*(1+$I$28)*(J$9>0)
E31: Inverters in use | G31: US$'000 | J31: =J20*(1+$I$28)*(J$9>0) -> 1000 | K31: 2000 | L31: 3000 | M31: 0 | N31: 0 | O31: 0 | P31: 0 | Q31: 0 | R31: 0 | S31: 0 | U31: =J20*(1+$I$28)*(J$9>0)
E32: Racking and mounting in use | G32: US$'000 | J32: 1000 | K32: 2000 | L32: 3000 | M32: 0 | N32: 0 | O32: 0 | P32: 0 | Q32: 0 | R32: 0 | S32: 0 | U32: =J21*(1+$I$28)*(J$9>0)
E33: Grid connection in use | G33: US$'000 | J33: 1000 | K33: 2000 | L33: 3000 | M33: 0 | N33: 0 | O33: 0 | P33: 0 | Q33: 0 | R33: 0 | S33: 0 | U33: =J22*(1+$I$28)*(J$9>0)
E34: Other hardware in use | G34: US$'000 | J34: 0 | K34: 0 | L34: 0 | M34: 0 | N34: 0 | O34: 0 | P34: 0 | Q34: 0 | R34: 0 | S34: 0 | U34: =J23*(1+$I$28)*(J$9>0)
E35: Installation in use | G35: US$'000 | J35: 0 | K35: 0 | L35: 0 | M35: 0 | N35: 0 | O35: 0 | P35: 0 | Q35: 0 | R35: 0 | S35: 0 | U35: =J24*(1+$I$28)*(J$9>0)
E36: Other in use | G36: US$'000 | J36: 0 | K36: 0 | L36: 0 | M36: 0 | N36: 0 | O36: 0 | P36: 0 | Q36: 0 | R36: 0 | S36: 0 | U36: =J25*(1+$I$28)*(J$9>0)
E37: Total in use | G37: US$'000 | J37: =SUM(J30:J36) -> 4000 | K37: =SUM(K30:K36) -> 8000 | L37: 12000 | M37: 0 | N37: 0 | O37: 0 | P37: 0 | Q37: 0 | R37: 0 | S37: 0 | U37: =SUM(J30:J36)
C41: Debt
D43: Funding
E45: Initial equity | G45: =Currency -> US$'000 | I45: 6000
E46: Debt limit | G46: =Currency -> US$'000 | I46: 16000
D48: Debt terms
E50: Margin | G50: =Percentage&" p.a." -> % p.a. | I50: 0.035
E51: Establishment fee | G51: =Percentage -> % | I51: 0.02
E52: Commitment fee | G52: =Percentage&" of margin" -> % of margin | I52: 0.5
B55: =MAX($B$12:$B54)+1 -> 2 | C55: Operations
C57: Generation
D59: Expected generation
E61: Annual generation
E62: P10 | M62: 65000 | N62: 65000 | O62: 65000 | P62: 65000 | Q62: 65000 | R62: 65000 | S62: 65000
E63: P50 | M63: 60000 | N63: 60000 | O63: 60000 | P63: 60000 | Q63: 60000 | R63: 60000 | S63: 60000
E64: P90 | M64: 55000 | N64: 55000 | O64: 55000 | P64: 55000 | Q64: 55000 | R64: 55000 | S64: 55000
E65: Annual generation in use | G65: =Megawatt_Hours -> MWh | I65: ='Scenario Manager'!$H$22 -> P90 | J65: =IFERROR(INDEX(J62:J64,MATCH($I65,LU_Gen_Profiles,0)),J63) -> 0 | K65: 0 | L65: 0 | M65: 55000 | N65: 55000 | O65: 55000 | P65: 55000 | Q65: 55000 | R65: 55000 | S65: 55000 | U65: =IFERROR(_xlfn.FORMULATEXT(J65),"") -> =IFERROR(INDEX(J62:J64,MATCH($I65,LU_Gen_Profiles,0)),J63)
E67: Annual degradation | G67: =Percentage -> % | I67: 0.02
C69: Revenue and related
D71: Sales
E73: Electricity sales price | G73: =Dollars_per_Megawatt_Hour -> $/MWh | M73: 100 | N73: 103 | O73: 106 | P73: 109 | Q73: 112 | R73: 115 | S73: 118
E75: Electricity sales price sensitivity | G75: =Percentage -> % | I75: ='Scenario Manager'!$H$23 -> 0 | U75: =IFERROR(_xlfn.FORMULATEXT(I75),"") -> ='Scenario Manager'!$H$23
U76: =IFERROR(_xlfn.FORMULATEXT(I76),"") -> 
E77: Electricity sales price in use | G77: =Dollars_per_Megawatt_Hour -> $/MWh | J77: =J73*(1+$I75) -> 0 | K77: =K73*(1+$I75) -> 0 | L77: 0 | M77: 100 | N77: 103 | O77: 106 | P77: 109 | Q77: 112 | R77: 115 | S77: 118 | U77: =IFERROR(_xlfn.FORMULATEXT(J77),"") -> =J73*(1+$I75)
D79: Working capital
E81: Days receivable | G81: =No_of_Days -> # Days | J81: 60 | K81: 60 | L81: 60 | M81: 60 | N81: 60 | O81: 60 | P81: 60 | Q81: 60 | R81: 60 | S81: 60
C84: COGS and related
D86: COGS
E88: Cost per MWh | G88: =Dollars_per_Megawatt_Hour -> $/MWh | M88: 20 | N88: 20 | O88: 20 | P88: 20 | Q88: 20 | R88: 20 | S88: 20
E90: COGS sensitivity | G90: =Percentage -> % | I90: ='Scenario Manager'!$H$24 -> 0 | U90: =IFERROR(_xlfn.FORMULATEXT(I90),"") -> ='Scenario Manager'!$H$24
E92: Cost per MWh in use | G92: =Dollars_per_Megawatt_Hour -> $/MWh | J92: =J88*(1+$I90) -> 0 | K92: =K88*(1+$I90) -> 0 | L92: 0 | M92: 20 | N92: 20 | O92: 20 | P92: 20 | Q92: 20 | R92: 20 | S92: 20 | U92: =J88*(1+$I90)
D94: Working capital
E96: Days payable | G96: =No_of_Days -> # Days | J96: 90 | K96: 90 | L96: 90 | M96: 90 | N96: 90 | O96: 90 | P96: 90 | Q96: 90 | R96: 90 | S96: 90
C99: Opex and cash payments
C100: All expenses are assumed to be paid as they are incurred
D102: Opex
E104: Projected costs | G104: =Currency -> US$'000 | M104: 200 | N104: 225 | O104: 250 | P104: 275 | Q104: 300 | R104: 325 | S104: 350
C107: Capex and related
D109: Capital expenditure
E111: Capital expenditure | G111: =Currency -> US$'000 | P111: 500 | Q111: 1000
D113: Accounting depreciation - straight line
I114: Remaining life | J114: Depreciation rate
E115: Construction assets | I115: 10 | J115: =IF(I115=0,,1/I115) -> 0.1
E116: Capital expenditure | I116: 4 | J116: =IF(I116=0,,1/I116) -> 0.25
D118: MRA
E120: MRA hold-back | G120: =No_of_Years -> # Year(s) | I120: 4
C123: Debt and related
C124: Movements are assumed to occur at the end of each period
D126: Interest
E128: BBSW | G128: =Percentage&" p.a." -> % p.a. | J128: 0.002 | K128: 0.0015 | L128: 0.003 | M128: 0.005 | N128: 0.0075 | O128: 0.011 | P128: 0.014 | Q128: 0.015 | R128: 0.015 | S128: 0.015
D130: Terms
E132: Loan term | G132: =No_of_Years -> # Year(s) | I132: ='Scenario Manager'!$H$25 -> 6
E133: Margin | G133: =Percentage&" p.a." -> % p.a. | I133: ='Scenario Manager'!$H$26 -> 0.03
E135: Repayment method | G135: Selection | I135: Annuity
D137: Interest receivable
E139: Interest receivable? | G139: Selection | I139: No
E140: Interest receivable rate | G140: =Percentage -> % | M140: 0.01 | N140: 0.01 | O140: 0.01 | P140: 0.01 | Q140: 0.01 | R140: 0.01 | S140: 0.01
D142: DSCR sculpting target
E144: DSCR sculpting | G144: x | I144: 1.5
D146: DSRA
E148: DSRA hold-back | G148: =No_of_Years -> # Year(s) | I148: 1
E149: Initial DSRA funding | G149: =Currency -> US$'000 | I149: 5500
D151: Working capital facility
E153: Facility limit | G153: =Currency -> US$'000 | I153: 500
E154: Interest rate | G154: =Percentage -> % | I154: 0.1
D156: DSCR Inputs
E158: Lock-up ratio | G158: x | I158: 1.15
E159: Lock-up periods | G159: =Unit -> # | I159: 2
E162: Cash sweep? | G162: Selection | I162: No
E163: Cash sweep ratio | G163: x | I163: 1.3
E164: Excess sweep % | G164: =Percentage -> % | I164: 0.35
C167: Convertible debt
C168: Movements are assumed to occur at the end of each period
D170: Terms
E172: Loan term | G172: =No_of_Years -> # Year(s) | I172: 5
E173: Margin | G173: =Percentage&" p.a." -> % p.a. | I173: 0.02
D175: Repayment
E177: Portion of cash to sweep | G177: =Percentage -> % | I177: 1
C180: Taxation
D182: Tax rate
E184: Tax rate | G184: =Percentage -> % | I184: 0.3
D186: Permanent differences
E188: Non-assessable revenue | G188: =Currency -> US$'000 | M188: 25 | N188: 25 | O188: 25 | P188: 25 | Q188: 25 | R188: 25 | S188: 25
E189: Disallowable expenses | G189: =Currency -> US$'000 | M189: 30 | N189: 30 | O189: 30 | P189: 30 | Q189: 30 | R189: 30 | S189: 30
D191: Tax payable and paid
E193: Payment delay | G193: =No_of_Years -> # Year(s) | I193: 1
C196: Ordinary equity and related
D198: Dividends
D199: Dividends are assumed to be paid in the period after they are declared
E201: Dividend payout ratio | G201: =Percentage -> % | J201: 1 | K201: 1 | L201: 1 | M201: 1 | N201: 1 | O201: 1 | P201: 1 | Q201: 1 | R201: 1 | S201: 1

Sheet Construction
A1: =IF(ISERROR(RIGHT(CELL("filename",A1),LEN(CELL("filename",A1))-FIND("]",CELL("filename",A1)))), "", RIGHT(CELL("filename",A1),LEN(CELL("filename",A1))-FIND("]",CELL("filename",A1)))) -> Construction
A2: =Model_Name -> Model 13 - Equity Completed.xlsm
A3: Navigator
B4: Error Checks: | F4: =Overall_Error_Check -> 0
J5: =Timing!J5 -> 2024-06-30 | K5: =Timing!K5 -> 2025-06-30 | L5: =Timing!L5 -> 2026-06-30 | M5: =Timing!M5 -> 2027-06-30 | N5: =Timing!N5 -> 2028-06-30 | O5: =Timing!O5 -> 2029-06-30 | P5: =Timing!P5 -> 2030-06-30 | Q5: =Timing!Q5 -> 2031-06-30 | R5: =Timing!R5 -> 2032-06-30 | S5: =Timing!S5 -> 2033-06-30
C6: =Timing!C6 -> Start Date | J6: =Timing!J6 -> 2023-07-01 | K6: =Timing!K6 -> 2024-07-01 | L6: =Timing!L6 -> 2025-07-01 | M6: =Timing!M6 -> 2026-07-01 | N6: =Timing!N6 -> 2027-07-01 | O6: =Timing!O6 -> 2028-07-01 | P6: =Timing!P6 -> 2029-07-01 | Q6: =Timing!Q6 -> 2030-07-01 | R6: =Timing!R6 -> 2031-07-01 | S6: =Timing!S6 -> 2032-07-01
C7: =Timing!C7 -> End Date | J7: =Timing!J7 -> 2024-06-30 | K7: =Timing!K7 -> 2025-06-30 | L7: =Timing!L7 -> 2026-06-30 | M7: =Timing!M7 -> 2027-06-30 | N7: =Timing!N7 -> 2028-06-30 | O7: =Timing!O7 -> 2029-06-30 | P7: =Timing!P7 -> 2030-06-30 | Q7: =Timing!Q7 -> 2031-06-30 | R7: =Timing!R7 -> 2032-06-30 | S7: =Timing!S7 -> 2033-06-30
C8: =Timing!C8 -> Number of Days | J8: =Timing!J8 -> 366 | K8: =Timing!K8 -> 365 | L8: =Timing!L8 -> 365 | M8: =Timing!M8 -> 365 | N8: =Timing!N8 -> 366 | O8: =Timing!O8 -> 365 | P8: =Timing!P8 -> 365 | Q8: =Timing!Q8 -> 365 | R8: =Timing!R8 -> 366 | S8: =Timing!S8 -> 365
C9: =Timing!C9 -> Construction period | J9: =Timing!J9 -> 1 | K9: =Timing!K9 -> 2 | L9: =Timing!L9 -> 3 | M9: =Timing!M9 -> 0 | N9: =Timing!N9 -> 0 | O9: =Timing!O9 -> 0 | P9: =Timing!P9 -> 0 | Q9: =Timing!Q9 -> 0 | R9: =Timing!R9 -> 0 | S9: =Timing!S9 -> 0
C10: =Timing!C10 -> Operations period | J10: =Timing!J10 -> 0 | K10: =Timing!K10 -> 0 | L10: =Timing!L10 -> 0 | M10: =Timing!M10 -> 1 | N10: =Timing!N10 -> 2 | O10: =Timing!O10 -> 3 | P10: =Timing!P10 -> 4 | Q10: =Timing!Q10 -> 5 | R10: =Timing!R10 -> 6 | S10: =Timing!S10 -> 7
C11: =Timing!C11 -> Counter | J11: =Timing!J11 -> 1 | K11: =Timing!K11 -> 2 | L11: =Timing!L11 -> 3 | M11: =Timing!M11 -> 4 | N11: =Timing!N11 -> 5 | O11: =Timing!O11 -> 6 | P11: =Timing!P11 -> 7 | Q11: =Timing!Q11 -> 8 | R11: =Timing!R11 -> 9 | S11: =Timing!S11 -> 10
B13: =MAX($B$12:$B12)+1 -> 1 | C13: =A1 -> Construction
C15: Construction
D17: Construction costs
E19: Modules in use | G19: =Currency -> US$'000 | J19: =Assumptions!J30 -> 1000 | K19: =Assumptions!K30 -> 2000 | L19: =Assumptions!L30 -> 3000 | M19: =Assumptions!M30 -> 0 | N19: =Assumptions!N30 -> 0 | O19: =Assumptions!O30 -> 0 | P19: =Assumptions!P30 -> 0 | Q19: =Assumptions!Q30 -> 0 | R19: =Assumptions!R30 -> 0 | S19: =Assumptions!S30 -> 0 | U19: =IFERROR(_xlfn.FORMULATEXT(J19),"") -> =Assumptions!J30
E20: Inverters in use | G20: US$'000 | J20: =Assumptions!J31 -> 1000 | K20: =Assumptions!K31 -> 2000 | L20: =Assumptions!L31 -> 3000 | M20: =Assumptions!M31 -> 0 | N20: =Assumptions!N31 -> 0 | O20: =Assumptions!O31 -> 0 | P20: =Assumptions!P31 -> 0 | Q20: =Assumptions!Q31 -> 0 | R20: =Assumptions!R31 -> 0 | S20: =Assumptions!S31 -> 0 | U20: =Assumptions!J31
E21: Racking and mounting in use | G21: US$'000 | J21: =Assumptions!J32 -> 1000 | K21: =Assumptions!K32 -> 2000 | L21: =Assumptions!L32 -> 3000 | M21: =Assumptions!M32 -> 0 | N21: =Assumptions!N32 -> 0 | O21: =Assumptions!O32 -> 0 | P21: =Assumptions!P32 -> 0 | Q21: =Assumptions!Q32 -> 0 | R21: =Assumptions!R32 -> 0 | S21: =Assumptions!S32 -> 0 | U21: =Assumptions!J32
E22: Grid connection in use | G22: US$'000 | J22: =Assumptions!J33 -> 1000 | K22: =Assumptions!K33 -> 2000 | L22: =Assumptions!L33 -> 3000 | M22: =Assumptions!M33 -> 0 | N22: =Assumptions!N33 -> 0 | O22: =Assumptions!O33 -> 0 | P22: =Assumptions!P33 -> 0 | Q22: =Assumptions!Q33 -> 0 | R22: =Assumptions!R33 -> 0 | S22: =Assumptions!S33 -> 0 | U22: =Assumptions!J33
E23: Other hardware in use | G23: US$'000 | J23: =Assumptions!J34 -> 0 | K23: =Assumptions!K34 -> 0 | L23: =Assumptions!L34 -> 0 | M23: =Assumptions!M34 -> 0 | N23: =Assumptions!N34 -> 0 | O23: =Assumptions!O34 -> 0 | P23: =Assumptions!P34 -> 0 | Q23: =Assumptions!Q34 -> 0 | R23: =Assumptions!R34 -> 0 | S23: =Assumptions!S34 -> 0 | U23: =Assumptions!J34
E24: Installation in use | G24: US$'000 | J24: =Assumptions!J35 -> 0 | K24: =Assumptions!K35 -> 0 | L24: =Assumptions!L35 -> 0 | M24: =Assumptions!M35 -> 0 | N24: =Assumptions!N35 -> 0 | O24: =Assumptions!O35 -> 0 | P24: =Assumptions!P35 -> 0 | Q24: =Assumptions!Q35 -> 0 | R24: =Assumptions!R35 -> 0 | S24: =Assumptions!S35 -> 0 | U24: =Assumptions!J35
E25: Other in use | G25: US$'000 | J25: =Assumptions!J36 -> 0 | K25: =Assumptions!K36 -> 0 | L25: =Assumptions!L36 -> 0 | M25: =Assumptions!M36 -> 0 | N25: =Assumptions!N36 -> 0 | O25: =Assumptions!O36 -> 0 | P25: =Assumptions!P36 -> 0 | Q25: =Assumptions!Q36 -> 0 | R25: =Assumptions!R36 -> 0 | S25: =Assumptions!S36 -> 0 | U25: =Assumptions!J36
E26: Total | G26: US$'000 | J26: =SUM(J19:J25) -> 4000 | K26: =SUM(K19:K25) -> 8000 | L26: 12000 | M26: 0 | N26: 0 | O26: 0 | P26: 0 | Q26: 0 | R26: 0 | S26: 0 | U26: =SUM(J19:J25)
E28: Construction costs applied | G28: =Currency -> US$'000 | J28: =J26 -> 4000 | K28: =K26 -> 8000 | L28: 12000 | M28: 0 | N28: 0 | O28: 0 | P28: 0 | Q28: 0 | R28: 0 | S28: 0 | U28: =J26
D30: Funding costs
E32: Interest during construction | G32: =Currency -> US$'000 | J32: =J80+J110 -> 0 | K32: =K80+K110 -> 0 | L32: 261.44 | M32: 0 | N32: 0 | O32: 0 | P32: 0 | Q32: 0 | R32: 0 | S32: 0 | U32: =J80+J110
E33: Establishment fees | G33: =Currency -> US$'000 | J33: =J86 -> 320 | K33: =K86 -> 0 | L33: 0 | M33: 0 | N33: 0 | O33: 0 | P33: 0 | Q33: 0 | R33: 0 | S33: 0 | U33: =J86
E34: Commitment fees | G34: =Currency -> US$'000 | J34: =J92 -> 280 | K34: =K92 -> 280 | L34: 159.6 | M34: 0 | N34: 0 | O34: 0 | P34: 0 | Q34: 0 | R34: 0 | S34: 0 | U34: =J92
E35: Total | G35: =Currency -> US$'000 | J35: =SUM(J32:J34) -> 600 | K35: =SUM(K32:K34) -> 280 | L35: 421.04 | M35: 0 | N35: 0 | O35: 0 | P35: 0 | Q35: 0 | R35: 0 | S35: 0 | U35: =SUM(J32:J34)
D37: Cost waterfall
E39: Construction costs | G39: =Currency -> US$'000 | J39: =J28+J35 -> 4600 | K39: =K28+K35 -> 8280 | L39: 12421.04 | M39: 0 | N39: 0 | O39: 0 | P39: 0 | Q39: 0 | R39: 0 | S39: 0 | U39: =J28+J35
E40: DSRA initial funding | G40: US$'000 | I40: =Assumptions!I149 -> 5500 | J40: =IF(J$9=MAX($J$9:$S$9),$I40,0) -> 0 | K40: =IF(K$9=MAX($J$9:$S$9),$I40,0) -> 0 | L40: 5500 | M40: 0 | N40: 0 | O40: 0 | P40: 0 | Q40: 0 | R40: 0 | S40: 0 | U40: =IF(J$9=MAX($J$9:$S$9),$I40,0)
E41: Less: Equity funding | G41: US$'000 | J41: =-MIN(SUM(J39:J40),J58) -> -4600 | K41: =-MIN(SUM(K39:K40),K58) -> -1400 | L41: 0 | M41: 0 | N41: 0 | O41: 0 | P41: 0 | Q41: 0 | R41: 0 | S41: 0 | U41: =-MIN(SUM(J39:J40),J58)
E42: Costs remaining after equity | G42: US$'000 | J42: =SUM(J39:J41) -> 0 | K42: =SUM(K39:K41) -> 6880 | L42: 17921.04 | M42: 0 | N42: 0 | O42: 0 | P42: 0 | Q42: 0 | R42: 0 | S42: 0 | U42: =SUM(J39:J41)
E43: Less: Debt funding | G43: US$'000 | J43: =-MIN(J42,J72) -> 0 | K43: =-MIN(K42,K72) -> -6880 | L43: -9120 | M43: 0 | N43: 0 | O43: 0 | P43: 0 | Q43: 0 | R43: 0 | S43: 0 | U43: =-MIN(J42,J72)
E44: Costs remaining after debt | G44: US$'000 | J44: =SUM(J42:J43) -> 0 | K44: =SUM(K42:K43) -> 0 | L44: 8801.04 | M44: 0 | N44: 0 | O44: 0 | P44: 0 | Q44: 0 | R44: 0 | S44: 0 | U44: =SUM(J42:J43)
C47: Equity
D49: Control account
E51: Opening balance | G51: =Currency -> US$'000 | J51: =I54 -> 0 | K51: =J54 -> 4600 | L51: 6000 | M51: 0 | N51: 0 | O51: 0 | P51: 0 | Q51: 0 | R51: 0 | S51: 0 | T51: =Balance_Sheet -> BS | U51: =I54
E52: Equity funding | G52: =Currency -> US$'000 | J52: =-J41 -> 4600 | K52: =-K41 -> 1400 | L52: 0 | M52: 0 | N52: 0 | O52: 0 | P52: 0 | Q52: 0 | R52: 0 | S52: 0 | T52: =Cash_Flow_Statement -> CFS | U52: =-J41
E53: Transfer to operations | G53: =Currency -> US$'000 | J53: =IF(J$9=MAX($J$9:$S$9),-SUM(J51:J52),0) -> 0 | K53: =IF(K$9=MAX($J$9:$S$9),-SUM(K51:K52),0) -> 0 | L53: -6000 | M53: 0 | N53: 0 | O53: 0 | P53: 0 | Q53: 0 | R53: 0 | S53: 0 | T53: =Cash_Flow_Statement -> CFS | U53: =IF(J$9=MAX($J$9:$S$9),-SUM(J51:J52),0)
E54: Closing balance | G54: =Currency -> US$'000 | I54: ='Opening Balance Sheet'!$I$56 -> 0 | J54: =SUM(J51:J53) -> 4600 | K54: 6000 | L54: 0 | M54: 0 | N54: 0 | O54: 0 | P54: 0 | Q54: 0 | R54: 0 | S54: =SUM(S51:S53) -> 0 | T54: =Balance_Sheet -> BS | U54: =SUM(J51:J53)
E56: Initial equity | G56: =Currency -> US$'000 | I56: =Assumptions!$I$45 -> 6000
E58: Limit remaining (before drawdown) | G58: =Currency -> US$'000 | J58: =IF(J$9=0,0,MAX($I56-J51,0)) -> 6000 | K58: =IF(K$9=0,0,MAX($I56-K51,0)) -> 1400 | L58: 0 | M58: 0 | N58: 0 | O58: 0 | P58: 0 | Q58: 0 | R58: 0 | S58: 0 | U58: =IF(J$9=0,0,MAX($I56-J51,0))
C61: Debt
D63: Control account
E65: Opening balance | G65: =Currency -> US$'000 | J65: =I68 -> 0 | K65: =J68 -> 0 | L65: 6880 | M65: 0 | N65: 0 | O65: 0 | P65: 0 | Q65: 0 | R65: 0 | S65: 0 | T65: =Balance_Sheet -> BS | U65: =I68
E66: Debt drawdowns | G66: =Currency -> US$'000 | J66: =-J43 -> 0 | K66: =-K43 -> 6880 | L66: 9120 | M66: 0 | N66: 0 | O66: 0 | P66: 0 | Q66: 0 | R66: 0 | S66: 0 | T66: =Cash_Flow_Statement -> CFS | U66: =-J43
E67: Refinancing at completion | G67: =Currency -> US$'000 | J67: =IF(J$9=MAX($J$9:$S$9),-SUM(J65:J66),0) -> 0 | K67: =IF(K$9=MAX($J$9:$S$9),-SUM(K65:K66),0) -> 0 | L67: -16000 | M67: 0 | N67: 0 | O67: 0 | P67: 0 | Q67: 0 | R67: 0 | S67: 0 | T67: =Cash_Flow_Statement -> CFS | U67: =IF(J$9=MAX($J$9:$S$9),-SUM(J65:J66),0)
E68: Closing balance | G68: =Currency -> US$'000 | I68: ='Opening Balance Sheet'!$I$44 -> 0 | J68: =SUM(J65:J67) -> 0 | K68: =SUM(K65:K67) -> 6880 | L68: =SUM(L65:L67) -> 0 | M68: 0 | N68: 0 | O68: 0 | P68: 0 | Q68: 0 | R68: 0 | S68: 0 | T68: =Balance_Sheet -> BS | U68: =SUM(J65:J67)
E70: Debt limit | G70: =Currency -> US$'000 | I70: =Assumptions!$I$46 -> 16000
E72: Limit remaining (before drawdown) | G72: =Currency -> US$'000 | J72: =IF(J$9=0,0,MAX($I70-J65,0)) -> 16000 | K72: =IF(K$9=0,0,MAX($I70-K65,0)) -> 16000 | L72: 9120 | M72: 0 | N72: 0 | O72: 0 | P72: 0 | Q72: 0 | R72: 0 | S72: 0 | U72: =IF(J$9=0,0,MAX($I70-J65,0))
D74: Interest
E76: BBSW | G76: =Percentage&" p.a." -> % p.a. | J76: =Assumptions!J128 -> 0.002 | K76: =Assumptions!K128 -> 0.0015 | L76: =Assumptions!L128 -> 0.003 | M76: =Assumptions!M128 -> 0.005 | N76: =Assumptions!N128 -> 0.0075 | O76: =Assumptions!O128 -> 0.011 | P76: =Assumptions!P128 -> 0.014 | Q76: =Assumptions!Q128 -> 0.015 | R76: =Assumptions!R128 -> 0.015 | S76: =Assumptions!S128 -> 0.015 | U76: =Assumptions!J128
E77: Margin | G77: =Percentage&" p.a." -> % p.a. | I77: =Assumptions!$I$50 -> 0.035
E78: All-in rate | G78: =Percentage&" p.a." -> % p.a. | J78: =($I77+J76)*MIN(J$8,Days_in_Year)/Days_in_Year -> 0.037 | K78: 0.0365 | L78: 0.038 | M78: 0.04 | N78: 0.0425 | O78: 0.046 | P78: 0.049 | Q78: 0.05 | R78: 0.05 | S78: 0.05 | U78: =($I77+J76)*MIN(J$8,Days_in_Year)/Days_in_Year
E80: Interest | G80: =Currency -> US$'000 | J80: =J65*J78 -> 0 | K80: =K65*K78 -> 0 | L80: 261.44 | M80: 0 | N80: 0 | O80: 0 | P80: 0 | Q80: 0 | R80: 0 | S80: 0 | U80: =J65*J78
D82: Establishment fee
U83: =IFERROR(_xlfn.FORMULATEXT(J83),"") -> 
E84: Establishment fee | G84: =Percentage -> % | I84: =Assumptions!$I$51 -> 0.02
E86: Establishment fee | G86: =Currency -> US$'000 | J86: =IF(J$9=1,$I70*$I84,0) -> 320 | K86: =IF(K$9=1,$I70*$I84,0) -> 0 | L86: 0 | M86: 0 | N86: 0 | O86: 0 | P86: 0 | Q86: 0 | R86: 0 | S86: 0 | U86: =IF(J$9=1,$I70*$I84,0)
D88: Commitment fee
E90: Commitment fee | G90: =Percentage&" of margin" -> % of margin | I90: =Assumptions!$I$52 -> 0.5
E92: Commitment fee | G92: =Currency -> US$'000 | J92: =$I90*$I77*J72 -> 280 | K92: =$I90*$I77*K72 -> 280 | L92: 159.6 | M92: 0 | N92: 0 | O92: 0 | P92: 0 | Q92: 0 | R92: 0 | S92: 0 | U92: =$I90*$I77*J72
C95: Convertible debt
D97: Control account
E99: Opening balance | G99: =Currency -> US$'000 | J99: =I102 -> 0 | K99: =J102 -> 0 | L99: 0 | M99: 0 | N99: 0 | O99: 0 | P99: 0 | Q99: 0 | R99: 0 | S99: 0 | T99: =Balance_Sheet -> BS | U99: =I102
E100: Debt drawdowns | G100: =Currency -> US$'000 | J100: =J44 -> 0 | K100: =K44 -> 0 | L100: 8801.04 | M100: 0 | N100: 0 | O100: 0 | P100: 0 | Q100: 0 | R100: 0 | S100: 0 | T100: =Cash_Flow_Statement -> CFS | U100: =J44
E101: Transfer to operations | G101: =Currency -> US$'000 | J101: =IF(J$9=MAX($J$9:$S$9),-SUM(J99:J100),0) -> 0 | K101: =IF(K$9=MAX($J$9:$S$9),-SUM(K99:K100),0) -> 0 | L101: -8801.04 | M101: 0 | N101: 0 | O101: 0 | P101: 0 | Q101: 0 | R101: 0 | S101: 0 | T101: =Cash_Flow_Statement -> CFS | U101: =IF(J$9=MAX($J$9:$S$9),-SUM(J99:J100),0)
E102: Closing balance | G102: =Currency -> US$'000 | I102: ='Opening Balance Sheet'!$I$45 -> 0 | J102: =SUM(J99:J101) -> 0 | K102: 0 | L102: 0 | M102: 0 | N102: 0 | O102: 0 | P102: 0 | Q102: 0 | R102: =SUM(R99:R101) -> 0 | S102: =SUM(S99:S101) -> 0 | T102: =Balance_Sheet -> BS | U102: =SUM(J99:J101)
D104: Interest
E106: BBSW | G106: =Percentage&" p.a." -> % p.a. | J106: =Assumptions!J128 -> 0.002 | K106: =Assumptions!K128 -> 0.0015 | L106: =Assumptions!L128 -> 0.003 | M106: =Assumptions!M128 -> 0.005 | N106: =Assumptions!N128 -> 0.0075 | O106: =Assumptions!O128 -> 0.011 | P106: =Assumptions!P128 -> 0.014 | Q106: =Assumptions!Q128 -> 0.015 | R106: =Assumptions!R128 -> 0.015 | S106: =Assumptions!S128 -> 0.015 | U106: =Assumptions!J128
E107: Margin | G107: =Percentage&" p.a." -> % p.a. | I107: =Assumptions!$I$173 -> 0.02
E108: All-in rate | G108: =Percentage&" p.a." -> % p.a. | J108: =($I107+J106)*MIN(J$8,Days_in_Year)/Days_in_Year -> 0.022 | K108: 0.0215 | L108: 0.023 | M108: 0.025 | N108: 0.0275 | O108: 0.031 | P108: 0.034 | Q108: 0.035 | R108: 0.035 | S108: 0.035 | U108: =($I107+J106)*MIN(J$8,Days_in_Year)/Days_in_Year
E110: Interest | G110: =Currency -> US$'000 | J110: =J99*J108 -> 0 | K110: =K99*K108 -> 0 | L110: 0 | M110: 0 | N110: 0 | O110: 0 | P110: 0 | Q110: 0 | R110: 0 | S110: 0 | U110: =J99*J108

Sheet Operations
A1: =IF(ISERROR(RIGHT(CELL("filename",A1),LEN(CELL("filename",A1))-FIND("]",CELL("filename",A1)))), "", RIGHT(CELL("filename",A1),LEN(CELL("filename",A1))-FIND("]",CELL("filename",A1)))) -> Operations
A2: =Model_Name -> Model 13 - Equity Completed.xlsm
A3: Navigator
B4: Error Checks: | F4: =Overall_Error_Check -> 0
J5: =Timing!J5 -> 2024-06-30 | K5: =Timing!K5 -> 2025-06-30 | L5: =Timing!L5 -> 2026-06-30 | M5: =Timing!M5 -> 2027-06-30 | N5: =Timing!N5 -> 2028-06-30 | O5: =Timing!O5 -> 2029-06-30 | P5: =Timing!P5 -> 2030-06-30 | Q5: =Timing!Q5 -> 2031-06-30 | R5: =Timing!R5 -> 2032-06-30 | S5: =Timing!S5 -> 2033-06-30
C6: =Timing!C6 -> Start Date | J6: =Timing!J6 -> 2023-07-01 | K6: =Timing!K6 -> 2024-07-01 | L6: =Timing!L6 -> 2025-07-01 | M6: =Timing!M6 -> 2026-07-01 | N6: =Timing!N6 -> 2027-07-01 | O6: =Timing!O6 -> 2028-07-01 | P6: =Timing!P6 -> 2029-07-01 | Q6: =Timing!Q6 -> 2030-07-01 | R6: =Timing!R6 -> 2031-07-01 | S6: =Timing!S6 -> 2032-07-01
C7: =Timing!C7 -> End Date | J7: =Timing!J7 -> 2024-06-30 | K7: =Timing!K7 -> 2025-06-30 | L7: =Timing!L7 -> 2026-06-30 | M7: =Timing!M7 -> 2027-06-30 | N7: =Timing!N7 -> 2028-06-30 | O7: =Timing!O7 -> 2029-06-30 | P7: =Timing!P7 -> 2030-06-30 | Q7: =Timing!Q7 -> 2031-06-30 | R7: =Timing!R7 -> 2032-06-30 | S7: =Timing!S7 -> 2033-06-30
C8: =Timing!C8 -> Number of Days | J8: =Timing!J8 -> 366 | K8: =Timing!K8 -> 365 | L8: =Timing!L8 -> 365 | M8: =Timing!M8 -> 365 | N8: =Timing!N8 -> 366 | O8: =Timing!O8 -> 365 | P8: =Timing!P8 -> 365 | Q8: =Timing!Q8 -> 365 | R8: =Timing!R8 -> 366 | S8: =Timing!S8 -> 365
C9: =Timing!C9 -> Construction period | J9: =Timing!J9 -> 1 | K9: =Timing!K9 -> 2 | L9: =Timing!L9 -> 3 | M9: =Timing!M9 -> 0 | N9: =Timing!N9 -> 0 | O9: =Timing!O9 -> 0 | P9: =Timing!P9 -> 0 | Q9: =Timing!Q9 -> 0 | R9: =Timing!R9 -> 0 | S9: =Timing!S9 -> 0
C10: =Timing!C10 -> Operations period | J10: =Timing!J10 -> 0 | K10: =Timing!K10 -> 0 | L10: =Timing!L10 -> 0 | M10: =Timing!M10 -> 1 | N10: =Timing!N10 -> 2 | O10: =Timing!O10 -> 3 | P10: =Timing!P10 -> 4 | Q10: =Timing!Q10 -> 5 | R10: =Timing!R10 -> 6 | S10: =Timing!S10 -> 7
C11: =Timing!C11 -> Counter | J11: =Timing!J11 -> 1 | K11: =Timing!K11 -> 2 | L11: =Timing!L11 -> 3 | M11: =Timing!M11 -> 4 | N11: =Timing!N11 -> 5 | O11: =Timing!O11 -> 6 | P11: =Timing!P11 -> 7 | Q11: =Timing!Q11 -> 8 | R11: =Timing!R11 -> 9 | S11: =Timing!S11 -> 10
B13: =MAX($B$12:$B12)+1 -> 1 | C13: =A1 -> Operations
C15: =Assumptions!C57 -> Generation
D17: =Assumptions!D59 -> Expected generation
E19: =Assumptions!E65 -> Annual generation in use | G19: =Megawatt_Hours -> MWh | J19: =Assumptions!J65 -> 0 | K19: =Assumptions!K65 -> 0 | L19: =Assumptions!L65 -> 0 | M19: =Assumptions!M65 -> 55000 | N19: =Assumptions!N65 -> 55000 | O19: =Assumptions!O65 -> 55000 | P19: =Assumptions!P65 -> 55000 | Q19: =Assumptions!Q65 -> 55000 | R19: =Assumptions!R65 -> 55000 | S19: =Assumptions!S65 -> 55000 | U19: =IFERROR(_xlfn.FORMULATEXT(J19),"") -> =Assumptions!J65
E21: =Assumptions!E67 -> Annual degradation | G21: =Percentage -> % | I21: =Assumptions!$I$67 -> 0.02 | U21: =IFERROR(_xlfn.FORMULATEXT(I21),"") -> =Assumptions!$I$67
E23: Adjusted generation | G23: =Megawatt_Hours -> MWh | J23: =IF(J$10=0,,J19*((1-$I21)^(J$10-1))) -> 0 | K23: =IF(K$10=0,,K19*((1-$I21)^(K$10-1))) -> 0 | L23: 0 | M23: 55000 | N23: 53900 | O23: 52822 | P23: 51765.56 | Q23: 50730.2488 | R23: 49715.64382 | S23: 48721.33095 | U23: =IF(J$10=0,,J19*((1-$I21)^(J$10-1)))
C26: =Assumptions!C69 -> Revenue and related
D28: =Assumptions!D71 -> Sales
E30: =Assumptions!E77 -> Electricity sales price in use | G30: =Dollars_per_Megawatt_Hour -> $/MWh | J30: =Assumptions!J77 -> 0 | K30: =Assumptions!K77 -> 0 | L30: =Assumptions!L77 -> 0 | M30: =Assumptions!M77 -> 100 | N30: =Assumptions!N77 -> 103 | O30: =Assumptions!O77 -> 106 | P30: =Assumptions!P77 -> 109 | Q30: =Assumptions!Q77 -> 112 | R30: =Assumptions!R77 -> 115 | S30: =Assumptions!S77 -> 118 | U30: =Assumptions!J77
E31: =E23 -> Adjusted generation | G31: =Megawatt_Hours -> MWh | H31: ="Row "&ROW(J23) -> Row 23 | J31: =J23 -> 0 | K31: =K23 -> 0 | L31: 0 | M31: 55000 | N31: 53900 | O31: 52822 | P31: 51765.56 | Q31: 50730.2488 | R31: 49715.64382 | S31: 48721.33095 | U31: =J23
E32: Revenue | G32: =Currency -> US$'000 | J32: =J30*J31/Thousand -> 0 | K32: 0 | L32: 0 | M32: 5500 | N32: 5551.7 | O32: 5599.132 | P32: 5642.44604 | Q32: 5681.787866 | R32: 5717.29904 | S32: 5749.117052 | U32: =J30*J31/Thousand
D34: Working capital
E36: Days receivable | G36: =No_of_Days -> # Days | J36: =Assumptions!J81 -> 60 | K36: =Assumptions!K81 -> 60 | L36: =Assumptions!L81 -> 60 | M36: =Assumptions!M81 -> 60 | N36: =Assumptions!N81 -> 60 | O36: =Assumptions!O81 -> 60 | P36: =Assumptions!P81 -> 60 | Q36: =Assumptions!Q81 -> 60 | R36: =Assumptions!R81 -> 60 | S36: =Assumptions!S81 -> 60 | U36: =Assumptions!J81
E38: Days in period | G38: =No_of_Days -> # Days | J38: =J$8 -> 366 | K38: =K$8 -> 365 | L38: 365 | M38: 365 | N38: 366 | O38: 365 | P38: 365 | Q38: 365 | R38: 366 | S38: 365 | U38: =J$8
E40: Closing receivables | G40: =Currency -> US$'000 | J40: =J32*J36/J38 -> 0 | K40: =K32*K36/K38 -> 0 | L40: 0 | M40: 904.109589 | N40: 910.1147541 | O40: 920.4052603 | P40: 927.5253764 | Q40: 933.9925259 | R40: 937.2621377 | S40: 945.0603373 | U40: =J32*J36/J38
D42: Control account
E44: Opening receivables | G44: =Currency -> US$'000 | J44: =I47 -> 0 | K44: =J47 -> 0 | L44: 0 | M44: 0 | N44: 904.109589 | O44: 910.1147541 | P44: 920.4052603 | Q44: 927.5253764 | R44: 933.9925259 | S44: 937.2621377 | T44: =Balance_Sheet -> BS | U44: =I47
E45: Revenue | G45: =Currency -> US$'000 | J45: =J32 -> 0 | K45: =K32 -> 0 | L45: 0 | M45: 5500 | N45: 5551.7 | O45: 5599.132 | P45: 5642.44604 | Q45: 5681.787866 | R45: 5717.29904 | S45: 5749.117052 | T45: =Income_Statement -> IS | U45: =J32
E46: Cash receipts | G46: =Currency -> US$'000 | J46: =J47-SUM(J44:J45) -> 0 | K46: =K47-SUM(K44:K45) -> 0 | L46: 0 | M46: -4595.890411 | N46: -5545.694835 | O46: -5588.841494 | P46: -5635.325924 | Q46: -5675.320716 | R46: -5714.029428 | S46: -5741.318852 | T46: =Cash_Flow_Statement -> CFS | U46: =J47-SUM(J44:J45)
E47: Closing receivables | G47: =Currency -> US$'000 | I47: ='Opening Balance Sheet'!$I$19 -> 0 | J47: =J40 -> 0 | K47: =K40 -> 0 | L47: 0 | M47: 904.109589 | N47: 910.1147541 | O47: 920.4052603 | P47: 927.5253764 | Q47: 933.9925259 | R47: 937.2621377 | S47: 945.0603373 | T47: =Balance_Sheet -> BS | U47: =J40
C50: COGS and related | U50: =IFERROR(_xlfn.FORMULATEXT(J50),"") -> 
D52: COGS
E54: =E23 -> Adjusted generation | G54: =Megawatt_Hours -> MWh | H54: ="Row "&ROW(J23) -> Row 23 | J54: =J23 -> 0 | K54: =K23 -> 0 | L54: 0 | M54: 55000 | N54: 53900 | O54: 52822 | P54: 51765.56 | Q54: 50730.2488 | R54: 49715.64382 | S54: 48721.33095 | U54: =J23
E55: =Assumptions!E92 -> Cost per MWh in use | G55: =Dollars_per_Megawatt_Hour -> $/MWh | J55: =Assumptions!J92 -> 0 | K55: =Assumptions!K92 -> 0 | L55: =Assumptions!L92 -> 0 | M55: =Assumptions!M92 -> 20 | N55: =Assumptions!N92 -> 20 | O55: =Assumptions!O92 -> 20 | P55: =Assumptions!P92 -> 20 | Q55: =Assumptions!Q92 -> 20 | R55: =Assumptions!R92 -> 20 | S55: =Assumptions!S92 -> 20 | U55: =Assumptions!J92
E56: COGS | G56: =Currency -> US$'000 | J56: =J54*J55/Thousand -> 0 | K56: 0 | L56: 0 | M56: 1100 | N56: 1078 | O56: 1056.44 | P56: 1035.3112 | Q56: 1014.604976 | R56: 994.3128765 | S56: 974.426619 | U56: =J54*J55/Thousand
D58: Working capital
E60: =Assumptions!E96 -> Days payable | G60: =No_of_Days -> # Days | J60: =Assumptions!J96 -> 90 | K60: =Assumptions!K96 -> 90 | L60: =Assumptions!L96 -> 90 | M60: =Assumptions!M96 -> 90 | N60: =Assumptions!N96 -> 90 | O60: =Assumptions!O96 -> 90 | P60: =Assumptions!P96 -> 90 | Q60: =Assumptions!Q96 -> 90 | R60: =Assumptions!R96 -> 90 | S60: =Assumptions!S96 -> 90 | U60: =Assumptions!J96
E62: Days in period | G62: =No_of_Days -> # Days | J62: =J$8 -> 366 | K62: =K$8 -> 365 | L62: 365 | M62: 365 | N62: 366 | O62: 365 | P62: 365 | Q62: 365 | R62: 366 | S62: 365 | U62: =J$8
E64: Closing payables | G64: =Currency -> US$'000 | J64: =J56*J60/J62 -> 0 | K64: =K56*K60/K62 -> 0 | L64: 0 | M64: 271.2328767 | N64: 265.0819672 | O64: 260.4920548 | P64: 255.2822137 | Q64: 250.1765694 | R64: 244.5031663 | S64: 240.2695773 | U64: =J56*J60/J62
D66: Control account
E68: Opening payables | G68: =Currency -> US$'000 | J68: =I71 -> 0 | K68: =J71 -> 0 | L68: 0 | M68: 0 | N68: 271.2328767 | O68: 265.0819672 | P68: 260.4920548 | Q68: 255.2822137 | R68: 250.1765694 | S68: 244.5031663 | T68: =Balance_Sheet -> BS | U68: =I71
E69: COGS | G69: =Currency -> US$'000 | J69: =J56 -> 0 | K69: =K56 -> 0 | L69: 0 | M69: 1100 | N69: 1078 | O69: 1056.44 | P69: 1035.3112 | Q69: 1014.604976 | R69: 994.3128765 | S69: 974.426619 | T69: =Income_Statement -> IS | U69: =J56
E70: Cash payments | G70: =Currency -> US$'000 | J70: =J71-SUM(J68:J69) -> 0 | K70: =K71-SUM(K68:K69) -> 0 | L70: 0 | M70: -828.7671233 | N70: -1084.150909 | O70: -1061.029912 | P70: -1040.521041 | Q70: -1019.71062 | R70: -999.9862796 | S70: -978.660208 | T70: =Cash_Flow_Statement -> CFS | U70: =J71-SUM(J68:J69)
E71: Closing payables | G71: =Currency -> US$'000 | I71: ='Opening Balance Sheet'!$I$36 -> 0 | J71: =J64 -> 0 | K71: =K64 -> 0 | L71: 0 | M71: 271.2328767 | N71: 265.0819672 | O71: 260.4920548 | P71: 255.2822137 | Q71: 250.1765694 | R71: 244.5031663 | S71: 240.2695773 | T71: =Balance_Sheet -> BS | U71: =J64
C74: Opex and cash payments | U74: =IFERROR(_xlfn.FORMULATEXT(J74),"") -> 
C75: =Assumptions!C100 -> All expenses are assumed to be paid as they are incurred
D77: =Assumptions!D102 -> Opex
E79: =Assumptions!E104 -> Projected costs | G79: =Currency -> US$'000 | J79: =Assumptions!J104 -> 0 | K79: =Assumptions!K104 -> 0 | L79: =Assumptions!L104 -> 0 | M79: =Assumptions!M104 -> 200 | N79: =Assumptions!N104 -> 225 | O79: =Assumptions!O104 -> 250 | P79: =Assumptions!P104 -> 275 | Q79: =Assumptions!Q104 -> 300 | R79: =Assumptions!R104 -> 325 | S79: =Assumptions!S104 -> 350 | U79: =Assumptions!J104
E81: =D77 -> Opex | G81: =Currency -> US$'000 | J81: =IF(J$10=0,,J79) -> 0 | K81: =IF(K$10=0,,K79) -> 0 | L81: 0 | M81: 200 | N81: 225 | O81: 250 | P81: 275 | Q81: 300 | R81: 325 | S81: 350 | U81: =IF(J$10=0,,J79)
D83: Working capital
E85: =E60 -> Days payable | G85: =No_of_Days -> # Days
E87: Days in period | G87: =No_of_Days -> # Days | J87: =J$8 -> 366 | K87: =K$8 -> 365 | L87: 365 | M87: 365 | N87: 366 | O87: 365 | P87: 365 | Q87: 365 | R87: 366 | S87: 365 | U87: =J$8
E89: Closing payables | G89: =Currency -> US$'000 | J89: =J81*J85/J87 -> 0 | K89: =K81*K85/K87 -> 0 | L89: 0 | M89: 0 | N89: 0 | O89: 0 | P89: 0 | Q89: 0 | R89: 0 | S89: 0 | U89: =J81*J85/J87
D91: Control account
E93: Opening payables | G93: =Currency -> US$'000 | J93: =I96 -> 0 | K93: =J96 -> 0 | L93: 0 | M93: 0 | N93: 0 | O93: 0 | P93: 0 | Q93: 0 | R93: 0 | S93: 0 | T93: =Balance_Sheet -> BS | U93: =I96
E94: =D77 -> Opex | G94: =Currency -> US$'000 | J94: =J81 -> 0 | K94: =K81 -> 0 | L94: 0 | M94: 200 | N94: 225 | O94: 250 | P94: 275 | Q94: 300 | R94: 325 | S94: 350 | T94: =Income_Statement -> IS | U94: =J81
E95: Cash payments | G95: =Currency -> US$'000 | J95: =J96-SUM(J93:J94) -> 0 | K95: =K96-SUM(K93:K94) -> 0 | L95: 0 | M95: -200 | N95: -225 | O95: -250 | P95: -275 | Q95: -300 | R95: -325 | S95: -350 | T95: =Cash_Flow_Statement -> CFS | U95: =J96-SUM(J93:J94)
E96: Closing payables | G96: =Currency -> US$'000 | J96: =J89 -> 0 | K96: =K89 -> 0 | L96: 0 | M96: 0 | N96: 0 | O96: 0 | P96: 0 | Q96: 0 | R96: 0 | S96: 0 | T96: =Balance_Sheet -> BS | U96: =J89
C99: =Assumptions!C107 -> Capex and related | U99: =IFERROR(_xlfn.FORMULATEXT(J99),"") -> 
D101: =Assumptions!D109 -> Capital expenditure
E103: Construction assets | G103: =Currency -> US$'000 | J103: =Construction!J39 -> 4600 | K103: =Construction!K39 -> 8280 | L103: =Construction!L39 -> 12421.04 | M103: =Construction!M39 -> 0 | N103: =Construction!N39 -> 0 | O103: =Construction!O39 -> 0 | P103: =Construction!P39 -> 0 | Q103: =Construction!Q39 -> 0 | R103: =Construction!R39 -> 0 | S103: =Construction!S39 -> 0 | U103: =Construction!J39
E104: =Assumptions!E111 -> Capital expenditure | G104: =Currency -> US$'000 | J104: =Assumptions!J111 -> 0 | K104: =Assumptions!K111 -> 0 | L104: =Assumptions!L111 -> 0 | M104: =Assumptions!M111 -> 0 | N104: =Assumptions!N111 -> 0 | O104: =Assumptions!O111 -> 0 | P104: =Assumptions!P111 -> 500 | Q104: =Assumptions!Q111 -> 1000 | R104: =Assumptions!R111 -> 0 | S104: =Assumptions!S111 -> 0 | U104: =Assumptions!J111
E105: Total | G105: =Currency -> US$'000 | J105: =SUM(J103:J104) -> 4600 | K105: =SUM(K103:K104) -> 8280 | L105: 12421.04 | M105: 0 | N105: 0 | O105: 0 | P105: 500 | Q105: 1000 | R105: 0 | S105: 0 | U105: =SUM(J103:J104)
D107: Details
I108: =Assumptions!I114 -> Remaining life | J108: =Assumptions!J114 -> Depreciation rate | U108: =Assumptions!J114
E109: Construction assets | G109: =Percentage -> % | I109: =Assumptions!I115 -> 10 | J109: =Assumptions!J115 -> 0.1 | U109: =Assumptions!J115
E110: Capital expenditure | G110: =Percentage -> % | I110: =Assumptions!I116 -> 4 | J110: =Assumptions!J116 -> 0.25 | U110: =Assumptions!J116
D112: Depreciation
D114: =MAX(D$113:D113)+1 -> 1 | E114: =INDEX($E$109:$E$110,D114) -> Construction assets
E115: Accounting depreciation
E116: Opening balance | G116: =Currency -> US$'000 | J116: =I119 -> 0 | K116: =J119 -> 4600 | L116: 12880 | M116: 25301.04 | N116: 22770.936 | O116: 20240.832 | P116: 17710.728 | Q116: 15180.624 | R116: 12650.52 | S116: 10120.416 | U116: =I119
E117: Purchases | G117: =Currency -> US$'000 | J117: =OFFSET(J$102,$D114,) -> 4600 | K117: =OFFSET(K$102,$D114,) -> 8280 | L117: 12421.04 | M117: 0 | N117: 0 | O117: 0 | P117: 0 | Q117: 0 | R117: 0 | S117: 0 | U117: =OFFSET(J$102,$D114,)
E118: Depreciation | G118: =Currency -> US$'000 | J118: =-J129 -> 0 | K118: =-K129 -> 0 | L118: 0 | M118: -2530.104 | N118: -2530.104 | O118: -2530.104 | P118: -2530.104 | Q118: -2530.104 | R118: -2530.104 | S118: -2530.104 | U118: =-J129
E119: Closing balance | G119: =Currency -> US$'000 | I119: ='Opening Balance Sheet'!$I$24 -> 0 | J119: =SUM(J116:J118) -> 4600 | K119: =SUM(K116:K118) -> 12880 | L119: =SUM(L116:L118) -> 25301.04 | M119: 22770.936 | N119: 20240.832 | O119: 17710.728 | P119: 15180.624 | Q119: 12650.52 | R119: 10120.416 | S119: 7590.312 | U119: =SUM(J116:J118)
E121: Assets for depreciation | G121: =Currency -> US$'000 | J121: =IF(J$9=MAX($J$9:$S$9),SUM(J116:J117),IF(J$10=0,,J117)) -> 0 | K121: =IF(K$9=MAX($J$9:$S$9),SUM(K116:K117),IF(K$10=0,,K117)) -> 0 | L121: 25301.04 | M121: 0 | N121: 0 | O121: 0 | P121: 0 | Q121: 0 | R121: 0 | S121: 0 | U121: =IF(J$9=MAX($J$9:$S$9),SUM(J116:J117),IF(J$10=0,,J117))
E123: Asset life | G123: =No_of_Years -> # Year(s) | I123: =OFFSET(I$108,$D114,) -> 10 | U123: =IFERROR(_xlfn.FORMULATEXT(I123),"") -> =OFFSET(I$108,$D114,)
E124: Depreciation rate | G124: =Percentage -> % | I124: =OFFSET(J$108,$D114,) -> 0.1 | U124: =IFERROR(_xlfn.FORMULATEXT(I124),"") -> =OFFSET(J$108,$D114,)
E126: Periods to depreciate | G126: =Unit -> # | J126: =MIN(J$11,$I123) -> 1 | K126: 2 | L126: 3 | M126: 4 | N126: 5 | O126: 6 | P126: 7 | Q126: 8 | R126: 9 | S126: 10 | U126: =MIN(J$11,$I123)
E128: Asset base | G128: =Currency -> US$'000 | J128: =SUM(OFFSET(I121,,,,-J126)) -> 0 | K128: 0 | L128: 0 | M128: 25301.04 | N128: 25301.04 | O128: 25301.04 | P128: 25301.04 | Q128: 25301.04 | R128: 25301.04 | S128: 25301.04 | U128: =SUM(OFFSET(I121,,,,-J126))
E129: Depreciation | G129: =Currency -> US$'000 | J129: =J128*$I124 -> 0 | K129: =K128*$I124 -> 0 | L129: 0 | M129: 2530.104 | N129: 2530.104 | O129: 2530.104 | P129: 2530.104 | Q129: 2530.104 | R129: 2530.104 | S129: 2530.104 | U129: =J128*$I124
E131: Tax depreciation
E132: Opening balance | G132: =Currency -> US$'000 | J132: =I135 -> 0 | K132: =J135 -> 4600 | L132: 12880 | M132: 25301.04 | N132: 20240.832 | O132: 16192.6656 | P132: 12954.13248 | Q132: 10363.30598 | R132: 8290.644787 | S132: 6632.51583 | U132: =I135
E133: Purchases | G133: =Currency -> US$'000 | J133: =J117 -> 4600 | K133: =K117 -> 8280 | L133: 12421.04 | M133: 0 | N133: 0 | O133: 0 | P133: 0 | Q133: 0 | R133: 0 | S133: 0 | U133: =J117
E134: Depreciation | G134: =Currency -> US$'000 | J134: =-J146 -> 0 | K134: =-K146 -> 0 | L134: 0 | M134: -5060.208 | N134: -4048.1664 | O134: -3238.53312 | P134: -2590.826496 | Q134: -2072.661197 | R134: -1658.128957 | S134: -1326.503166 | U134: =-J146
E135: Closing balance | G135: =Currency -> US$'000 | I135: =I119 -> 0 | J135: =SUM(J132:J134) -> 4600 | K135: =SUM(K132:K134) -> 12880 | L135: =SUM(L132:L134) -> 25301.04 | M135: 20240.832 | N135: 16192.6656 | O135: 12954.13248 | P135: 10363.30598 | Q135: 8290.644787 | R135: 6632.51583 | S135: 5306.012664 | U135: =SUM(J132:J134)
E137: Assets for depreciation | G137: =Currency -> US$'000 | J137: =J121 -> 0 | K137: =K121 -> 0 | L137: 25301.04 | M137: 0 | N137: 0 | O137: 0 | P137: 0 | Q137: 0 | R137: 0 | S137: 0 | U137: =J121
E139: Asset life | G139: =No_of_Years -> # Year(s) | I139: =I123 -> 10
E140: Depreciation rate | G140: =Percentage -> % | I140: =I124*Declining_Balance_Multiple -> 0.2
E142: Depreciation timing | G142: =Percentage -> % | J142: =IF(J$11>$I139,,IF(J$11=$I139,1,$I140))*(1-SUM($I142:I142)) -> 0.2 | K142: =IF(K$11>$I139,,IF(K$11=$I139,1,$I140))*(1-SUM($I142:J142)) -> 0.16 | L142: =IF(L$11>$I139,,IF(L$11=$I139,1,$I140))*(1-SUM($I142:K142)) -> 0.128 | M142: =IF(M$11>$I139,,IF(M$11=$I139,1,$I140))*(1-SUM($I142:L142)) -> 0.1024 | N142: =IF(N$11>$I139,,IF(N$11=$I139,1,$I140))*(1-SUM($I142:M142)) -> 0.08192 | O142: =IF(O$11>$I139,,IF(O$11=$I139,1,$I140))*(1-SUM($I142:N142)) -> 0.065536 | P142: =IF(P$11>$I139,,IF(P$11=$I139,1,$I140))*(1-SUM($I142:O142)) -> 0.0524288 | Q142: =IF(Q$11>$I139,,IF(Q$11=$I139,1,$I140))*(1-SUM($I142:P142)) -> 0.04194304 | R142: =IF(R$11>$I139,,IF(R$11=$I139,1,$I140))*(1-SUM($I142:Q142)) -> 0.033554432 | S142: =IF(S$11>$I139,,IF(S$11=$I139,1,$I140))*(1-SUM($I142:R142)) -> 0.134217728 | U142: =IF(J$11>$I139,,IF(J$11=$I139,1,$I140))*(1-SUM($I142:I142))
E143: Reverse depreciation | G143: =Percentage -> % | J143: =OFFSET($J142,,MAX($11:$11)-J$11) -> 0.134217728 | K143: =OFFSET($J142,,MAX($11:$11)-K$11) -> 0.033554432 | L143: 0.04194304 | M143: 0.0524288 | N143: 0.065536 | O143: 0.08192 | P143: 0.1024 | Q143: 0.128 | R143: 0.16 | S143: 0.2 | U143: =OFFSET($J142,,MAX($11:$11)-J$11)
E144: Periods to depreciate | G144: =Unit -> # | J144: =J126 -> 1 | K144: =K126 -> 2 | L144: 3 | M144: 4 | N144: 5 | O144: 6 | P144: 7 | Q144: 8 | R144: 9 | S144: 10 | U144: =J126
E146: Tax depreciation | G146: =Currency -> US$'000 | J146: =SUMPRODUCT(OFFSET(I137,,,,-J144)*OFFSET($S143,,,,-J144)) -> 0 | K146: =SUMPRODUCT(OFFSET(J137,,,,-K144)*OFFSET($S143,,,,-K144)) -> 0 | L146: =SUMPRODUCT(OFFSET(K137,,,,-L144)*OFFSET($S143,,,,-L144)) -> 0 | M146: =SUMPRODUCT(OFFSET(L137,,,,-M144)*OFFSET($S143,,,,-M144)) -> 5060.208 | N146: =SUMPRODUCT(OFFSET(M137,,,,-N144)*OFFSET($S143,,,,-N144)) -> 4048.1664 | O146: =SUMPRODUCT(OFFSET(N137,,,,-O144)*OFFSET($S143,,,,-O144)) -> 3238.53312 | P146: =SUMPRODUCT(OFFSET(O137,,,,-P144)*OFFSET($S143,,,,-P144)) -> 2590.826496 | Q146: =SUMPRODUCT(OFFSET(P137,,,,-Q144)*OFFSET($S143,,,,-Q144)) -> 2072.661197 | R146: =SUMPRODUCT(OFFSET(Q137,,,,-R144)*OFFSET($S143,,,,-R144)) -> 1658.128957 | S146: =SUMPRODUCT(OFFSET(R137,,,,-S144)*OFFSET($S143,,,,-S144)) -> 1326.503166 | U146: =SUMPRODUCT(OFFSET(I137,,,,-J144)*OFFSET($S143,,,,-J144))
D148: =MAX(D$113:D147)+1 -> 2 | E148: =INDEX($E$109:$E$110,D148) -> Capital expenditure
E149: Accounting depreciation
E150: Opening balance | G150: =Currency -> US$'000 | J150: =I153 -> 0 | K150: =J153 -> 0 | L150: 0 | M150: 0 | N150: 0 | O150: 0 | P150: 0 | Q150: 500 | R150: 1375 | S150: 1000 | U150: =I153
E151: Purchases | G151: =Currency -> US$'000 | J151: =OFFSET(J$102,$D148,) -> 0 | K151: =OFFSET(K$102,$D148,) -> 0 | L151: 0 | M151: 0 | N151: 0 | O151: 0 | P151: 500 | Q151: 1000 | R151: 0 | S151: 0 | U151: =OFFSET(J$102,$D148,)
E152: Depreciation | G152: =Currency -> US$'000 | J152: =-J163 -> 0 | K152: =-K163 -> 0 | L152: 0 | M152: 0 | N152: 0 | O152: 0 | P152: 0 | Q152: -125 | R152: -375 | S152: -375 | U152: =-J163
E153: Closing balance | G153: =Currency -> US$'000 | J153: =SUM(J150:J152) -> 0 | K153: =SUM(K150:K152) -> 0 | L153: =SUM(L150:L152) -> 0 | M153: 0 | N153: 0 | O153: 0 | P153: 500 | Q153: 1375 | R153: 1000 | S153: 625 | U153: =SUM(J150:J152)
E155: Assets for depreciation | G155: =Currency -> US$'000 | J155: =IF(J$9=MAX($J$9:$S$9),SUM(J150:J151),IF(J$10=0,,J151)) -> 0 | K155: =IF(K$9=MAX($J$9:$S$9),SUM(K150:K151),IF(K$10=0,,K151)) -> 0 | L155: 0 | M155: 0 | N155: 0 | O155: 0 | P155: 500 | Q155: 1000 | R155: 0 | S155: 0 | U155: =IF(J$9=MAX($J$9:$S$9),SUM(J150:J151),IF(J$10=0,,J151))
E157: Asset life | G157: =No_of_Years -> # Year(s) | I157: =OFFSET(I$108,$D148,) -> 4 | U157: =IFERROR(_xlfn.FORMULATEXT(I157),"") -> =OFFSET(I$108,$D148,)
E158: Depreciation rate | G158: =Percentage -> % | I158: =OFFSET(J$108,$D148,) -> 0.25 | U158: =IFERROR(_xlfn.FORMULATEXT(I158),"") -> =OFFSET(J$108,$D148,)
E160: Periods to depreciate | G160: =Unit -> # | J160: =MIN(J$11,$I157) -> 1 | K160: 2 | L160: 3 | M160: 4 | N160: 4 | O160: 4 | P160: 4 | Q160: 4 | R160: 4 | S160: 4 | U160: =MIN(J$11,$I157)
E162: Asset base | G162: =Currency -> US$'000 | J162: =SUM(OFFSET(I155,,,,-J160)) -> 0 | K162: 0 | L162: 0 | M162: 0 | N162: 0 | O162: 0 | P162: 0 | Q162: 500 | R162: 1500 | S162: 1500 | U162: =SUM(OFFSET(I155,,,,-J160))
E163: Depreciation | G163: =Currency -> US$'000 | J163: =J162*$I158 -> 0 | K163: =K162*$I158 -> 0 | L163: 0 | M163: 0 | N163: 0 | O163: 0 | P163: 0 | Q163: 125 | R163: 375 | S163: 375 | U163: =IFERROR(_xlfn.FORMULATEXT(J163),"") -> =J162*$I158
E165: Tax depreciation
E166: Opening balance | G166: =Currency -> US$'000 | J166: =I169 -> 0 | K166: =J169 -> 0 | L166: 0 | M166: 0 | N166: 0 | O166: 0 | P166: 0 | Q166: 500 | R166: 1250 | S166: 625 | U166: =I169
E167: Purchases | G167: =Currency -> US$'000 | J167: =J151 -> 0 | K167: =K151 -> 0 | L167: 0 | M167: 0 | N167: 0 | O167: 0 | P167: 500 | Q167: 1000 | R167: 0 | S167: 0 | U167: =J151
E168: Depreciation | G168: =Currency -> US$'000 | J168: =-J180 -> 0 | K168: =-K180 -> 0 | L168: 0 | M168: 0 | N168: 0 | O168: 0 | P168: 0 | Q168: -250 | R168: -625 | S168: -312.5 | U168: =-J180
E169: Closing balance | G169: =Currency -> US$'000 | I169: =I153 -> 0 | J169: =SUM(J166:J168) -> 0 | K169: =SUM(K166:K168) -> 0 | L169: =SUM(L166:L168) -> 0 | M169: 0 | N169: 0 | O169: 0 | P169: 500 | Q169: 1250 | R169: 625 | S169: 312.5 | U169: =SUM(J166:J168)
E171: Assets for depreciation | G171: =Currency -> US$'000 | J171: =J155 -> 0 | K171: =K155 -> 0 | L171: 0 | M171: 0 | N171: 0 | O171: 0 | P171: 500 | Q171: 1000 | R171: 0 | S171: 0 | U171: =J155
E173: Asset life | G173: =No_of_Years -> # Year(s) | I173: =I157 -> 4
E174: Depreciation rate | G174: =Percentage -> % | I174: =I158*Declining_Balance_Multiple -> 0.5
E176: Depreciation timing | G176: =Percentage -> % | J176: =IF(J$11>$I173,,IF(J$11=$I173,1,$I174))*(1-SUM($I176:I176)) -> 0.5 | K176: =IF(K$11>$I173,,IF(K$11=$I173,1,$I174))*(1-SUM($I176:J176)) -> 0.25 | L176: =IF(L$11>$I173,,IF(L$11=$I173,1,$I174))*(1-SUM($I176:K176)) -> 0.125 | M176: =IF(M$11>$I173,,IF(M$11=$I173,1,$I174))*(1-SUM($I176:L176)) -> 0.125 | N176: =IF(N$11>$I173,,IF(N$11=$I173,1,$I174))*(1-SUM($I176:M176)) -> 0 | O176: =IF(O$11>$I173,,IF(O$11=$I173,1,$I174))*(1-SUM($I176:N176)) -> 0 | P176: =IF(P$11>$I173,,IF(P$11=$I173,1,$I174))*(1-SUM($I176:O176)) -> 0 | Q176: =IF(Q$11>$I173,,IF(Q$11=$I173,1,$I174))*(1-SUM($I176:P176)) -> 0 | R176: =IF(R$11>$I173,,IF(R$11=$I173,1,$I174))*(1-SUM($I176:Q176)) -> 0 | S176: =IF(S$11>$I173,,IF(S$11=$I173,1,$I174))*(1-SUM($I176:R176)) -> 0 | U176: =IF(J$11>$I173,,IF(J$11=$I173,1,$I174))*(1-SUM($I176:I176))
E177: Reverse depreciation | G177: =Percentage -> % | J177: =OFFSET($J176,,MAX($11:$11)-J$11) -> 0 | K177: =OFFSET($J176,,MAX($11:$11)-K$11) -> 0 | L177: 0 | M177: 0 | N177: 0 | O177: 0 | P177: 0.125 | Q177: 0.125 | R177: 0.25 | S177: 0.5 | U177: =OFFSET($J176,,MAX($11:$11)-J$11)
E178: Periods to depreciate | G178: =Unit -> # | J178: =J160 -> 1 | K178: =K160 -> 2 | L178: 3 | M178: 4 | N178: 4 | O178: 4 | P178: 4 | Q178: 4 | R178: 4 | S178: 4 | U178: =J160
E180: Tax depreciation | G180: =Currency -> US$'000 | J180: =SUMPRODUCT(OFFSET(I171,,,,-J178)*OFFSET($S177,,,,-J178)) -> 0 | K180: =SUMPRODUCT(OFFSET(J171,,,,-K178)*OFFSET($S177,,,,-K178)) -> 0 | L180: =SUMPRODUCT(OFFSET(K171,,,,-L178)*OFFSET($S177,,,,-L178)) -> 0 | M180: =SUMPRODUCT(OFFSET(L171,,,,-M178)*OFFSET($S177,,,,-M178)) -> 0 | N180: =SUMPRODUCT(OFFSET(M171,,,,-N178)*OFFSET($S177,,,,-N178)) -> 0 | O180: =SUMPRODUCT(OFFSET(N171,,,,-O178)*OFFSET($S177,,,,-O178)) -> 0 | P180: =SUMPRODUCT(OFFSET(O171,,,,-P178)*OFFSET($S177,,,,-P178)) -> 0 | Q180: =SUMPRODUCT(OFFSET(P171,,,,-Q178)*OFFSET($S177,,,,-Q178)) -> 250 | R180: =SUMPRODUCT(OFFSET(Q171,,,,-R178)*OFFSET($S177,,,,-R178)) -> 625 | S180: =SUMPRODUCT(OFFSET(R171,,,,-S178)*OFFSET($S177,,,,-S178)) -> 312.5 | U180: =SUMPRODUCT(OFFSET(I171,,,,-J178)*OFFSET($S177,,,,-J178))
D182: Summary
E184: Net book value
E185: =E103 -> Construction assets | G185: =Currency -> US$'000 | J185: =J119 -> 4600 | K185: =K119 -> 12880 | L185: 25301.04 | M185: 22770.936 | N185: 20240.832 | O185: 17710.728 | P185: 15180.624 | Q185: 12650.52 | R185: 10120.416 | S185: 7590.312 | U185: =J119
E186: =E104 -> Capital expenditure | G186: =Currency -> US$'000 | J186: =J153 -> 0 | K186: =K153 -> 0 | L186: 0 | M186: 0 | N186: 0 | O186: 0 | P186: 500 | Q186: 1375 | R186: 1000 | S186: 625 | U186: =J153
E187: Total | G187: =Currency -> US$'000 | J187: =SUM(J185:J186) -> 4600 | K187: =SUM(K185:K186) -> 12880 | L187: 25301.04 | M187: 22770.936 | N187: 20240.832 | O187: 17710.728 | P187: 15680.624 | Q187: 14025.52 | R187: 11120.416 | S187: 8215.312 | U187: =SUM(J185:J186)
E189: Depreciation
E190: =E185 -> Construction assets | G190: =Currency -> US$'000 | J190: =-J118 -> 0 | K190: =-K118 -> 0 | L190: 0 | M190: 2530.104 | N190: 2530.104 | O190: 2530.104 | P190: 2530.104 | Q190: 2530.104 | R190: 2530.104 | S190: 2530.104 | U190: =-J118
E191: =E186 -> Capital expenditure | G191: =Currency -> US$'000 | J191: =-J152 -> 0 | K191: =-K152 -> 0 | L191: 0 | M191: 0 | N191: 0 | O191: 0 | P191: 0 | Q191: 125 | R191: 375 | S191: 375 | U191: =-J152
E192: Total depreciation | G192: =Currency -> US$'000 | J192: =SUM(J190:J191) -> 0 | K192: =SUM(K190:K191) -> 0 | L192: 0 | M192: 2530.104 | N192: 2530.104 | O192: 2530.104 | P192: 2530.104 | Q192: 2655.104 | R192: 2905.104 | S192: 2905.104 | U192: =SUM(J190:J191)
E194: Tax depreciation
E195: =E185 -> Construction assets | G195: =Currency -> US$'000 | J195: =-J134 -> 0 | K195: =-K134 -> 0 | L195: 0 | M195: 5060.208 | N195: 4048.1664 | O195: 3238.53312 | P195: 2590.826496 | Q195: 2072.661197 | R195: 1658.128957 | S195: 1326.503166 | U195: =-J134
E196: =E186 -> Capital expenditure | G196: =Currency -> US$'000 | J196: =-J168 -> 0 | K196: =-K168 -> 0 | L196: 0 | M196: 0 | N196: 0 | O196: 0 | P196: 0 | Q196: 250 | R196: 625 | S196: 312.5 | U196: =-J168
E197: Total tax depreciation | G197: =Currency -> US$'000 | J197: =SUM(J195:J196) -> 0 | K197: =SUM(K195:K196) -> 0 | L197: 0 | M197: 5060.208 | N197: 4048.1664 | O197: 3238.53312 | P197: 2590.826496 | Q197: 2322.661197 | R197: 2283.128957 | S197: 1639.003166 | U197: =SUM(J195:J196)
D199: Control account
E201: Opening net book value | G201: =Currency -> US$'000 | J201: =I204 -> 0 | K201: =J204 -> 4600 | L201: 12880 | M201: 25301.04 | N201: 22770.936 | O201: 20240.832 | P201: 17710.728 | Q201: 15680.624 | R201: 14025.52 | S201: 11120.416 | T201: =Balance_Sheet -> BS | U201: =I204
E202: Capital expenditure | G202: =Currency -> US$'000 | J202: =J105 -> 4600 | K202: =K105 -> 8280 | L202: 12421.04 | M202: 0 | N202: 0 | O202: 0 | P202: 500 | Q202: 1000 | R202: 0 | S202: 0 | T202: =Cash_Flow_Statement -> CFS | U202: =J105
E203: Depreciation | G203: =Currency -> US$'000 | J203: =-J192 -> 0 | K203: =-K192 -> 0 | L203: 0 | M203: -2530.104 | N203: -2530.104 | O203: -2530.104 | P203: -2530.104 | Q203: -2655.104 | R203: -2905.104 | S203: -2905.104 | T203: =Income_Statement -> IS | U203: =-J192
E204: Closing net book value | G204: =Currency -> US$'000 | I204: ='Opening Balance Sheet'!$I$24 -> 0 | J204: =SUM(J201:J203) -> 4600 | K204: =SUM(K201:K203) -> 12880 | L204: 25301.04 | M204: 22770.936 | N204: 20240.832 | O204: 17710.728 | P204: 15680.624 | Q204: 14025.52 | R204: 11120.416 | S204: 8215.312 | T204: =Balance_Sheet -> BS | U204: =SUM(J201:J203)
D206: Reserve Accounts
E208: =Assumptions!E111 -> Capital expenditure | G208: =Currency -> US$'000 | J208: =J104 -> 0 | K208: =K104 -> 0 | L208: 0 | M208: 0 | N208: 0 | O208: 0 | P208: 500 | Q208: 1000 | R208: 0 | S208: 0 | U208: =J104
E210: =Assumptions!E120 -> MRA hold-back | G210: =Assumptions!G120 -> # Year(s) | I210: =Assumptions!$I$120 -> 4
E212: Percentage of period CAPEX per addition | G212: =Percentage -> % | J212: =IF(OR(J$10=0,$I210=0),,1/MIN(J$10,$I210)) -> 0 | K212: =IF(OR(K$10=0,$I210=0),,1/MIN(K$10,$I210)) -> 0 | L212: 0 | M212: 1 | N212: 0.5 | O212: 0.3333333333 | P212: 0.25 | Q212: 0.25 | R212: 0.25 | S212: 0.25 | U212: =IF(OR(J$10=0,$I210=0),,1/MIN(J$10,$I210))
E214: Period CAPEX additions amount | G214: =Currency -> US$'000 | J214: =J208*J212 -> 0 | K214: =K208*K212 -> 0 | L214: 0 | M214: 0 | N214: 0 | O214: 0 | P214: 125 | Q214: 250 | R214: 0 | S214: 0 | U214: =J208*J212
E216: Required addition in period | G216: =Currency -> US$'000 | J216: =IF($I210=0,,IF(J$10>0,SUM(OFFSET(J214,,,,$I210)),)) -> 0 | K216: =IF($I210=0,,IF(K$10>0,SUM(OFFSET(K214,,,,$I210)),)) -> 0 | L216: 0 | M216: 125 | N216: 375 | O216: 375 | P216: 375 | Q216: 250 | R216: 0 | S216: 0 | U216: =IF($I210=0,,IF(J$10>0,SUM(OFFSET(J214,,,,$I210)),))
D218: MRA
E220: Opening balance | G220: =Currency -> US$'000 | J220: =I223 -> 0 | K220: =J223 -> 0 | L220: 0 | M220: 0 | N220: 125 | O220: 500 | P220: 875 | Q220: 750 | R220: 0 | S220: 0 | T220: =Balance_Sheet -> BS | U220: =I223
E221: Funding: cash flow | G221: =Currency -> US$'000 | J221: =J216 -> 0 | K221: =K216 -> 0 | L221: 0 | M221: 125 | N221: 375 | O221: 375 | P221: 375 | Q221: 250 | R221: 0 | S221: 0 | T221: =Cash_Flow_Statement -> CFS | U221: =J216
E222: Release: cash flow | G222: =Currency -> US$'000 | J222: =-J208 -> 0 | K222: =-K208 -> 0 | L222: 0 | M222: 0 | N222: 0 | O222: 0 | P222: -500 | Q222: -1000 | R222: 0 | S222: 0 | T222: =Cash_Flow_Statement -> CFS | U222: =-J208
E223: Closing balance | G223: =Currency -> US$'000 | I223: ='Opening Balance Sheet'!$I$30 -> 0 | J223: =SUM(J220:J222) -> 0 | K223: =SUM(K220:K222) -> 0 | L223: 0 | M223: 125 | N223: 500 | O223: 875 | P223: 750 | Q223: 0 | R223: 0 | S223: 0 | T223: =Balance_Sheet -> BS | U223: =SUM(J220:J222)
C226: =Assumptions!C123 -> Debt and related | U226: =IFERROR(_xlfn.FORMULATEXT(J226),"") -> 
C227: =Assumptions!C124 -> Movements are assumed to occur at the end of each period
D229: Timing
E231: Debt term | G231: =No_of_Years -> # Year(s) | I231: =Assumptions!$I$132 -> 6
E233: Debt period | G233: =Unit -> # | J233: =IF(J$10<=$I231,J$10,) -> 0 | K233: =IF(K$10<=$I231,K$10,) -> 0 | L233: 0 | M233: 1 | N233: 2 | O233: 3 | P233: 4 | Q233: 5 | R233: 6 | S233: 0 | U233: =IF(J$10<=$I231,J$10,)
E234: Debt flag | G234: =Boolean -> [1,0] | J234: =IF(J233=0,,1) -> 0 | K234: =IF(K233=0,,1) -> 0 | L234: 0 | M234: 1 | N234: 1 | O234: 1 | P234: 1 | Q234: 1 | R234: 1 | S234: 0 | U234: =IF(J233=0,,1)
E235: Periods remaining | G235: =Unit -> # | J235: =IF(J234=0,,$I231-J233+1) -> 0 | K235: =IF(K234=0,,$I231-K233+1) -> 0 | L235: 0 | M235: 6 | N235: 5 | O235: 4 | P235: 3 | Q235: 2 | R235: 1 | S235: 0 | U235: =IF(J234=0,,$I231-J233+1)
D237: Control account excluding cash sweep
E239: Opening debt | G239: =Currency -> US$'000 | J239: =I242 -> 0 | K239: =J242 -> 0 | L239: 0 | M239: 16000 | N239: 13557.30866 | O239: 11041.72448 | P239: 8445.377868 | Q239: 5750.562828 | R239: 2938.551665 | S239: 0 | U239: =I242
E240: Refinanced at completion | G240: =Currency -> US$'000 | J240: =-Construction!J67 -> 0 | K240: =-Construction!K67 -> 0 | L240: =-Construction!L67 -> 16000 | M240: =-Construction!M67 -> 0 | N240: =-Construction!N67 -> 0 | O240: =-Construction!O67 -> 0 | P240: =-Construction!P67 -> 0 | Q240: =-Construction!Q67 -> 0 | R240: =-Construction!R67 -> 0 | S240: =-Construction!S67 -> 0 | U240: =-Construction!J67
E241: ="Calculated "&I271&" Debt repayments" -> Calculated Annuity Debt repayments | G241: =Currency -> US$'000 | J241: =-J290 -> 0 | K241: =-K290 -> 0 | L241: 0 | M241: -2442.691339 | N241: -2515.584185 | O241: -2596.346608 | P241: -2694.81504 | Q241: -2812.011163 | R241: -2938.551665 | S241: 0 | U241: =-J290
E242: Closing debt | G242: =Currency -> US$'000 | J242: =SUM(J239:J241) -> 0 | K242: =SUM(K239:K241) -> 0 | L242: =SUM(L239:L241) -> 16000 | M242: 13557.30866 | N242: 11041.72448 | O242: 8445.377868 | P242: 5750.562828 | Q242: 2938.551665 | R242: 0 | S242: 0 | U242: =SUM(J239:J241)
D244: Control account including sweeps
E246: Opening debt | G246: =Currency -> US$'000 | J246: =I250 -> 0 | K246: =J250 -> 0 | L246: 0 | M246: 16000 | N246: 13557.30866 | O246: 11041.72448 | P246: 8445.377868 | Q246: 5750.562828 | R246: 2938.551665 | S246: 0 | T246: =Balance_Sheet -> BS | U246: =I250
E247: Refinanced at completion | G247: US$'000 | J247: =-Construction!J67 -> 0 | K247: =-Construction!K67 -> 0 | L247: =-Construction!L67 -> 16000 | M247: =-Construction!M67 -> 0 | N247: =-Construction!N67 -> 0 | O247: =-Construction!O67 -> 0 | P247: =-Construction!P67 -> 0 | Q247: =-Construction!Q67 -> 0 | R247: =-Construction!R67 -> 0 | S247: =-Construction!S67 -> 0 | T247: =Cash_Flow_Statement -> CFS | U247: =-Construction!J67
E248: =I271&" Debt repayments" -> Annuity Debt repayments | G248: US$'000 | J248: =-MIN(J290,SUM(J246:J247)) -> 0 | K248: =-MIN(K290,SUM(K246:K247)) -> 0 | L248: 0 | M248: -2442.691339 | N248: -2515.584185 | O248: -2596.346608 | P248: -2694.81504 | Q248: -2812.011163 | R248: -2938.551665 | S248: 0 | T248: =Cash_Flow_Statement -> CFS | U248: =-MIN(J290,SUM(J246:J247))
E249: Cash sweep repayments | G249: US$'000 | J249: =-J315 -> 0 | K249: =-K315 -> 0 | L249: 0 | M249: 0 | N249: 0 | O249: 0 | P249: 0 | Q249: 0 | R249: 0 | S249: 0 | T249: =Cash_Flow_Statement -> CFS | U249: =-J315
E250: Closing debt | G250: US$'000 | J250: =SUM(J246:J249) -> 0 | K250: =SUM(K246:K249) -> 0 | L250: =SUM(L246:L249) -> 16000 | M250: 13557.30866 | N250: 11041.72448 | O250: 8445.377868 | P250: 5750.562828 | Q250: 2938.551665 | R250: 0 | S250: 0 | T250: =Balance_Sheet -> BS | U250: =SUM(J246:J249)
D252: =Assumptions!D126 -> Interest
E254: BBSW | G254: =Percentage&" p.a." -> % p.a. | J254: =Assumptions!J128 -> 0.002 | K254: =Assumptions!K128 -> 0.0015 | L254: =Assumptions!L128 -> 0.003 | M254: =Assumptions!M128 -> 0.005 | N254: =Assumptions!N128 -> 0.0075 | O254: =Assumptions!O128 -> 0.011 | P254: =Assumptions!P128 -> 0.014 | Q254: =Assumptions!Q128 -> 0.015 | R254: =Assumptions!R128 -> 0.015 | S254: =Assumptions!S128 -> 0.015 | U254: =Assumptions!J128
E255: Margin | G255: =Percentage&" p.a." -> % p.a. | I255: =Assumptions!$I$133 -> 0.03
E256: Interest rate | G256: =Percentage&" p.a." -> % p.a. | J256: =$I255+J254 -> 0.032 | K256: =$I255+K254 -> 0.0315 | L256: 0.033 | M256: 0.035 | N256: 0.0375 | O256: 0.041 | P256: 0.044 | Q256: 0.045 | R256: 0.045 | S256: 0.045 | U256: =$I255+J254
E258: Opening debt | G258: =Currency -> US$'000 | H258: ="Row "&ROW(J246) -> Row 246 | J258: =J246 -> 0 | K258: =K246 -> 0 | L258: 0 | M258: 16000 | N258: 13557.30866 | O258: 11041.72448 | P258: 8445.377868 | Q258: 5750.562828 | R258: 2938.551665 | S258: 0 | U258: =J246
E260: Interest | G260: =Currency -> US$'000 | J260: =J258*J256*MIN(J$8,Days_in_Year)/Days_in_Year -> 0 | K260: 0 | L260: 0 | M260: 560 | N260: 508.3990748 | O260: 452.7107035 | P260: 371.5966262 | Q260: 258.7753272 | R260: 132.2348249 | S260: 0 | U260: =J258*J256*MIN(J$8,Days_in_Year)/Days_in_Year
D262: Interest control account
E264: Opening interest payable | G264: =Currency -> US$'000 | J264: =I267 -> 0 | K264: =J267 -> 0 | L264: 0 | M264: 0 | N264: 0 | O264: 0 | P264: 0 | Q264: 0 | R264: 0 | S264: 0 | T264: =Balance_Sheet -> BS | U264: =I267
E265: Interest expense | G265: =Currency -> US$'000 | J265: =J260 -> 0 | K265: =K260 -> 0 | L265: 0 | M265: 560 | N265: 508.3990748 | O265: 452.7107035 | P265: 371.5966262 | Q265: 258.7753272 | R265: 132.2348249 | S265: 0 | T265: =Income_Statement -> IS | U265: =J260
E266: Interest paid | G266: =Currency -> US$'000 | J266: =-SUM(J264:J265) -> 0 | K266: =-SUM(K264:K265) -> 0 | L266: 0 | M266: -560 | N266: -508.3990748 | O266: -452.7107035 | P266: -371.5966262 | Q266: -258.7753272 | R266: -132.2348249 | S266: 0 | T266: =Cash_Flow_Statement -> CFS | U266: =-SUM(J264:J265)
E267: Closing interest payable | G267: =Currency -> US$'000 | I267: ='Opening Balance Sheet'!$I$38 -> 0 | J267: =SUM(J264:J266) -> 0 | K267: =SUM(K264:K266) -> 0 | L267: =SUM(L264:L266) -> 0 | M267: 0 | N267: 0 | O267: 0 | P267: 0 | Q267: 0 | R267: 0 | S267: 0 | T267: =Balance_Sheet -> BS | U267: =SUM(J264:J266)
D269: Principal repayments
E271: Repayment method | G271: Selection | I271: =Assumptions!$I$135 -> Annuity
E273: Annuity
E274: Opening balance | G274: =Currency -> US$'000 | J274: =J239 -> 0 | K274: =K239 -> 0 | L274: 0 | M274: 16000 | N274: 13557.30866 | O274: 11041.72448 | P274: 8445.377868 | Q274: 5750.562828 | R274: 2938.551665 | S274: 0 | U274: =J239
E275: Interest rate | G275: =Percentage&" p.a." -> % p.a. | J275: =J256 -> 0.032 | K275: =K256 -> 0.0315 | L275: 0.033 | M275: 0.035 | N275: 0.0375 | O275: 0.041 | P275: 0.044 | Q275: 0.045 | R275: 0.045 | S275: 0.045 | U275: =J256
E276: Number of periods remaining | G276: =Unit -> # | J276: =J235 -> 0 | K276: =K235 -> 0 | L276: 0 | M276: 6 | N276: 5 | O276: 4 | P276: 3 | Q276: 2 | R276: 1 | S276: 0 | U276: =J235
E278: Annuity payment | G278: =Currency -> US$'000 | J278: =-IF(J276=0,,PMT(J275,J276,J274)) -> 0 | K278: =-IF(K276=0,,PMT(K275,K276,K274)) -> 0 | L278: 0 | M278: 3002.691339 | N278: 3023.98326 | O278: 3049.057312 | P278: 3066.411666 | Q278: 3070.78649 | R278: 3070.78649 | S278: 0 | U278: =-IF(J276=0,,PMT(J275,J276,J274))
E279: Less: interest | G279: =Currency -> US$'000 | J279: =-J274*J275*MIN(J$8,Days_in_Year)/Days_in_Year -> 0 | K279: 0 | L279: 0 | M279: -560 | N279: -508.3990748 | O279: -452.7107035 | P279: -371.5966262 | Q279: -258.7753272 | R279: -132.2348249 | S279: 0 | U279: =-J274*J275*MIN(J$8,Days_in_Year)/Days_in_Year
E280: Principal repayment | G280: =Currency -> US$'000 | J280: =SUM(J278:J279) -> 0 | K280: =SUM(K278:K279) -> 0 | L280: 0 | M280: 2442.691339 | N280: 2515.584185 | O280: 2596.346608 | P280: 2694.81504 | Q280: 2812.011163 | R280: 2938.551665 | S280: 0 | U280: =SUM(J278:J279)
E282: Sculpted
E283: CFADS | G283: =Currency -> US$'000 | J283: ='Cash Flow Waterfall'!J46 -> 0 | K283: ='Cash Flow Waterfall'!K46 -> 0 | L283: ='Cash Flow Waterfall'!L46 -> 5500 | M283: ='Cash Flow Waterfall'!M46 -> 3442.123288 | N283: ='Cash Flow Waterfall'!N46 -> 3861.543925 | O283: ='Cash Flow Waterfall'!O46 -> 3902.811581 | P283: ='Cash Flow Waterfall'!P46 -> 3944.804883 | Q283: ='Cash Flow Waterfall'!Q46 -> 4105.610096 | R283: ='Cash Flow Waterfall'!R46 -> 4031.828618 | S283: ='Cash Flow Waterfall'!S46 -> 3816.37193 | U283: ='Cash Flow Waterfall'!J46
E284: Sculpted ratio target | G284: x | I284: =Assumptions!$I$144 -> 1.5
E285: Target debt service | G285: =Currency -> US$'000 | J285: =IF(J$10=0,,MAX(IF($I284=0,,J283/$I284),0)) -> 0 | K285: =IF(K$10=0,,MAX(IF($I284=0,,K283/$I284),0)) -> 0 | L285: 0 | M285: 2294.748858 | N285: 2574.362617 | O285: 2601.874388 | P285: 2629.869922 | Q285: 2737.073397 | R285: 2687.885745 | S285: 2544.247953 | U285: =IF(J$10=0,,MAX(IF($I284=0,,J283/$I284),0))
E286: Less: interest | G286: =Currency -> US$'000 | J286: =-J260 -> 0 | K286: =-K260 -> 0 | L286: 0 | M286: -560 | N286: -508.3990748 | O286: -452.7107035 | P286: -371.5966262 | Q286: -258.7753272 | R286: -132.2348249 | S286: 0 | U286: =-J260
E287: Principal repayment | G287: =Currency -> US$'000 | J287: =MAX(SUM(J285:J286),0) -> 0 | K287: =MAX(SUM(K285:K286),0) -> 0 | L287: 0 | M287: 1734.748858 | N287: 2065.963542 | O287: 2149.163684 | P287: 2258.273296 | Q287: 2478.29807 | R287: 2555.65092 | S287: 2544.247953 | U287: =MAX(SUM(J285:J286),0)
E289: Active
E290: Principal repayment | G290: =Currency -> US$'000 | J290: =IF(J235=1,SUM(J239:J240),IF($I271=DSCR_Sculpted,MIN(J287,SUM(J239:J240)),J280)) -> 0 | K290: 0 | L290: 0 | M290: 2442.691339 | N290: 2515.584185 | O290: 2596.346608 | P290: 2694.81504 | Q290: 2812.011163 | R290: 2938.551665 | S290: 0 | U290: =IFERROR(_xlfn.FORMULATEXT(J290),"") -> =IF(J235=1,SUM(J239:J240),IF($I271=DSCR_Sculpted,MIN(J287,SUM(J239:J240)),J280))
E292: Cash sweep
E293: =Assumptions!E162 -> Cash sweep? | G293: Selection | I293: =Assumptions!I162 -> No
E294: =Assumptions!E163 -> Cash sweep ratio | G294: x | I294: =Assumptions!I163 -> 1.3
E295: =Assumptions!E164 -> Excess sweep % | G295: =Percentage -> % | I295: =Assumptions!I164 -> 0.35
E297: =E330 -> DSCR | G297: x | H297: ="Row "&ROW(J330) -> Row 330 | J297: =J330 -> 0 | K297: =K330 -> 0 | L297: 0 | M297: 1.146346027 | N297: 1.276972653 | O297: 1.280005976 | P297: 1.28645639 | Q297: 1.336989761 | R297: 1.312962862 | S297: 0 | U297: =J330
E299: Cash sweep in period | G299: =Boolean -> [1,0] | J299: =IF($I293=No,,AND(J$10>=1,J246>0,J297>$I294)*1) -> 0 | K299: 0 | L299: 0 | M299: 0 | N299: 0 | O299: 0 | P299: 0 | Q299: 0 | R299: 0 | S299: 0 | U299: =IF($I293=No,,AND(J$10>=1,J246>0,J297>$I294)*1)
E301: CFADS | G301: =Currency -> US$'000 | J301: ='Cash Flow Waterfall'!J46 -> 0 | K301: ='Cash Flow Waterfall'!K46 -> 0 | L301: ='Cash Flow Waterfall'!L46 -> 5500 | M301: ='Cash Flow Waterfall'!M46 -> 3442.123288 | N301: ='Cash Flow Waterfall'!N46 -> 3861.543925 | O301: ='Cash Flow Waterfall'!O46 -> 3902.811581 | P301: ='Cash Flow Waterfall'!P46 -> 3944.804883 | Q301: ='Cash Flow Waterfall'!Q46 -> 4105.610096 | R301: ='Cash Flow Waterfall'!R46 -> 4031.828618 | S301: ='Cash Flow Waterfall'!S46 -> 3816.37193 | U301: ='Cash Flow Waterfall'!J46
E303: Interest | G303: =Currency -> US$'000 | J303: =J260 -> 0 | K303: =K260 -> 0 | L303: 0 | M303: 560 | N303: 508.3990748 | O303: 452.7107035 | P303: 371.5966262 | Q303: 258.7753272 | R303: 132.2348249 | S303: 0 | U303: =J260
... 187 more rows

Sheet Income Statement
A1: =IF(ISERROR(RIGHT(CELL("filename",A1),LEN(CELL("filename",A1))-FIND("]",CELL("filename",A1)))), "", RIGHT(CELL("filename",A1),LEN(CELL("filename",A1))-FIND("]",CELL("filename",A1)))) -> Income Statement
A2: =Model_Name -> Model 13 - Equity Completed.xlsm
A3: Navigator
B4: Error Checks: | F4: =Overall_Error_Check -> 0
J5: =Timing!J5 -> 2024-06-30 | K5: =Timing!K5 -> 2025-06-30 | L5: =Timing!L5 -> 2026-06-30 | M5: =Timing!M5 -> 2027-06-30 | N5: =Timing!N5 -> 2028-06-30 | O5: =Timing!O5 -> 2029-06-30 | P5: =Timing!P5 -> 2030-06-30 | Q5: =Timing!Q5 -> 2031-06-30 | R5: =Timing!R5 -> 2032-06-30 | S5: =Timing!S5 -> 2033-06-30
C6: =Timing!C6 -> Start Date | J6: =Timing!J6 -> 2023-07-01 | K6: =Timing!K6 -> 2024-07-01 | L6: =Timing!L6 -> 2025-07-01 | M6: =Timing!M6 -> 2026-07-01 | N6: =Timing!N6 -> 2027-07-01 | O6: =Timing!O6 -> 2028-07-01 | P6: =Timing!P6 -> 2029-07-01 | Q6: =Timing!Q6 -> 2030-07-01 | R6: =Timing!R6 -> 2031-07-01 | S6: =Timing!S6 -> 2032-07-01
C7: =Timing!C7 -> End Date | J7: =Timing!J7 -> 2024-06-30 | K7: =Timing!K7 -> 2025-06-30 | L7: =Timing!L7 -> 2026-06-30 | M7: =Timing!M7 -> 2027-06-30 | N7: =Timing!N7 -> 2028-06-30 | O7: =Timing!O7 -> 2029-06-30 | P7: =Timing!P7 -> 2030-06-30 | Q7: =Timing!Q7 -> 2031-06-30 | R7: =Timing!R7 -> 2032-06-30 | S7: =Timing!S7 -> 2033-06-30
C8: =Timing!C8 -> Number of Days | J8: =Timing!J8 -> 366 | K8: =Timing!K8 -> 365 | L8: =Timing!L8 -> 365 | M8: =Timing!M8 -> 365 | N8: =Timing!N8 -> 366 | O8: =Timing!O8 -> 365 | P8: =Timing!P8 -> 365 | Q8: =Timing!Q8 -> 365 | R8: =Timing!R8 -> 366 | S8: =Timing!S8 -> 365
C9: =Timing!C9 -> Construction period | J9: =Timing!J9 -> 1 | K9: =Timing!K9 -> 2 | L9: =Timing!L9 -> 3 | M9: =Timing!M9 -> 0 | N9: =Timing!N9 -> 0 | O9: =Timing!O9 -> 0 | P9: =Timing!P9 -> 0 | Q9: =Timing!Q9 -> 0 | R9: =Timing!R9 -> 0 | S9: =Timing!S9 -> 0
C10: =Timing!C10 -> Operations period | J10: =Timing!J10 -> 0 | K10: =Timing!K10 -> 0 | L10: =Timing!L10 -> 0 | M10: =Timing!M10 -> 1 | N10: =Timing!N10 -> 2 | O10: =Timing!O10 -> 3 | P10: =Timing!P10 -> 4 | Q10: =Timing!Q10 -> 5 | R10: =Timing!R10 -> 6 | S10: =Timing!S10 -> 7
C11: =Timing!C11 -> Counter | J11: =Timing!J11 -> 1 | K11: =Timing!K11 -> 2 | L11: =Timing!L11 -> 3 | M11: =Timing!M11 -> 4 | N11: =Timing!N11 -> 5 | O11: =Timing!O11 -> 6 | P11: =Timing!P11 -> 7 | Q11: =Timing!Q11 -> 8 | R11: =Timing!R11 -> 9 | S11: =Timing!S11 -> 10
B13: =MAX($B$12:$B12)+1 -> 1 | C13: =A1 -> Income Statement | U13: =IFERROR(_xlfn.FORMULATEXT(C13),"") -> =A1
U14: =IFERROR(_xlfn.FORMULATEXT(J14),"") -> 
D15: Revenue | G15: =Currency -> US$'000 | J15: =Operations!J45 -> 0 | K15: =Operations!K45 -> 0 | L15: =Operations!L45 -> 0 | M15: =Operations!M45 -> 5500 | N15: =Operations!N45 -> 5551.7 | O15: =Operations!O45 -> 5599.132 | P15: =Operations!P45 -> 5642.44604 | Q15: =Operations!Q45 -> 5681.787866 | R15: =Operations!R45 -> 5717.29904 | S15: =Operations!S45 -> 5749.117052 | U15: =Operations!J45
D16: COGS | G16: =Currency -> US$'000 | J16: =-Operations!J69 -> 0 | K16: =-Operations!K69 -> 0 | L16: =-Operations!L69 -> 0 | M16: =-Operations!M69 -> -1100 | N16: =-Operations!N69 -> -1078 | O16: =-Operations!O69 -> -1056.44 | P16: =-Operations!P69 -> -1035.3112 | Q16: =-Operations!Q69 -> -1014.604976 | R16: =-Operations!R69 -> -994.3128765 | S16: =-Operations!S69 -> -974.426619 | U16: =-Operations!J69
D17: Gross Profit | G17: =Currency -> US$'000 | J17: =SUM(J15:J16) -> 0 | K17: =SUM(K15:K16) -> 0 | L17: 0 | M17: 4400 | N17: 4473.7 | O17: 4542.692 | P17: 4607.13484 | Q17: 4667.18289 | R17: 4722.986163 | S17: 4774.690433 | U17: =IFERROR(_xlfn.FORMULATEXT(J17),"") -> =SUM(J15:J16)
U18: =IFERROR(_xlfn.FORMULATEXT(J18),"") -> 
D19: Operating expenditure | G19: =Currency -> US$'000 | J19: =-Operations!J94 -> 0 | K19: =-Operations!K94 -> 0 | L19: =-Operations!L94 -> 0 | M19: =-Operations!M94 -> -200 | N19: =-Operations!N94 -> -225 | O19: =-Operations!O94 -> -250 | P19: =-Operations!P94 -> -275 | Q19: =-Operations!Q94 -> -300 | R19: =-Operations!R94 -> -325 | S19: =-Operations!S94 -> -350 | U19: =-Operations!J94
D20: EBITDA | G20: =Currency -> US$'000 | J20: =J17+J19 -> 0 | K20: =K17+K19 -> 0 | L20: 0 | M20: 4200 | N20: 4248.7 | O20: 4292.692 | P20: 4332.13484 | Q20: 4367.18289 | R20: 4397.986163 | S20: 4424.690433 | U20: =J17+J19
D22: Depreciation | G22: =Currency -> US$'000 | J22: =Operations!J203 -> 0 | K22: =Operations!K203 -> 0 | L22: =Operations!L203 -> 0 | M22: =Operations!M203 -> -2530.104 | N22: =Operations!N203 -> -2530.104 | O22: =Operations!O203 -> -2530.104 | P22: =Operations!P203 -> -2530.104 | Q22: =Operations!Q203 -> -2655.104 | R22: =Operations!R203 -> -2905.104 | S22: =Operations!S203 -> -2905.104 | U22: =Operations!J203
D23: EBIT | G23: =Currency -> US$'000 | J23: =J20+J22 -> 0 | K23: =K20+K22 -> 0 | L23: 0 | M23: 1669.896 | N23: 1718.596 | O23: 1762.588 | P23: 1802.03084 | Q23: 1712.07889 | R23: 1492.882163 | S23: 1519.586433 | U23: =J20+J22
D25: Interest Expense | G25: =Currency -> US$'000 | J25: =-Operations!J265-Operations!J412+Operations!J431-Operations!J472 -> 0 | K25: =-Operations!K265-Operations!K412+Operations!K431-Operations!K472 -> 0 | L25: =-Operations!L265-Operations!L412+Operations!L431-Operations!L472 -> 0 | M25: =-Operations!M265-Operations!M412+Operations!M431-Operations!M472 -> -780.026 | N25: =-Operations!N265-Operations!N412+Operations!N431-Operations!N472 -> -676.3035509 | O25: =-Operations!O265-Operations!O412+Operations!O431-Operations!O472 -> -622.0027939 | P25: =-Operations!P265-Operations!P412+Operations!P431-Operations!P472 -> -534.590156 | Q25: =-Operations!Q265-Operations!Q412+Operations!Q431-Operations!Q472 -> -401.6769142 | R25: =-Operations!R265-Operations!R412+Operations!R431-Operations!R472 -> -132.2348249 | S25: =-Operations!S265-Operations!S412+Operations!S431-Operations!S472 -> 0 | U25: =-Operations!J265-Operations!J412+Operations!J431-Operations!J472
D26: NPBT | G26: =Currency -> US$'000 | J26: =J23+J25 -> 0 | K26: =K23+K25 -> 0 | L26: 0 | M26: 889.87 | N26: 1042.292449 | O26: 1140.585206 | P26: 1267.440684 | Q26: 1310.401975 | R26: 1360.647338 | S26: 1519.586433 | U26: =J23+J25
D28: Tax Expense | G28: =Currency -> US$'000 | J28: =-Operations!J568 -> 0 | K28: =-Operations!K568 -> 0 | L28: =-Operations!L568 -> 0 | M28: =-Operations!M568 -> -268.461 | N28: =-Operations!N568 -> -314.1877347 | O28: =-Operations!O568 -> -343.6755618 | P28: =-Operations!P568 -> -381.7322052 | Q28: =-Operations!Q568 -> -394.6205926 | R28: =-Operations!R568 -> -409.6942015 | S28: =-Operations!S568 -> -457.3759299 | U28: =-Operations!J568
D29: NPAT | G29: =Currency -> US$'000 | J29: =J26+J28 -> 0 | K29: =K26+K28 -> 0 | L29: 0 | M29: 621.409 | N29: 728.1047144 | O29: 796.9096443 | P29: 885.7084788 | Q29: 915.7813827 | R29: 950.9531368 | S29: 1062.210503 | U29: =J26+J28

Sheet Opening Balance Sheet
A1: =IF(ISERROR(RIGHT(CELL("filename",A1),LEN(CELL("filename",A1))-FIND("]",CELL("filename",A1)))), "", RIGHT(CELL("filename",A1),LEN(CELL("filename",A1))-FIND("]",CELL("filename",A1)))) -> Opening Balance Sheet
A2: =Model_Name -> Model 13 - Equity Completed.xlsm
A3: Navigator
B4: Error Checks: | F4: =Overall_Error_Check -> 0
I5: =Model_Start_Date-1 -> 2023-06-30
C6: =Timing!C6 -> Start Date
C7: =Timing!C7 -> End Date
C8: =Timing!C8 -> Number of Days
C9: =Timing!C9 -> Construction period
C10: =Timing!C10 -> Operations period
C11: =Timing!C11 -> Counter
B13: =MAX($B$12:$B12)+1 -> 1 | C13: =A1 -> Opening Balance Sheet | K13: =IFERROR(_xlfn.FORMULATEXT(C13),"") -> =A1
C15: ='Balance Sheet'!C15 -> Current assets
E16: ='Balance Sheet'!E16 -> Opening cash | G16: =Currency -> US$'000 | K16: =IFERROR(_xlfn.FORMULATEXT(I16),"") -> 
E17: ='Balance Sheet'!E17 -> Net cash flow | G17: US$'000
D18: ='Balance Sheet'!D18 -> Cash | G18: US$'000 | I18: 0
D19: ='Balance Sheet'!D19 -> Accounts receivable | G19: US$'000 | I19: 0
D20: ='Balance Sheet'!D20 -> Other current assets | G20: US$'000 | I20: 0
D21: ='Balance Sheet'!D21 -> Total current assets | G21: US$'000 | I21: =SUM(I16:I20) -> 0 | K21: =SUM(I16:I20)
C23: ='Balance Sheet'!C23 -> Non-current assets
D24: ='Balance Sheet'!D24 -> PP&E | G24: =Currency -> US$'000 | I24: 0
D25: ='Balance Sheet'!D25 -> Deferred tax assets | G25: =Currency -> US$'000 | I25: 0
D26: ='Balance Sheet'!D26 -> Total non-current assets | G26: =Currency -> US$'000 | I26: =SUM(I24:I25) -> 0 | K26: =SUM(I24:I25)
C28: ='Balance Sheet'!C28 -> Reserve accounts
D29: ='Balance Sheet'!D29 -> DSRA | G29: =Currency -> US$'000 | I29: 0
D30: ='Balance Sheet'!D30 -> MRA | G30: =Currency -> US$'000 | I30: 0
D31: ='Balance Sheet'!D31 -> Total reserve accounts | G31: =Currency -> US$'000 | I31: =SUM(I29:I30) -> 0 | K31: =SUM(I29:I30)
C33: ='Balance Sheet'!C33 -> Total assets | G33: =Currency -> US$'000 | I33: =I21+I26+I31 -> 0 | K33: =I21+I26+I31
C35: ='Balance Sheet'!C35 -> Current liabilities
D36: ='Balance Sheet'!D36 -> Accounts payable | G36: =Currency -> US$'000 | I36: 0
D37: ='Balance Sheet'!D37 -> Dividends payable | G37: US$'000 | I37: 0
D38: ='Balance Sheet'!D38 -> Interest payable | G38: US$'000 | I38: 0
D39: ='Balance Sheet'!D39 -> Tax payable | G39: US$'000 | I39: 0
D40: ='Balance Sheet'!D40 -> Other current liabilities | G40: US$'000 | I40: 0
D41: ='Balance Sheet'!D41 -> Total current liabilities | G41: US$'000 | I41: =SUM(I36:I40) -> 0 | K41: =SUM(I36:I40)
C43: ='Balance Sheet'!C43 -> Non-current liabilities
D44: ='Balance Sheet'!D44 -> Debt | G44: =Currency -> US$'000 | I44: 0
D45: ='Balance Sheet'!D45 -> Convertible debt | G45: =Currency -> US$'000 | I45: 0
D46: ='Balance Sheet'!D46 -> Working capital facility | G46: =Currency -> US$'000 | I46: 0
D47: ='Balance Sheet'!D47 -> Deferred tax liabilities | G47: =Currency -> US$'000 | I47: 0
D48: ='Balance Sheet'!D48 -> Total non-current liabilities | G48: =Currency -> US$'000 | I48: =SUM(I44:I47) -> 0 | K48: =SUM(I44:I47)
C50: ='Balance Sheet'!C50 -> Total liabilities | G50: =Currency -> US$'000 | I50: =I41+I48 -> 0 | K50: =I41+I48
C52: ='Balance Sheet'!C52 -> Net assets | G52: =Currency -> US$'000 | I52: =I33-I50 -> 0 | K52: =I33-I50
C55: ='Balance Sheet'!C55 -> Equity
D56: ='Balance Sheet'!D56 -> Ordinary equity | G56: =Currency -> US$'000 | I56: 0
E57: ='Balance Sheet'!E57 -> Opening retained profits | G57: US$'000 | I57: =I52-SUM(I56,I58,I59) -> 0 | K57: =I52-SUM(I56,I58,I59)
E58: ='Balance Sheet'!E58 -> NPAT | G58: US$'000 | I58: 0
E59: ='Balance Sheet'!E59 -> Dividends declared | G59: US$'000 | I59: 0
D60: ='Balance Sheet'!D60 -> Retained profits | G60: US$'000 | I60: =SUM(I57:I59) -> 0 | K60: =SUM(I57:I59)
D61: ='Balance Sheet'!D61 -> Total equity | G61: US$'000 | I61: =I56+I60 -> 0 | K61: =I56+I60
C64: ='Balance Sheet'!C64 -> Checks | K64: =IFERROR(_xlfn.FORMULATEXT(I64),"") -> 
K65: =IFERROR(_xlfn.FORMULATEXT(I65),"") -> 
D66: ='Balance Sheet'!D66 -> PF error check | G66: =Boolean -> [1,0] | I66: =IF(ISERROR(I52-I61),1,0) -> 0 | K66: =IFERROR(_xlfn.FORMULATEXT(I66),"") -> =IF(ISERROR(I52-I61),1,0)
D67: ='Balance Sheet'!D67 -> Balance check | G67: =Boolean -> [1,0] | I67: =IF(I66<>0,,(ROUND(I52-I61,Rounding_Accuracy)<>0)*1) -> 0 | K67: =IFERROR(_xlfn.FORMULATEXT(I67),"") -> =IF(I66<>0,,(ROUND(I52-I61,Rounding_Accuracy)<>0)*1)
D68: ='Balance Sheet'!D68 -> Insolvency check | G68: =Boolean -> [1,0] | I68: =IF(SUM(I66:I67)<>0,,(I52<0)*1) -> 0 | K68: =IFERROR(_xlfn.FORMULATEXT(I68),"") -> =IF(SUM(I66:I67)<>0,,(I52<0)*1)

Sheet Balance Sheet
A1: =IF(ISERROR(RIGHT(CELL("filename",A1),LEN(CELL("filename",A1))-FIND("]",CELL("filename",A1)))), "", RIGHT(CELL("filename",A1),LEN(CELL("filename",A1))-FIND("]",CELL("filename",A1)))) -> Balance Sheet
A2: =Model_Name -> Model 13 - Equity Completed.xlsm
A3: Navigator
B4: Error Checks: | F4: =Overall_Error_Check -> 0
J5: =Timing!J5 -> 2024-06-30 | K5: =Timing!K5 -> 2025-06-30 | L5: =Timing!L5 -> 2026-06-30 | M5: =Timing!M5 -> 2027-06-30 | N5: =Timing!N5 -> 2028-06-30 | O5: =Timing!O5 -> 2029-06-30 | P5: =Timing!P5 -> 2030-06-30 | Q5: =Timing!Q5 -> 2031-06-30 | R5: =Timing!R5 -> 2032-06-30 | S5: =Timing!S5 -> 2033-06-30
C6: =Timing!C6 -> Start Date | J6: =Timing!J6 -> 2023-07-01 | K6: =Timing!K6 -> 2024-07-01 | L6: =Timing!L6 -> 2025-07-01 | M6: =Timing!M6 -> 2026-07-01 | N6: =Timing!N6 -> 2027-07-01 | O6: =Timing!O6 -> 2028-07-01 | P6: =Timing!P6 -> 2029-07-01 | Q6: =Timing!Q6 -> 2030-07-01 | R6: =Timing!R6 -> 2031-07-01 | S6: =Timing!S6 -> 2032-07-01
C7: =Timing!C7 -> End Date | J7: =Timing!J7 -> 2024-06-30 | K7: =Timing!K7 -> 2025-06-30 | L7: =Timing!L7 -> 2026-06-30 | M7: =Timing!M7 -> 2027-06-30 | N7: =Timing!N7 -> 2028-06-30 | O7: =Timing!O7 -> 2029-06-30 | P7: =Timing!P7 -> 2030-06-30 | Q7: =Timing!Q7 -> 2031-06-30 | R7: =Timing!R7 -> 2032-06-30 | S7: =Timing!S7 -> 2033-06-30
C8: =Timing!C8 -> Number of Days | J8: =Timing!J8 -> 366 | K8: =Timing!K8 -> 365 | L8: =Timing!L8 -> 365 | M8: =Timing!M8 -> 365 | N8: =Timing!N8 -> 366 | O8: =Timing!O8 -> 365 | P8: =Timing!P8 -> 365 | Q8: =Timing!Q8 -> 365 | R8: =Timing!R8 -> 366 | S8: =Timing!S8 -> 365
C9: =Timing!C9 -> Construction period | J9: =Timing!J9 -> 1 | K9: =Timing!K9 -> 2 | L9: =Timing!L9 -> 3 | M9: =Timing!M9 -> 0 | N9: =Timing!N9 -> 0 | O9: =Timing!O9 -> 0 | P9: =Timing!P9 -> 0 | Q9: =Timing!Q9 -> 0 | R9: =Timing!R9 -> 0 | S9: =Timing!S9 -> 0
C10: =Timing!C10 -> Operations period | J10: =Timing!J10 -> 0 | K10: =Timing!K10 -> 0 | L10: =Timing!L10 -> 0 | M10: =Timing!M10 -> 1 | N10: =Timing!N10 -> 2 | O10: =Timing!O10 -> 3 | P10: =Timing!P10 -> 4 | Q10: =Timing!Q10 -> 5 | R10: =Timing!R10 -> 6 | S10: =Timing!S10 -> 7
C11: =Timing!C11 -> Counter | J11: =Timing!J11 -> 1 | K11: =Timing!K11 -> 2 | L11: =Timing!L11 -> 3 | M11: =Timing!M11 -> 4 | N11: =Timing!N11 -> 5 | O11: =Timing!O11 -> 6 | P11: =Timing!P11 -> 7 | Q11: =Timing!Q11 -> 8 | R11: =Timing!R11 -> 9 | S11: =Timing!S11 -> 10
B13: =MAX($B$12:$B12)+1 -> 1 | C13: =A1 -> Balance Sheet
C15: Current assets
E16: Opening cash | G16: =Currency -> US$'000 | J16: =IF(J$11=1,'Opening Balance Sheet'!$I$18,I18) -> 0 | K16: =IF(K$11=1,'Opening Balance Sheet'!$I$18,J18) -> 0 | L16: =IF(L$11=1,'Opening Balance Sheet'!$I$18,K18) -> 0 | M16: =IF(M$11=1,'Opening Balance Sheet'!$I$18,L18) -> 0 | N16: =IF(N$11=1,'Opening Balance Sheet'!$I$18,M18) -> 0 | O16: =IF(O$11=1,'Opening Balance Sheet'!$I$18,N18) -> 0 | P16: =IF(P$11=1,'Opening Balance Sheet'!$I$18,O18) -> 0 | Q16: =IF(Q$11=1,'Opening Balance Sheet'!$I$18,P18) -> 0 | R16: =IF(R$11=1,'Opening Balance Sheet'!$I$18,Q18) -> 0 | S16: =IF(S$11=1,'Opening Balance Sheet'!$I$18,R18) -> 3080.875481 | U16: =IFERROR(_xlfn.FORMULATEXT(J16),"") -> =IF(J$11=1,'Opening Balance Sheet'!$I$18,I18)
E17: Net cash flow | G17: US$'000 | J17: ='Cash Flow Statement'!J51 -> 0 | K17: ='Cash Flow Statement'!K51 -> 0 | L17: ='Cash Flow Statement'!L51 -> 0 | M17: ='Cash Flow Statement'!M51 -> 0 | N17: ='Cash Flow Statement'!N51 -> 0 | O17: ='Cash Flow Statement'!O51 -> 0 | P17: ='Cash Flow Statement'!P51 -> 0 | Q17: ='Cash Flow Statement'!Q51 -> 0 | R17: ='Cash Flow Statement'!R51 -> 3080.875481 | S17: ='Cash Flow Statement'!S51 -> 2754.161427 | U17: ='Cash Flow Statement'!J51
D18: Cash | G18: US$'000 | J18: =SUM(J16:J17) -> 0 | K18: =SUM(K16:K17) -> 0 | L18: 0 | M18: 0 | N18: 0 | O18: 0 | P18: 0 | Q18: 0 | R18: 3080.875481 | S18: 5835.036908 | U18: =SUM(J16:J17)
D19: Accounts receivable | G19: US$'000 | J19: =Operations!J47 -> 0 | K19: =Operations!K47 -> 0 | L19: =Operations!L47 -> 0 | M19: =Operations!M47 -> 904.109589 | N19: =Operations!N47 -> 910.1147541 | O19: =Operations!O47 -> 920.4052603 | P19: =Operations!P47 -> 927.5253764 | Q19: =Operations!Q47 -> 933.9925259 | R19: =Operations!R47 -> 937.2621377 | S19: =Operations!S47 -> 945.0603373 | U19: =Operations!J47
D20: Other current assets | G20: US$'000
D21: Total current assets | G21: US$'000 | J21: =SUM(J18:J20) -> 0 | K21: =SUM(K18:K20) -> 0 | L21: 0 | M21: 904.109589 | N21: 910.1147541 | O21: 920.4052603 | P21: 927.5253764 | Q21: 933.9925259 | R21: 4018.137619 | S21: 6780.097245 | U21: =SUM(J18:J20)
C23: Non-current assets
D24: PP&E | G24: =Currency -> US$'000 | J24: =Operations!J204 -> 4600 | K24: =Operations!K204 -> 12880 | L24: =Operations!L204 -> 25301.04 | M24: =Operations!M204 -> 22770.936 | N24: =Operations!N204 -> 20240.832 | O24: =Operations!O204 -> 17710.728 | P24: =Operations!P204 -> 15680.624 | Q24: =Operations!Q204 -> 14025.52 | R24: =Operations!R204 -> 11120.416 | S24: =Operations!S204 -> 8215.312 | U24: =Operations!J204
D25: Deferred tax assets | G25: =Currency -> US$'000 | J25: =Operations!J563 -> 0 | K25: =Operations!K563 -> 0 | L25: =Operations!L563 -> 0 | M25: =Operations!M563 -> 490.5702 | N25: =Operations!N563 -> 631.8011853 | O25: =Operations!O563 -> 500.6543594 | P25: =Operations!P563 -> 137.138903 | Q25: =Operations!Q563 -> 0 | R25: =Operations!R563 -> 0 | S25: =Operations!S563 -> 0 | U25: =Operations!J563
D26: Total non-current assets | G26: =Currency -> US$'000 | J26: =SUM(J24:J25) -> 4600 | K26: =SUM(K24:K25) -> 12880 | L26: 25301.04 | M26: 23261.5062 | N26: 20872.63319 | O26: 18211.38236 | P26: 15817.7629 | Q26: 14025.52 | R26: 11120.416 | S26: 8215.312 | U26: =SUM(J24:J25)
C28: Reserve accounts
D29: DSRA | G29: =Currency -> US$'000 | J29: =Operations!J387 -> 0 | K29: =Operations!K387 -> 0 | L29: =Operations!L387 -> 5500 | M29: =Operations!M387 -> 3023.98326 | N29: =Operations!N387 -> 3049.057312 | O29: =Operations!O387 -> 3066.411666 | P29: =Operations!P387 -> 3070.78649 | Q29: =Operations!Q387 -> 3070.78649 | R29: =Operations!R387 -> 0 | S29: =Operations!S387 -> 0 | U29: =Operations!J387
D30: MRA | G30: =Currency -> US$'000 | J30: =Operations!J223 -> 0 | K30: =Operations!K223 -> 0 | L30: =Operations!L223 -> 0 | M30: =Operations!M223 -> 125 | N30: =Operations!N223 -> 500 | O30: =Operations!O223 -> 875 | P30: =Operations!P223 -> 750 | Q30: =Operations!Q223 -> 0 | R30: =Operations!R223 -> 0 | S30: =Operations!S223 -> 0 | U30: =Operations!J223
D31: Total reserve accounts | G31: =Currency -> US$'000 | J31: =SUM(J29:J30) -> 0 | K31: 0 | L31: 5500 | M31: 3148.98326 | N31: 3549.057312 | O31: 3941.411666 | P31: 3820.78649 | Q31: 3070.78649 | R31: 0 | S31: 0 | U31: =SUM(J29:J30)
C33: Total assets | G33: =Currency -> US$'000 | J33: =J21+J26+J31 -> 4600 | K33: 12880 | L33: 30801.04 | M33: 27314.59905 | N33: 25331.80525 | O33: 23073.19929 | P33: 20566.07477 | Q33: 18030.29902 | R33: 15138.55362 | S33: 14995.40925 | U33: =J21+J26+J31
C35: Current liabilities
D36: Accounts payable | G36: =Currency -> US$'000 | J36: =Operations!J71+Operations!J96 -> 0 | K36: =Operations!K71+Operations!K96 -> 0 | L36: =Operations!L71+Operations!L96 -> 0 | M36: =Operations!M71+Operations!M96 -> 271.2328767 | N36: =Operations!N71+Operations!N96 -> 265.0819672 | O36: =Operations!O71+Operations!O96 -> 260.4920548 | P36: =Operations!P71+Operations!P96 -> 255.2822137 | Q36: =Operations!Q71+Operations!Q96 -> 250.1765694 | R36: =Operations!R71+Operations!R96 -> 244.5031663 | S36: =Operations!S71+Operations!S96 -> 240.2695773 | U36: =Operations!J71+Operations!J96
D37: Dividends payable | G37: US$'000 | J37: =Operations!J619 -> 0 | K37: =Operations!K619 -> 0 | L37: =Operations!L619 -> 0 | M37: =Operations!M619 -> 0 | N37: =Operations!N619 -> 0 | O37: =Operations!O619 -> 0 | P37: =Operations!P619 -> 0 | Q37: =Operations!Q619 -> 0 | R37: =Operations!R619 -> 0 | S37: =Operations!S619 -> 0 | U37: =Operations!J619
D38: Interest payable | G38: US$'000 | J38: =Operations!J267-Operations!J433+Operations!J474 -> 0 | K38: =Operations!K267-Operations!K433+Operations!K474 -> 0 | L38: =Operations!L267-Operations!L433+Operations!L474 -> 0 | M38: =Operations!M267-Operations!M433+Operations!M474 -> 0 | N38: =Operations!N267-Operations!N433+Operations!N474 -> 0 | O38: =Operations!O267-Operations!O433+Operations!O474 -> 0 | P38: =Operations!P267-Operations!P433+Operations!P474 -> 0 | Q38: =Operations!Q267-Operations!Q433+Operations!Q474 -> 0 | R38: =Operations!R267-Operations!R433+Operations!R474 -> 0 | S38: =Operations!S267-Operations!S433+Operations!S474 -> 0 | U38: =Operations!J267-Operations!J433+Operations!J474
D39: Tax payable | G39: US$'000 | J39: =Operations!J572 -> 0 | K39: =Operations!K572 -> 0 | L39: =Operations!L572 -> 0 | M39: =Operations!M572 -> 0 | N39: =Operations!N572 -> 0 | O39: =Operations!O572 -> 0 | P39: =Operations!P572 -> 0 | Q39: =Operations!Q572 -> 357.2145305 | R39: =Operations!R572 -> 596.2867143 | S39: =Operations!S572 -> 837.2061801 | U39: =Operations!J572
D40: Other current liabilities | G40: US$'000
D41: Total current liabilities | G41: US$'000 | J41: =SUM(J36:J40) -> 0 | K41: =SUM(K36:K40) -> 0 | L41: 0 | M41: 271.2328767 | N41: 265.0819672 | O41: 260.4920548 | P41: 255.2822137 | Q41: 607.3911 | R41: 840.7898806 | S41: 1077.475757 | U41: =SUM(J36:J40)
C43: Non-current liabilities
D44: Debt | G44: =Currency -> US$'000 | J44: =Construction!J68+Operations!J250 -> 0 | K44: =Construction!K68+Operations!K250 -> 6880 | L44: =Construction!L68+Operations!L250 -> 16000 | M44: =Construction!M68+Operations!M250 -> 13557.30866 | N44: =Construction!N68+Operations!N250 -> 11041.72448 | O44: =Construction!O68+Operations!O250 -> 8445.377868 | P44: =Construction!P68+Operations!P250 -> 5750.562828 | Q44: =Construction!Q68+Operations!Q250 -> 2938.551665 | R44: =Construction!R68+Operations!R250 -> 0 | S44: =Construction!S68+Operations!S250 -> 0 | U44: =Construction!J68+Operations!J250
D45: Convertible debt | G45: =Currency -> US$'000 | J45: =Construction!J102+Operations!J492 -> 0 | K45: =Construction!K102+Operations!K492 -> 0 | L45: =Construction!L102+Operations!L492 -> 8801.04 | M45: =Construction!M102+Operations!M492 -> 6105.617311 | N45: =Construction!N102+Operations!N492 -> 5461.035173 | O45: =Construction!O102+Operations!O492 -> 4793.927349 | P45: =Construction!P102+Operations!P492 -> 4082.902486 | Q45: =Construction!Q102+Operations!Q492 -> 0 | R45: =Construction!R102+Operations!R492 -> 0 | S45: =Construction!S102+Operations!S492 -> 0 | U45: =Construction!J102+Operations!J492
D46: Working capital facility | G46: =Currency -> US$'000 | J46: =Operations!J414 -> 0 | K46: =Operations!K414 -> 0 | L46: =Operations!L414 -> 0 | M46: =Operations!M414 -> 0 | N46: =Operations!N414 -> 0 | O46: =Operations!O414 -> 0 | P46: =Operations!P414 -> 0 | Q46: =Operations!Q414 -> 0 | R46: =Operations!R414 -> 0 | S46: =Operations!S414 -> 0 | U46: =Operations!J414
D47: Deferred tax liabilities | G47: =Currency -> US$'000 | J47: =Operations!J525 -> 0 | K47: =Operations!K525 -> 0 | L47: =Operations!L525 -> 0 | M47: =Operations!M525 -> 759.0312 | N47: =Operations!N525 -> 1214.44992 | O47: =Operations!O525 -> 1426.978656 | P47: =Operations!P525 -> 1445.195405 | Q47: =Operations!Q525 -> 1345.462564 | R47: =Operations!R525 -> 1158.870051 | S47: =Operations!S525 -> 779.0398009 | U47: =Operations!J525
D48: Total non-current liabilities | G48: =Currency -> US$'000 | J48: =SUM(J44:J47) -> 0 | K48: =SUM(K44:K47) -> 6880 | L48: 24801.04 | M48: 20421.95717 | N48: 17717.20957 | O48: 14666.28387 | P48: 11278.66072 | Q48: 4284.014229 | R48: 1158.870051 | S48: 779.0398009 | U48: =SUM(J44:J47)
C50: Total liabilities | G50: =Currency -> US$'000 | J50: =J41+J48 -> 0 | K50: =K41+K48 -> 6880 | L50: 24801.04 | M50: 20693.19005 | N50: 17982.29154 | O50: 14926.77593 | P50: 11533.94293 | Q50: 4891.405329 | R50: 1999.659932 | S50: 1856.515558 | U50: =J41+J48
C52: Net assets | G52: =Currency -> US$'000 | J52: =J33-J50 -> 4600 | K52: =K33-K50 -> 6000 | L52: 6000 | M52: 6621.409 | N52: 7349.513714 | O52: 8146.423359 | P52: 9032.131837 | Q52: 13138.89369 | R52: 13138.89369 | S52: 13138.89369 | U52: =J33-J50
C55: Equity
D56: Ordinary equity | G56: =Currency -> US$'000 | J56: =Construction!J54+Operations!J582 -> 4600 | K56: =Construction!K54+Operations!K582 -> 6000 | L56: =Construction!L54+Operations!L582 -> 6000 | M56: =Construction!M54+Operations!M582 -> 6000 | N56: =Construction!N54+Operations!N582 -> 6000 | O56: =Construction!O54+Operations!O582 -> 6000 | P56: =Construction!P54+Operations!P582 -> 6000 | Q56: =Construction!Q54+Operations!Q582 -> 9190.980467 | R56: =Construction!R54+Operations!R582 -> 9190.980467 | S56: =Construction!S54+Operations!S582 -> 9190.980467 | U56: =Construction!J54+Operations!J582
E57: Opening retained profits | G57: US$'000 | J57: =IF(J$11=1,'Opening Balance Sheet'!$I$60,I60) -> 0 | K57: =IF(K$11=1,'Opening Balance Sheet'!$I$60,J60) -> 0 | L57: =IF(L$11=1,'Opening Balance Sheet'!$I$60,K60) -> 0 | M57: =IF(M$11=1,'Opening Balance Sheet'!$I$60,L60) -> 0 | N57: =IF(N$11=1,'Opening Balance Sheet'!$I$60,M60) -> 621.409 | O57: =IF(O$11=1,'Opening Balance Sheet'!$I$60,N60) -> 1349.513714 | P57: =IF(P$11=1,'Opening Balance Sheet'!$I$60,O60) -> 2146.423359 | Q57: =IF(Q$11=1,'Opening Balance Sheet'!$I$60,P60) -> 3032.131837 | R57: =IF(R$11=1,'Opening Balance Sheet'!$I$60,Q60) -> 3947.91322 | S57: =IF(S$11=1,'Opening Balance Sheet'!$I$60,R60) -> 3947.91322 | U57: =IF(J$11=1,'Opening Balance Sheet'!$I$60,I60)
E58: NPAT | G58: US$'000 | J58: ='Income Statement'!J29 -> 0 | K58: ='Income Statement'!K29 -> 0 | L58: ='Income Statement'!L29 -> 0 | M58: ='Income Statement'!M29 -> 621.409 | N58: ='Income Statement'!N29 -> 728.1047144 | O58: ='Income Statement'!O29 -> 796.9096443 | P58: ='Income Statement'!P29 -> 885.7084788 | Q58: ='Income Statement'!Q29 -> 915.7813827 | R58: ='Income Statement'!R29 -> 950.9531368 | S58: ='Income Statement'!S29 -> 1062.210503 | U58: ='Income Statement'!J29
E59: Dividends declared | G59: US$'000 | J59: =-Operations!J617 -> 0 | K59: =-Operations!K617 -> 0 | L59: =-Operations!L617 -> 0 | M59: =-Operations!M617 -> 0 | N59: =-Operations!N617 -> 0 | O59: =-Operations!O617 -> 0 | P59: =-Operations!P617 -> 0 | Q59: =-Operations!Q617 -> 0 | R59: =-Operations!R617 -> -950.9531368 | S59: =-Operations!S617 -> -1062.210503 | U59: =-Operations!J617
D60: Retained profits | G60: US$'000 | J60: =SUM(J57:J59) -> 0 | K60: =SUM(K57:K59) -> 0 | L60: 0 | M60: 621.409 | N60: 1349.513714 | O60: 2146.423359 | P60: 3032.131837 | Q60: 3947.91322 | R60: 3947.91322 | S60: 3947.91322 | U60: =SUM(J57:J59)
D61: Total equity | G61: US$'000 | J61: =J56+J60 -> 4600 | K61: 6000 | L61: 6000 | M61: 6621.409 | N61: 7349.513714 | O61: 8146.423359 | P61: 9032.131837 | Q61: 13138.89369 | R61: 13138.89369 | S61: 13138.89369 | U61: =J56+J60
C64: Checks | U64: =IFERROR(_xlfn.FORMULATEXT(J64),"") -> 
D66: PF error check | G66: =Boolean -> [1,0] | I66: =MAX(J66:S66) -> 0 | J66: =IF(ISERROR(J52-J61),1,0) -> 0 | K66: =IF(ISERROR(K52-K61),1,0) -> 0 | L66: 0 | M66: 0 | N66: 0 | O66: 0 | P66: 0 | Q66: 0 | R66: 0 | S66: 0 | U66: =IF(ISERROR(J52-J61),1,0)
D67: Balance check | G67: =Boolean -> [1,0] | I67: =MAX(J67:S67) -> 0 | J67: =IF(J66<>0,,(ROUND(J52-J61,Rounding_Accuracy)<>0)*1) -> 0 | K67: 0 | L67: 0 | M67: 0 | N67: 0 | O67: 0 | P67: 0 | Q67: 0 | R67: 0 | S67: 0 | U67: =IF(J66<>0,,(ROUND(J52-J61,Rounding_Accuracy)<>0)*1)
D68: Insolvency check | G68: =Boolean -> [1,0] | I68: 0 | J68: =IF(SUM(J66:J67)<>0,,(J52<0)*1) -> 0 | K68: =IF(SUM(K66:K67)<>0,,(K52<0)*1) -> 0 | L68: 0 | M68: 0 | N68: 0 | O68: 0 | P68: 0 | Q68: 0 | R68: 0 | S68: 0 | U68: =IF(SUM(J66:J67)<>0,,(J52<0)*1)

Sheet Cash Flow Statement
A1: =IF(ISERROR(RIGHT(CELL("filename",A1),LEN(CELL("filename",A1))-FIND("]",CELL("filename",A1)))), "", RIGHT(CELL("filename",A1),LEN(CELL("filename",A1))-FIND("]",CELL("filename",A1)))) -> Cash Flow Statement
A2: =Model_Name -> Model 13 - Equity Completed.xlsm
A3: Navigator
B4: Error Checks: | G4: =Overall_Error_Check -> 0
J5: =Timing!J5 -> 2024-06-30 | K5: =Timing!K5 -> 2025-06-30 | L5: =Timing!L5 -> 2026-06-30 | M5: =Timing!M5 -> 2027-06-30 | N5: =Timing!N5 -> 2028-06-30 | O5: =Timing!O5 -> 2029-06-30 | P5: =Timing!P5 -> 2030-06-30 | Q5: =Timing!Q5 -> 2031-06-30 | R5: =Timing!R5 -> 2032-06-30 | S5: =Timing!S5 -> 2033-06-30
C6: =Timing!C6 -> Start Date | J6: =Timing!J6 -> 2023-07-01 | K6: =Timing!K6 -> 2024-07-01 | L6: =Timing!L6 -> 2025-07-01 | M6: =Timing!M6 -> 2026-07-01 | N6: =Timing!N6 -> 2027-07-01 | O6: =Timing!O6 -> 2028-07-01 | P6: =Timing!P6 -> 2029-07-01 | Q6: =Timing!Q6 -> 2030-07-01 | R6: =Timing!R6 -> 2031-07-01 | S6: =Timing!S6 -> 2032-07-01
C7: =Timing!C7 -> End Date | J7: =Timing!J7 -> 2024-06-30 | K7: =Timing!K7 -> 2025-06-30 | L7: =Timing!L7 -> 2026-06-30 | M7: =Timing!M7 -> 2027-06-30 | N7: =Timing!N7 -> 2028-06-30 | O7: =Timing!O7 -> 2029-06-30 | P7: =Timing!P7 -> 2030-06-30 | Q7: =Timing!Q7 -> 2031-06-30 | R7: =Timing!R7 -> 2032-06-30 | S7: =Timing!S7 -> 2033-06-30
C8: =Timing!C8 -> Number of Days | J8: =Timing!J8 -> 366 | K8: =Timing!K8 -> 365 | L8: =Timing!L8 -> 365 | M8: =Timing!M8 -> 365 | N8: =Timing!N8 -> 366 | O8: =Timing!O8 -> 365 | P8: =Timing!P8 -> 365 | Q8: =Timing!Q8 -> 365 | R8: =Timing!R8 -> 366 | S8: =Timing!S8 -> 365
C9: =Timing!C9 -> Construction period | J9: =Timing!J9 -> 1 | K9: =Timing!K9 -> 2 | L9: =Timing!L9 -> 3 | M9: =Timing!M9 -> 0 | N9: =Timing!N9 -> 0 | O9: =Timing!O9 -> 0 | P9: =Timing!P9 -> 0 | Q9: =Timing!Q9 -> 0 | R9: =Timing!R9 -> 0 | S9: =Timing!S9 -> 0
C10: =Timing!C10 -> Operations period | J10: =Timing!J10 -> 0 | K10: =Timing!K10 -> 0 | L10: =Timing!L10 -> 0 | M10: =Timing!M10 -> 1 | N10: =Timing!N10 -> 2 | O10: =Timing!O10 -> 3 | P10: =Timing!P10 -> 4 | Q10: =Timing!Q10 -> 5 | R10: =Timing!R10 -> 6 | S10: =Timing!S10 -> 7
C11: =Timing!C11 -> Counter | J11: =Timing!J11 -> 1 | K11: =Timing!K11 -> 2 | L11: =Timing!L11 -> 3 | M11: =Timing!M11 -> 4 | N11: =Timing!N11 -> 5 | O11: =Timing!O11 -> 6 | P11: =Timing!P11 -> 7 | Q11: =Timing!Q11 -> 8 | R11: =Timing!R11 -> 9 | S11: =Timing!S11 -> 10
B13: =MAX($B$12:$B12)+1 -> 1 | C13: =A1 -> Cash Flow Statement
C15: Direct Cash Flow Statement | U15: =IFERROR(_xlfn.FORMULATEXT(J15),"") -> 
D17: Operating cash flow
E18: Cash receipts | G18: =Currency -> US$'000 | J18: =-Operations!J46 -> 0 | K18: =-Operations!K46 -> 0 | L18: =-Operations!L46 -> 0 | M18: =-Operations!M46 -> 4595.890411 | N18: =-Operations!N46 -> 5545.694835 | O18: =-Operations!O46 -> 5588.841494 | P18: =-Operations!P46 -> 5635.325924 | Q18: =-Operations!Q46 -> 5675.320716 | R18: =-Operations!R46 -> 5714.029428 | S18: =-Operations!S46 -> 5741.318852 | U18: =IFERROR(_xlfn.FORMULATEXT(J18),"") -> =-Operations!J46
F19: Direct cash payments | G19: US$'000 | J19: =Operations!J70 -> 0 | K19: =Operations!K70 -> 0 | L19: =Operations!L70 -> 0 | M19: =Operations!M70 -> -828.7671233 | N19: =Operations!N70 -> -1084.150909 | O19: =Operations!O70 -> -1061.029912 | P19: =Operations!P70 -> -1040.521041 | Q19: =Operations!Q70 -> -1019.71062 | R19: =Operations!R70 -> -999.9862796 | S19: =Operations!S70 -> -978.660208 | U19: =IFERROR(_xlfn.FORMULATEXT(J19),"") -> =Operations!J70
F20: Indirect cash payments | G20: US$'000 | J20: =Operations!J95 -> 0 | K20: =Operations!K95 -> 0 | L20: =Operations!L95 -> 0 | M20: =Operations!M95 -> -200 | N20: =Operations!N95 -> -225 | O20: =Operations!O95 -> -250 | P20: =Operations!P95 -> -275 | Q20: =Operations!Q95 -> -300 | R20: =Operations!R95 -> -325 | S20: =Operations!S95 -> -350 | U20: =Operations!J95
E21: Cash payments | G21: US$'000 | J21: =SUM(J19:J20) -> 0 | K21: =SUM(K19:K20) -> 0 | L21: 0 | M21: -1028.767123 | N21: -1309.150909 | O21: -1311.029912 | P21: -1315.521041 | Q21: -1319.71062 | R21: -1324.98628 | S21: -1328.660208 | U21: =SUM(J19:J20)
E22: Interest paid | G22: US$'000 | J22: =Operations!J266 -> 0 | K22: =Operations!K266 -> 0 | L22: =Operations!L266 -> 0 | M22: =Operations!M266 -> -560 | N22: =Operations!N266 -> -508.3990748 | O22: =Operations!O266 -> -452.7107035 | P22: =Operations!P266 -> -371.5966262 | Q22: =Operations!Q266 -> -258.7753272 | R22: =Operations!R266 -> -132.2348249 | S22: =Operations!S266 -> 0 | U22: =Operations!J266
E23: Tax paid | G23: US$'000 | J23: =Operations!J569 -> 0 | K23: =Operations!K569 -> 0 | L23: =Operations!L569 -> 0 | M23: =Operations!M569 -> 0 | N23: =Operations!N569 -> 0 | O23: =Operations!O569 -> 0 | P23: =Operations!P569 -> 0 | Q23: =Operations!Q569 -> 0 | R23: =Operations!R569 -> -357.2145305 | S23: =Operations!S569 -> -596.2867143 | U23: =Operations!J569
E24: Net Operating cash flow | G24: =Currency -> US$'000 | J24: =SUM(J18,J21:J23) -> 0 | K24: =SUM(K18,K21:K23) -> 0 | L24: 0 | M24: 3007.123288 | N24: 3728.144851 | O24: 3825.100878 | P24: 3948.208257 | Q24: 4096.834769 | R24: 3899.593793 | S24: 3816.37193 | U24: =SUM(J18,J21:J23)
D26: Investing cash flows
E27: Interest received | G27: =Currency -> US$'000 | J27: =-Operations!J432 -> 0 | K27: =-Operations!K432 -> 0 | L27: =-Operations!L432 -> 0 | M27: =-Operations!M432 -> 0 | N27: =-Operations!N432 -> 0 | O27: =-Operations!O432 -> 0 | P27: =-Operations!P432 -> 0 | Q27: =-Operations!Q432 -> 0 | R27: =-Operations!R432 -> 0 | S27: =-Operations!S432 -> 0 | U27: =-Operations!J432
E28: Purchases of Non-Current Assets | G28: =Currency -> US$'000 | J28: =-Operations!J202 -> -4600 | K28: =-Operations!K202 -> -8280 | L28: =-Operations!L202 -> -12421.04 | M28: =-Operations!M202 -> 0 | N28: =-Operations!N202 -> 0 | O28: =-Operations!O202 -> 0 | P28: =-Operations!P202 -> -500 | Q28: =-Operations!Q202 -> -1000 | R28: =-Operations!R202 -> 0 | S28: =-Operations!S202 -> 0 | U28: =-Operations!J202
E29: Net Investing cash flows | G29: =Currency -> US$'000 | J29: =SUM(J27:J28) -> -4600 | K29: =SUM(K27:K28) -> -8280 | L29: -12421.04 | M29: 0 | N29: 0 | O29: 0 | P29: -500 | Q29: -1000 | R29: 0 | S29: 0 | U29: =SUM(J27:J28)
D31: Financing cash flows
F32: Transfer to MRA | G32: =Currency -> US$'000 | J32: =-Operations!J221 -> 0 | K32: =-Operations!K221 -> 0 | L32: =-Operations!L221 -> 0 | M32: =-Operations!M221 -> -125 | N32: =-Operations!N221 -> -375 | O32: =-Operations!O221 -> -375 | P32: =-Operations!P221 -> -375 | Q32: =-Operations!Q221 -> -250 | R32: =-Operations!R221 -> 0 | S32: =-Operations!S221 -> 0 | U32: =-Operations!J221
F33: Transfer from MRA | G33: US$'000 | J33: =-Operations!J222 -> 0 | K33: =-Operations!K222 -> 0 | L33: =-Operations!L222 -> 0 | M33: =-Operations!M222 -> 0 | N33: =-Operations!N222 -> 0 | O33: =-Operations!O222 -> 0 | P33: =-Operations!P222 -> 500 | Q33: =-Operations!Q222 -> 1000 | R33: =-Operations!R222 -> 0 | S33: =-Operations!S222 -> 0 | U33: =-Operations!J222
F34: Initial transfer to DSRA | G34: US$'000 | J34: =-Operations!J383 -> 0 | K34: =-Operations!K383 -> 0 | L34: =-Operations!L383 -> -5500 | M34: =-Operations!M383 -> 0 | N34: =-Operations!N383 -> 0 | O34: =-Operations!O383 -> 0 | P34: =-Operations!P383 -> 0 | Q34: =-Operations!Q383 -> 0 | R34: =-Operations!R383 -> 0 | S34: =-Operations!S383 -> 0 | U34: =-Operations!J383
F35: Transfer to DSRA | G35: US$'000 | J35: =-Operations!J384 -> 0 | K35: =-Operations!K384 -> 0 | L35: =-Operations!L384 -> 0 | M35: =-Operations!M384 -> 0 | N35: =-Operations!N384 -> -25.07405184 | O35: =-Operations!O384 -> -17.3543546 | P35: =-Operations!P384 -> -4.374823511 | Q35: =-Operations!Q384 -> -1.364242053e-12 | R35: =-Operations!R384 -> 0 | S35: =-Operations!S384 -> 0 | U35: =-Operations!J384
F36: Transfer from DSRA (Cashflow) | G36: US$'000 | J36: =-Operations!J385 -> 0 | K36: =-Operations!K385 -> 0 | L36: =-Operations!L385 -> 0 | M36: =-Operations!M385 -> 0 | N36: =-Operations!N385 -> 0 | O36: =-Operations!O385 -> 0 | P36: =-Operations!P385 -> 0 | Q36: =-Operations!Q385 -> 0 | R36: =-Operations!R385 -> 0 | S36: =-Operations!S385 -> 0 | U36: =-Operations!J385
F37: Transfer from DSRA (Target) | G37: US$'000 | J37: =-Operations!J386 -> 0 | K37: =-Operations!K386 -> 0 | L37: =-Operations!L386 -> 0 | M37: =-Operations!M386 -> 2476.01674 | N37: =-Operations!N386 -> 0 | O37: =-Operations!O386 -> 0 | P37: =-Operations!P386 -> 0 | Q37: =-Operations!Q386 -> 0 | R37: =-Operations!R386 -> 3070.78649 | S37: =-Operations!S386 -> 0 | U37: =-Operations!J386
E38: Reserve account movement | G38: US$'000 | J38: =SUM(J32:J37) -> 0 | K38: 0 | L38: -5500 | M38: 2351.01674 | N38: -400.0740518 | O38: -392.3543546 | P38: 120.6251765 | Q38: 750 | R38: 3070.78649 | S38: 0 | U38: =SUM(J32:J37)
E39: Working capital facility drawdowns | G39: =Currency -> US$'000 | J39: =Operations!J411 -> 0 | K39: =Operations!K411 -> 0 | L39: =Operations!L411 -> 0 | M39: =Operations!M411 -> 0 | N39: =Operations!N411 -> 0 | O39: =Operations!O411 -> 0 | P39: =Operations!P411 -> 0 | Q39: =Operations!Q411 -> 0 | R39: =Operations!R411 -> 0 | S39: =Operations!S411 -> 0 | U39: =Operations!J411
E40: Working capital facility repayments | G40: US$'000 | J40: =Operations!J413 -> 0 | K40: =Operations!K413 -> 0 | L40: =Operations!L413 -> 0 | M40: =Operations!M413 -> 0 | N40: =Operations!N413 -> 0 | O40: =Operations!O413 -> 0 | P40: =Operations!P413 -> 0 | Q40: =Operations!Q413 -> 0 | R40: =Operations!R413 -> 0 | S40: =Operations!S413 -> 0 | U40: =Operations!J413
E41: Debt drawdowns | G41: US$'000 | J41: =Construction!J66 -> 0 | K41: =Construction!K66 -> 6880 | L41: =Construction!L66 -> 9120 | M41: =Construction!M66 -> 0 | N41: =Construction!N66 -> 0 | O41: =Construction!O66 -> 0 | P41: =Construction!P66 -> 0 | Q41: =Construction!Q66 -> 0 | R41: =Construction!R66 -> 0 | S41: =Construction!S66 -> 0 | U41: =Construction!J66
E42: Debt repayments | G42: US$'000 | J42: =Construction!J67+Operations!J247+Operations!J248 -> 0 | K42: =Construction!K67+Operations!K247+Operations!K248 -> 0 | L42: =Construction!L67+Operations!L247+Operations!L248 -> 0 | M42: =Construction!M67+Operations!M247+Operations!M248 -> -2442.691339 | N42: =Construction!N67+Operations!N247+Operations!N248 -> -2515.584185 | O42: =Construction!O67+Operations!O247+Operations!O248 -> -2596.346608 | P42: =Construction!P67+Operations!P247+Operations!P248 -> -2694.81504 | Q42: =Construction!Q67+Operations!Q247+Operations!Q248 -> -2812.011163 | R42: =Construction!R67+Operations!R247+Operations!R248 -> -2938.551665 | S42: =Construction!S67+Operations!S247+Operations!S248 -> 0 | U42: =Construction!J67+Operations!J247+Operations!J248
E43: Cash sweep repayments | G43: US$'000 | J43: =Operations!J249 -> 0 | K43: =Operations!K249 -> 0 | L43: =Operations!L249 -> 0 | M43: =Operations!M249 -> 0 | N43: =Operations!N249 -> 0 | O43: =Operations!O249 -> 0 | P43: =Operations!P249 -> 0 | Q43: =Operations!Q249 -> 0 | R43: =Operations!R249 -> 0 | S43: =Operations!S249 -> 0 | U43: =Operations!J249
E44: Convertible debt drawdowns | G44: US$'000 | J44: =Construction!J100 -> 0 | K44: =Construction!K100 -> 0 | L44: =Construction!L100 -> 8801.04 | M44: =Construction!M100 -> 0 | N44: =Construction!N100 -> 0 | O44: =Construction!O100 -> 0 | P44: =Construction!P100 -> 0 | Q44: =Construction!Q100 -> 0 | R44: =Construction!R100 -> 0 | S44: =Construction!S100 -> 0 | U44: =Construction!J100
E45: Convertible debt interest paid | G45: US$'000 | J45: =Operations!J473 -> 0 | K45: =Operations!K473 -> 0 | L45: =Operations!L473 -> 0 | M45: =Operations!M473 -> -220.026 | N45: =Operations!N473 -> -167.9044761 | O45: =Operations!O473 -> -169.2920904 | P45: =Operations!P473 -> -162.9935299 | Q45: =Operations!Q473 -> -142.901587 | R45: =Operations!R473 -> 0 | S45: =Operations!S473 -> 0 | U45: =IFERROR(_xlfn.FORMULATEXT(J45),"") -> =Operations!J473
E46: Convertible debt repayments | G46: US$'000 | J46: =Construction!J101+Operations!J489+Operations!J490 -> 0 | K46: =Construction!K101+Operations!K489+Operations!K490 -> 0 | L46: =Construction!L101+Operations!L489+Operations!L490 -> 0 | M46: =Construction!M101+Operations!M489+Operations!M490 -> -2695.422689 | N46: =Construction!N101+Operations!N489+Operations!N490 -> -644.5821376 | O46: =Construction!O101+Operations!O489+Operations!O490 -> -667.1078246 | P46: =Construction!P101+Operations!P489+Operations!P490 -> -711.024863 | Q46: =Construction!Q101+Operations!Q489+Operations!Q490 -> -891.922019 | R46: =Construction!R101+Operations!R489+Operations!R490 -> 0 | S46: =Construction!S101+Operations!S489+Operations!S490 -> 0 | U46: =IFERROR(_xlfn.FORMULATEXT(J46),"") -> =Construction!J101+Operations!J489+Operations!J490
E47: Ordinary equity issuances | G47: US$'000 | J47: =SUM(Construction!J52:J53,Operations!J580) -> 4600 | K47: =SUM(Construction!K52:K53,Operations!K580) -> 1400 | L47: =SUM(Construction!L52:L53,Operations!L580) -> 0 | M47: =SUM(Construction!M52:M53,Operations!M580) -> 0 | N47: =SUM(Construction!N52:N53,Operations!N580) -> 0 | O47: =SUM(Construction!O52:O53,Operations!O580) -> 0 | P47: =SUM(Construction!P52:P53,Operations!P580) -> 0 | Q47: =SUM(Construction!Q52:Q53,Operations!Q580) -> 0 | R47: =SUM(Construction!R52:R53,Operations!R580) -> 0 | S47: =SUM(Construction!S52:S53,Operations!S580) -> 0 | U47: =SUM(Construction!J52:J53,Operations!J580)
E48: Dividends paid | G48: US$'000 | J48: =Operations!J618 -> 0 | K48: =Operations!K618 -> 0 | L48: =Operations!L618 -> 0 | M48: =Operations!M618 -> 0 | N48: =Operations!N618 -> 0 | O48: =Operations!O618 -> 0 | P48: =Operations!P618 -> 0 | Q48: =Operations!Q618 -> 0 | R48: =Operations!R618 -> -950.9531368 | S48: =Operations!S618 -> -1062.210503 | U48: =Operations!J618
E49: Net Financing cash flows | G49: US$'000 | J49: =SUM(J38:J48) -> 4600 | K49: 8280 | L49: 12421.04 | M49: -3007.123288 | N49: -3728.144851 | O49: -3825.100878 | P49: -3448.208257 | Q49: -3096.834769 | R49: -818.7183119 | S49: -1062.210503 | U49: =SUM(J38:J48)
D51: Net increase / (decrease) in cash held | G51: =Currency -> US$'000 | J51: =J24+J29+J49 -> 0 | K51: 0 | L51: 0 | M51: 0 | N51: 0 | O51: 0 | P51: 0 | Q51: 0 | R51: 3080.875481 | S51: 2754.161427 | U51: =J24+J29+J49

Sheet Cash Flow Waterfall
A1: =IF(ISERROR(RIGHT(CELL("filename",A1),LEN(CELL("filename",A1))-FIND("]",CELL("filename",A1)))), "", RIGHT(CELL("filename",A1),LEN(CELL("filename",A1))-FIND("]",CELL("filename",A1)))) -> Cash Flow Waterfall
A2: =Model_Name -> Model 13 - Equity Completed.xlsm
A3: Navigator
B4: Error Checks: | G4: =Overall_Error_Check -> 0
J5: =Timing!J5 -> 2024-06-30 | K5: =Timing!K5 -> 2025-06-30 | L5: =Timing!L5 -> 2026-06-30 | M5: =Timing!M5 -> 2027-06-30 | N5: =Timing!N5 -> 2028-06-30 | O5: =Timing!O5 -> 2029-06-30 | P5: =Timing!P5 -> 2030-06-30 | Q5: =Timing!Q5 -> 2031-06-30 | R5: =Timing!R5 -> 2032-06-30 | S5: =Timing!S5 -> 2033-06-30
C6: Start Date | J6: =Timing!J6 -> 2023-07-01 | K6: =Timing!K6 -> 2024-07-01 | L6: =Timing!L6 -> 2025-07-01 | M6: =Timing!M6 -> 2026-07-01 | N6: =Timing!N6 -> 2027-07-01 | O6: =Timing!O6 -> 2028-07-01 | P6: =Timing!P6 -> 2029-07-01 | Q6: =Timing!Q6 -> 2030-07-01 | R6: =Timing!R6 -> 2031-07-01 | S6: =Timing!S6 -> 2032-07-01
C7: End Date | J7: =Timing!J7 -> 2024-06-30 | K7: =Timing!K7 -> 2025-06-30 | L7: =Timing!L7 -> 2026-06-30 | M7: =Timing!M7 -> 2027-06-30 | N7: =Timing!N7 -> 2028-06-30 | O7: =Timing!O7 -> 2029-06-30 | P7: =Timing!P7 -> 2030-06-30 | Q7: =Timing!Q7 -> 2031-06-30 | R7: =Timing!R7 -> 2032-06-30 | S7: =Timing!S7 -> 2033-06-30
C8: Number of Days | J8: =Timing!J8 -> 366 | K8: =Timing!K8 -> 365 | L8: =Timing!L8 -> 365 | M8: =Timing!M8 -> 365 | N8: =Timing!N8 -> 366 | O8: =Timing!O8 -> 365 | P8: =Timing!P8 -> 365 | Q8: =Timing!Q8 -> 365 | R8: =Timing!R8 -> 366 | S8: =Timing!S8 -> 365
C9: Construction period | J9: =Timing!J9 -> 1 | K9: =Timing!K9 -> 2 | L9: =Timing!L9 -> 3 | M9: =Timing!M9 -> 0 | N9: =Timing!N9 -> 0 | O9: =Timing!O9 -> 0 | P9: =Timing!P9 -> 0 | Q9: =Timing!Q9 -> 0 | R9: =Timing!R9 -> 0 | S9: =Timing!S9 -> 0
C10: Operations period | J10: =Timing!J10 -> 0 | K10: =Timing!K10 -> 0 | L10: =Timing!L10 -> 0 | M10: =Timing!M10 -> 1 | N10: =Timing!N10 -> 2 | O10: =Timing!O10 -> 3 | P10: =Timing!P10 -> 4 | Q10: =Timing!Q10 -> 5 | R10: =Timing!R10 -> 6 | S10: =Timing!S10 -> 7
C11: Counter | J11: =Timing!J11 -> 1 | K11: =Timing!K11 -> 2 | L11: =Timing!L11 -> 3 | M11: =Timing!M11 -> 4 | N11: =Timing!N11 -> 5 | O11: =Timing!O11 -> 6 | P11: =Timing!P11 -> 7 | Q11: =Timing!Q11 -> 8 | R11: =Timing!R11 -> 9 | S11: =Timing!S11 -> 10
B13: =MAX($B$12:$B12)+1 -> 1 | C13: =A1 -> Cash Flow Waterfall
C15: Waterfall
D17: Operations
E19: Cash Receipts from operations | G19: =Currency -> US$'000 | J19: ='Cash Flow Statement'!J18 -> 0 | K19: ='Cash Flow Statement'!K18 -> 0 | L19: ='Cash Flow Statement'!L18 -> 0 | M19: ='Cash Flow Statement'!M18 -> 4595.890411 | N19: ='Cash Flow Statement'!N18 -> 5545.694835 | O19: ='Cash Flow Statement'!O18 -> 5588.841494 | P19: ='Cash Flow Statement'!P18 -> 5635.325924 | Q19: ='Cash Flow Statement'!Q18 -> 5675.320716 | R19: ='Cash Flow Statement'!R18 -> 5714.029428 | S19: ='Cash Flow Statement'!S18 -> 5741.318852 | U19: =IFERROR(_xlfn.FORMULATEXT(J19),"") -> ='Cash Flow Statement'!J18
E20: Direct cash payments | G20: US$'000 | J20: ='Cash Flow Statement'!J19 -> 0 | K20: ='Cash Flow Statement'!K19 -> 0 | L20: ='Cash Flow Statement'!L19 -> 0 | M20: ='Cash Flow Statement'!M19 -> -828.7671233 | N20: ='Cash Flow Statement'!N19 -> -1084.150909 | O20: ='Cash Flow Statement'!O19 -> -1061.029912 | P20: ='Cash Flow Statement'!P19 -> -1040.521041 | Q20: ='Cash Flow Statement'!Q19 -> -1019.71062 | R20: ='Cash Flow Statement'!R19 -> -999.9862796 | S20: ='Cash Flow Statement'!S19 -> -978.660208 | U20: =IFERROR(_xlfn.FORMULATEXT(J20),"") -> ='Cash Flow Statement'!J19
E21: Indirect cash payments | G21: US$'000 | J21: ='Cash Flow Statement'!J20 -> 0 | K21: ='Cash Flow Statement'!K20 -> 0 | L21: ='Cash Flow Statement'!L20 -> 0 | M21: ='Cash Flow Statement'!M20 -> -200 | N21: ='Cash Flow Statement'!N20 -> -225 | O21: ='Cash Flow Statement'!O20 -> -250 | P21: ='Cash Flow Statement'!P20 -> -275 | Q21: ='Cash Flow Statement'!Q20 -> -300 | R21: ='Cash Flow Statement'!R20 -> -325 | S21: ='Cash Flow Statement'!S20 -> -350 | U21: ='Cash Flow Statement'!J20
E22: Interest received | G22: US$'000 | J22: ='Cash Flow Statement'!J27 -> 0 | K22: ='Cash Flow Statement'!K27 -> 0 | L22: ='Cash Flow Statement'!L27 -> 0 | M22: ='Cash Flow Statement'!M27 -> 0 | N22: ='Cash Flow Statement'!N27 -> 0 | O22: ='Cash Flow Statement'!O27 -> 0 | P22: ='Cash Flow Statement'!P27 -> 0 | Q22: ='Cash Flow Statement'!Q27 -> 0 | R22: ='Cash Flow Statement'!R27 -> 0 | S22: ='Cash Flow Statement'!S27 -> 0 | U22: ='Cash Flow Statement'!J27
E23: Tax paid | G23: US$'000 | J23: ='Cash Flow Statement'!J23 -> 0 | K23: ='Cash Flow Statement'!K23 -> 0 | L23: ='Cash Flow Statement'!L23 -> 0 | M23: ='Cash Flow Statement'!M23 -> 0 | N23: ='Cash Flow Statement'!N23 -> 0 | O23: ='Cash Flow Statement'!O23 -> 0 | P23: ='Cash Flow Statement'!P23 -> 0 | Q23: ='Cash Flow Statement'!Q23 -> 0 | R23: ='Cash Flow Statement'!R23 -> -357.2145305 | S23: ='Cash Flow Statement'!S23 -> -596.2867143 | U23: ='Cash Flow Statement'!J23
E24: Total Cash Flow from Operations | G24: US$'000 | J24: =SUM(J19:J23) -> 0 | K24: =SUM(K19:K23) -> 0 | L24: 0 | M24: 3567.123288 | N24: 4236.543925 | O24: 4277.811581 | P24: 4319.804883 | Q24: 4355.610096 | R24: 4031.828618 | S24: 3816.37193 | U24: =SUM(J19:J23)
D26: Funding
E28: Equity | G28: =Currency -> US$'000 | J28: ='Cash Flow Statement'!J47 -> 4600 | K28: ='Cash Flow Statement'!K47 -> 1400 | L28: ='Cash Flow Statement'!L47 -> 0 | M28: ='Cash Flow Statement'!M47 -> 0 | N28: ='Cash Flow Statement'!N47 -> 0 | O28: ='Cash Flow Statement'!O47 -> 0 | P28: ='Cash Flow Statement'!P47 -> 0 | Q28: ='Cash Flow Statement'!Q47 -> 0 | R28: ='Cash Flow Statement'!R47 -> 0 | S28: ='Cash Flow Statement'!S47 -> 0 | U28: ='Cash Flow Statement'!J47
E29: Debt | G29: =Currency -> US$'000 | J29: ='Cash Flow Statement'!J41 -> 0 | K29: ='Cash Flow Statement'!K41 -> 6880 | L29: ='Cash Flow Statement'!L41 -> 9120 | M29: ='Cash Flow Statement'!M41 -> 0 | N29: ='Cash Flow Statement'!N41 -> 0 | O29: ='Cash Flow Statement'!O41 -> 0 | P29: ='Cash Flow Statement'!P41 -> 0 | Q29: ='Cash Flow Statement'!Q41 -> 0 | R29: ='Cash Flow Statement'!R41 -> 0 | S29: ='Cash Flow Statement'!S41 -> 0 | U29: ='Cash Flow Statement'!J41
E30: Convertible debt | G30: =Currency -> US$'000 | J30: ='Cash Flow Statement'!J44 -> 0 | K30: ='Cash Flow Statement'!K44 -> 0 | L30: ='Cash Flow Statement'!L44 -> 8801.04 | M30: ='Cash Flow Statement'!M44 -> 0 | N30: ='Cash Flow Statement'!N44 -> 0 | O30: ='Cash Flow Statement'!O44 -> 0 | P30: ='Cash Flow Statement'!P44 -> 0 | Q30: ='Cash Flow Statement'!Q44 -> 0 | R30: ='Cash Flow Statement'!R44 -> 0 | S30: ='Cash Flow Statement'!S44 -> 0 | U30: ='Cash Flow Statement'!J44
E31: Total | G31: =Currency -> US$'000 | J31: =SUM(J28:J30) -> 4600 | K31: =SUM(K28:K30) -> 8280 | L31: 17921.04 | M31: 0 | N31: 0 | O31: 0 | P31: 0 | Q31: 0 | R31: 0 | S31: 0 | U31: =SUM(J28:J30)
D33: Construction
E35: Capital Expenditure | G35: =Currency -> US$'000 | J35: ='Cash Flow Statement'!J28 -> -4600 | K35: ='Cash Flow Statement'!K28 -> -8280 | L35: ='Cash Flow Statement'!L28 -> -12421.04 | M35: ='Cash Flow Statement'!M28 -> 0 | N35: ='Cash Flow Statement'!N28 -> 0 | O35: ='Cash Flow Statement'!O28 -> 0 | P35: ='Cash Flow Statement'!P28 -> -500 | Q35: ='Cash Flow Statement'!Q28 -> -1000 | R35: ='Cash Flow Statement'!R28 -> 0 | S35: ='Cash Flow Statement'!S28 -> 0 | U35: ='Cash Flow Statement'!J28
E36: Total | G36: =Currency -> US$'000 | J36: =J35 -> -4600 | K36: -8280 | L36: -12421.04 | M36: 0 | N36: 0 | O36: 0 | P36: -500 | Q36: -1000 | R36: 0 | S36: 0 | U36: =J35
E38: Cash flow available for MRA | G38: =Currency -> US$'000 | J38: =J24+J31+J36 -> 0 | K38: =K24+K31+K36 -> 0 | L38: 5500 | M38: 3567.123288 | N38: 4236.543925 | O38: 4277.811581 | P38: 3819.804883 | Q38: 3355.610096 | R38: 4031.828618 | S38: 3816.37193 | U38: =J24+J31+J36
D40: MRA
E42: Funding: cash flow | G42: =Currency -> US$'000 | J42: ='Cash Flow Statement'!J32 -> 0 | K42: ='Cash Flow Statement'!K32 -> 0 | L42: ='Cash Flow Statement'!L32 -> 0 | M42: ='Cash Flow Statement'!M32 -> -125 | N42: ='Cash Flow Statement'!N32 -> -375 | O42: ='Cash Flow Statement'!O32 -> -375 | P42: ='Cash Flow Statement'!P32 -> -375 | Q42: ='Cash Flow Statement'!Q32 -> -250 | R42: ='Cash Flow Statement'!R32 -> 0 | S42: ='Cash Flow Statement'!S32 -> 0 | U42: ='Cash Flow Statement'!J32
E43: Release: cash flow | G43: =Currency -> US$'000 | J43: ='Cash Flow Statement'!J33 -> 0 | K43: ='Cash Flow Statement'!K33 -> 0 | L43: ='Cash Flow Statement'!L33 -> 0 | M43: ='Cash Flow Statement'!M33 -> 0 | N43: ='Cash Flow Statement'!N33 -> 0 | O43: ='Cash Flow Statement'!O33 -> 0 | P43: ='Cash Flow Statement'!P33 -> 500 | Q43: ='Cash Flow Statement'!Q33 -> 1000 | R43: ='Cash Flow Statement'!R33 -> 0 | S43: ='Cash Flow Statement'!S33 -> 0 | U43: ='Cash Flow Statement'!J33
E44: Total | G44: =Currency -> US$'000 | J44: =SUM(J42:J43) -> 0 | K44: =SUM(K42:K43) -> 0 | L44: 0 | M44: -125 | N44: -375 | O44: -375 | P44: 125 | Q44: 750 | R44: 0 | S44: 0 | U44: =SUM(J42:J43)
E46: CFADS | G46: =Currency -> US$'000 | J46: =J38+J44 -> 0 | K46: =K38+K44 -> 0 | L46: 5500 | M46: 3442.123288 | N46: 3861.543925 | O46: 3902.811581 | P46: 3944.804883 | Q46: 4105.610096 | R46: 4031.828618 | S46: 3816.37193 | U46: =J38+J44
D48: Debt
E50: Interest paid | G50: =Currency -> US$'000 | J50: ='Cash Flow Statement'!J22 -> 0 | K50: ='Cash Flow Statement'!K22 -> 0 | L50: ='Cash Flow Statement'!L22 -> 0 | M50: ='Cash Flow Statement'!M22 -> -560 | N50: ='Cash Flow Statement'!N22 -> -508.3990748 | O50: ='Cash Flow Statement'!O22 -> -452.7107035 | P50: ='Cash Flow Statement'!P22 -> -371.5966262 | Q50: ='Cash Flow Statement'!Q22 -> -258.7753272 | R50: ='Cash Flow Statement'!R22 -> -132.2348249 | S50: ='Cash Flow Statement'!S22 -> 0 | U50: ='Cash Flow Statement'!J22
E51: Principal repayments | G51: =Currency -> US$'000 | J51: ='Cash Flow Statement'!J42 -> 0 | K51: ='Cash Flow Statement'!K42 -> 0 | L51: ='Cash Flow Statement'!L42 -> 0 | M51: ='Cash Flow Statement'!M42 -> -2442.691339 | N51: ='Cash Flow Statement'!N42 -> -2515.584185 | O51: ='Cash Flow Statement'!O42 -> -2596.346608 | P51: ='Cash Flow Statement'!P42 -> -2694.81504 | Q51: ='Cash Flow Statement'!Q42 -> -2812.011163 | R51: ='Cash Flow Statement'!R42 -> -2938.551665 | S51: ='Cash Flow Statement'!S42 -> 0 | U51: ='Cash Flow Statement'!J42
E52: Total | G52: =Currency -> US$'000 | J52: =SUM(J50:J51) -> 0 | K52: =SUM(K50:K51) -> 0 | L52: 0 | M52: -3002.691339 | N52: -3023.98326 | O52: -3049.057312 | P52: -3066.411666 | Q52: -3070.78649 | R52: -3070.78649 | S52: 0 | U52: =SUM(J50:J51)
E54: Cash flow available for DSRA | G54: =Currency -> US$'000 | J54: =J46+J52 -> 0 | K54: =K46+K52 -> 0 | L54: 5500 | M54: 439.431949 | N54: 837.5606655 | O54: 853.7542696 | P54: 878.3932163 | Q54: 1034.823606 | R54: 961.0421279 | S54: 3816.37193 | U54: =J46+J52
D56: DSRA
E58: Funding: initial | G58: =Currency -> US$'000 | J58: ='Cash Flow Statement'!J34 -> 0 | K58: ='Cash Flow Statement'!K34 -> 0 | L58: ='Cash Flow Statement'!L34 -> -5500 | M58: ='Cash Flow Statement'!M34 -> 0 | N58: ='Cash Flow Statement'!N34 -> 0 | O58: ='Cash Flow Statement'!O34 -> 0 | P58: ='Cash Flow Statement'!P34 -> 0 | Q58: ='Cash Flow Statement'!Q34 -> 0 | R58: ='Cash Flow Statement'!R34 -> 0 | S58: ='Cash Flow Statement'!S34 -> 0 | U58: ='Cash Flow Statement'!J34
E59: Funding: cash flow | G59: =Currency -> US$'000 | J59: ='Cash Flow Statement'!J35 -> 0 | K59: ='Cash Flow Statement'!K35 -> 0 | L59: ='Cash Flow Statement'!L35 -> 0 | M59: ='Cash Flow Statement'!M35 -> 0 | N59: ='Cash Flow Statement'!N35 -> -25.07405184 | O59: ='Cash Flow Statement'!O35 -> -17.3543546 | P59: ='Cash Flow Statement'!P35 -> -4.374823511 | Q59: ='Cash Flow Statement'!Q35 -> -1.364242053e-12 | R59: ='Cash Flow Statement'!R35 -> 0 | S59: ='Cash Flow Statement'!S35 -> 0 | U59: ='Cash Flow Statement'!J35
E60: Release: cash flow | G60: =Currency -> US$'000 | J60: ='Cash Flow Statement'!J36 -> 0 | K60: ='Cash Flow Statement'!K36 -> 0 | L60: ='Cash Flow Statement'!L36 -> 0 | M60: ='Cash Flow Statement'!M36 -> 0 | N60: ='Cash Flow Statement'!N36 -> 0 | O60: ='Cash Flow Statement'!O36 -> 0 | P60: ='Cash Flow Statement'!P36 -> 0 | Q60: ='Cash Flow Statement'!Q36 -> 0 | R60: ='Cash Flow Statement'!R36 -> 0 | S60: ='Cash Flow Statement'!S36 -> 0 | U60: ='Cash Flow Statement'!J36
E61: Release: final | G61: =Currency -> US$'000 | J61: ='Cash Flow Statement'!J37 -> 0 | K61: ='Cash Flow Statement'!K37 -> 0 | L61: ='Cash Flow Statement'!L37 -> 0 | M61: ='Cash Flow Statement'!M37 -> 2476.01674 | N61: ='Cash Flow Statement'!N37 -> 0 | O61: ='Cash Flow Statement'!O37 -> 0 | P61: ='Cash Flow Statement'!P37 -> 0 | Q61: ='Cash Flow Statement'!Q37 -> 0 | R61: ='Cash Flow Statement'!R37 -> 3070.78649 | S61: ='Cash Flow Statement'!S37 -> 0 | U61: ='Cash Flow Statement'!J37
E62: Total | G62: =Currency -> US$'000 | J62: =SUM(J58:J61) -> 0 | K62: =SUM(K58:K61) -> 0 | L62: -5500 | M62: 2476.01674 | N62: -25.07405184 | O62: -17.3543546 | P62: -4.374823511 | Q62: -1.364242053e-12 | R62: 3070.78649 | S62: 0 | U62: =SUM(J58:J61)
E64: Cash flow available for cash sweep | G64: =Currency -> US$'000 | J64: =J54+J62 -> 0 | K64: =K54+K62 -> 0 | L64: 0 | M64: 2915.448689 | N64: 812.4866136 | O64: 836.399915 | P64: 874.0183928 | Q64: 1034.823606 | R64: 4031.828618 | S64: 3816.37193 | U64: =J54+J62
D66: Cash sweep
E68: Cash sweep | G68: =Currency -> US$'000 | J68: ='Cash Flow Statement'!J43 -> 0 | K68: ='Cash Flow Statement'!K43 -> 0 | L68: ='Cash Flow Statement'!L43 -> 0 | M68: ='Cash Flow Statement'!M43 -> 0 | N68: ='Cash Flow Statement'!N43 -> 0 | O68: ='Cash Flow Statement'!O43 -> 0 | P68: ='Cash Flow Statement'!P43 -> 0 | Q68: ='Cash Flow Statement'!Q43 -> 0 | R68: ='Cash Flow Statement'!R43 -> 0 | S68: ='Cash Flow Statement'!S43 -> 0 | U68: ='Cash Flow Statement'!J43
E70: Cash flow before working capital facility | G70: =Currency -> US$'000 | J70: =J64+J68 -> 0 | K70: =K64+K68 -> 0 | L70: 0 | M70: 2915.448689 | N70: 812.4866136 | O70: 836.399915 | P70: 874.0183928 | Q70: 1034.823606 | R70: 4031.828618 | S70: 3816.37193 | U70: =J64+J68
D72: =Operations!D391 -> Working capital facility
E74: =Operations!E411 -> Drawdowns | G74: =Currency -> US$'000 | J74: ='Cash Flow Statement'!J39 -> 0 | K74: ='Cash Flow Statement'!K39 -> 0 | L74: ='Cash Flow Statement'!L39 -> 0 | M74: ='Cash Flow Statement'!M39 -> 0 | N74: ='Cash Flow Statement'!N39 -> 0 | O74: ='Cash Flow Statement'!O39 -> 0 | P74: ='Cash Flow Statement'!P39 -> 0 | Q74: ='Cash Flow Statement'!Q39 -> 0 | R74: ='Cash Flow Statement'!R39 -> 0 | S74: ='Cash Flow Statement'!S39 -> 0 | U74: ='Cash Flow Statement'!J39
E75: =Operations!E413 -> Facility Repayments | G75: =Currency -> US$'000 | J75: ='Cash Flow Statement'!J40 -> 0 | K75: ='Cash Flow Statement'!K40 -> 0 | L75: ='Cash Flow Statement'!L40 -> 0 | M75: ='Cash Flow Statement'!M40 -> 0 | N75: ='Cash Flow Statement'!N40 -> 0 | O75: ='Cash Flow Statement'!O40 -> 0 | P75: ='Cash Flow Statement'!P40 -> 0 | Q75: ='Cash Flow Statement'!Q40 -> 0 | R75: ='Cash Flow Statement'!R40 -> 0 | S75: ='Cash Flow Statement'!S40 -> 0 | U75: ='Cash Flow Statement'!J40
E76: Total | G76: =Currency -> US$'000 | J76: =SUM(J74:J75) -> 0 | K76: =SUM(K74:K75) -> 0 | L76: 0 | M76: 0 | N76: 0 | O76: 0 | P76: 0 | Q76: 0 | R76: 0 | S76: 0 | U76: =SUM(J74:J75)
E78: Cash flow available for convertible debt apportionment | G78: =Currency -> US$'000 | J78: =J70+J76 -> 0 | K78: =K70+K76 -> 0 | L78: 0 | M78: 2915.448689 | N78: 812.4866136 | O78: 836.399915 | P78: 874.0183928 | Q78: 1034.823606 | R78: 4031.828618 | S78: 3816.37193 | U78: =J70+J76
D80: Convertible debt
E82: Interest paid | G82: =Currency -> US$'000 | J82: ='Cash Flow Statement'!J45 -> 0 | K82: ='Cash Flow Statement'!K45 -> 0 | L82: ='Cash Flow Statement'!L45 -> 0 | M82: ='Cash Flow Statement'!M45 -> -220.026 | N82: ='Cash Flow Statement'!N45 -> -167.9044761 | O82: ='Cash Flow Statement'!O45 -> -169.2920904 | P82: ='Cash Flow Statement'!P45 -> -162.9935299 | Q82: ='Cash Flow Statement'!Q45 -> -142.901587 | R82: ='Cash Flow Statement'!R45 -> 0 | S82: ='Cash Flow Statement'!S45 -> 0 | U82: ='Cash Flow Statement'!J45
E83: Principal repayments | G83: =Currency -> US$'000 | J83: ='Cash Flow Statement'!J46 -> 0 | K83: ='Cash Flow Statement'!K46 -> 0 | L83: ='Cash Flow Statement'!L46 -> 0 | M83: ='Cash Flow Statement'!M46 -> -2695.422689 | N83: ='Cash Flow Statement'!N46 -> -644.5821376 | O83: ='Cash Flow Statement'!O46 -> -667.1078246 | P83: ='Cash Flow Statement'!P46 -> -711.024863 | Q83: ='Cash Flow Statement'!Q46 -> -891.922019 | R83: ='Cash Flow Statement'!R46 -> 0 | S83: ='Cash Flow Statement'!S46 -> 0 | U83: ='Cash Flow Statement'!J46
E84: Total | G84: =Currency -> US$'000 | J84: =SUM(J82:J83) -> 0 | K84: 0 | L84: 0 | M84: -2915.448689 | N84: -812.4866136 | O84: -836.399915 | P84: -874.0183928 | Q84: -1034.823606 | R84: 0 | S84: 0 | U84: =IFERROR(_xlfn.FORMULATEXT(J84),"") -> =SUM(J82:J83)
E86: Cash flow available for equity | G86: =Currency -> US$'000 | J86: =J78+J84 -> 0 | K86: 0 | L86: 0 | M86: 0 | N86: 0 | O86: 0 | P86: 0 | Q86: 0 | R86: 4031.828618 | S86: 3816.37193 | U86: =J78+J84
D88: Equity
E90: Dividends Paid | G90: =Currency -> US$'000 | J90: ='Cash Flow Statement'!J48 -> 0 | K90: ='Cash Flow Statement'!K48 -> 0 | L90: ='Cash Flow Statement'!L48 -> 0 | M90: ='Cash Flow Statement'!M48 -> 0 | N90: ='Cash Flow Statement'!N48 -> 0 | O90: ='Cash Flow Statement'!O48 -> 0 | P90: ='Cash Flow Statement'!P48 -> 0 | Q90: ='Cash Flow Statement'!Q48 -> 0 | R90: ='Cash Flow Statement'!R48 -> -950.9531368 | S90: ='Cash Flow Statement'!S48 -> -1062.210503 | U90: ='Cash Flow Statement'!J48
E92: Net Cash Flow | G92: =Currency -> US$'000 | J92: =J86+J90 -> 0 | K92: =K86+K90 -> 0 | L92: 0 | M92: 0 | N92: 0 | O92: 0 | P92: 0 | Q92: 0 | R92: 3080.875481 | S92: 2754.161427 | U92: =J86+J90
C95: ='Cash Flow Statement'!C15 -> Direct Cash Flow Statement
D97: ='Cash Flow Statement'!D51 -> Net increase / (decrease) in cash held | J97: ='Cash Flow Statement'!J51 -> 0 | K97: ='Cash Flow Statement'!K51 -> 0 | L97: ='Cash Flow Statement'!L51 -> 0 | M97: ='Cash Flow Statement'!M51 -> 0 | N97: ='Cash Flow Statement'!N51 -> 0 | O97: ='Cash Flow Statement'!O51 -> 0 | P97: ='Cash Flow Statement'!P51 -> 0 | Q97: ='Cash Flow Statement'!Q51 -> 0 | R97: ='Cash Flow Statement'!R51 -> 3080.875481 | S97: ='Cash Flow Statement'!S51 -> 2754.161427 | U97: ='Cash Flow Statement'!J51
E100: Reconciliation Check | G100: =Boolean -> [1,0] | I100: =MAX(J100:S100) -> 0 | J100: =(ROUND(J92-J97,Rounding_Accuracy)<>0)*1 -> 0 | K100: 0 | L100: 0 | M100: 0 | N100: 0 | O100: 0 | P100: 0 | Q100: 0 | R100: 0 | S100: 0 | U100: =(ROUND(J92-J97,Rounding_Accuracy)<>0)*1

Sheet Lookup
A1: =IF(ISERROR(RIGHT(CELL("filename",A1),LEN(CELL("filename",A1))-FIND("]",CELL("filename",A1)))), "", RIGHT(CELL("filename",A1),LEN(CELL("filename",A1))-FIND("]",CELL("filename",A1)))) -> Lookup
A2: =Model_Name -> Model 13 - Equity Completed.xlsm
A3: Navigator
B4: Error Checks: | F4: =Overall_Error_Check -> 0
B6: =MAX($B$5:$B5)+1 -> 1 | C6: =A1&" Assumptions" -> Lookup Assumptions
C8: Year Lookups
D10: LU_Future_Years | F10: LU_Future_Years
D11: =OFFSET(Timing!$J$7,,ROWS($C$11:$C11)) -> 2025-06-30 | G11: =IFERROR(_xlfn.FORMULATEXT(D11),"") -> =OFFSET(Timing!$J$7,,ROWS($C$11:$C11))
D12: =OFFSET(Timing!$J$7,,ROWS($C$11:$C12)) -> 2026-06-30 | G12: =IFERROR(_xlfn.FORMULATEXT(D12),"") -> =OFFSET(Timing!$J$7,,ROWS($C$11:$C12))
D13: =OFFSET(Timing!$J$7,,ROWS($C$11:$C13)) -> 2027-06-30 | G13: =OFFSET(Timing!$J$7,,ROWS($C$11:$C13))
D14: =OFFSET(Timing!$J$7,,ROWS($C$11:$C14)) -> 2028-06-30 | G14: =OFFSET(Timing!$J$7,,ROWS($C$11:$C14))
D15: =OFFSET(Timing!$J$7,,ROWS($C$11:$C15)) -> 2029-06-30 | G15: =OFFSET(Timing!$J$7,,ROWS($C$11:$C15))
D16: =OFFSET(Timing!$J$7,,ROWS($C$11:$C16)) -> 2030-06-30 | G16: =OFFSET(Timing!$J$7,,ROWS($C$11:$C16))
D17: =OFFSET(Timing!$J$7,,ROWS($C$11:$C17)) -> 2031-06-30 | G17: =OFFSET(Timing!$J$7,,ROWS($C$11:$C17))
D18: =OFFSET(Timing!$J$7,,ROWS($C$11:$C18)) -> 2032-06-30 | G18: =OFFSET(Timing!$J$7,,ROWS($C$11:$C18))
D19: =OFFSET(Timing!$J$7,,ROWS($C$11:$C19)) -> 2033-06-30 | G19: =OFFSET(Timing!$J$7,,ROWS($C$11:$C19))
D20: Actuals Throughout | F20: Actuals_Throughout
C23: Debt lookups
D25: LU_Repayment | F25: LU_Repayment
D26: Annuity | F26: Annuity
D27: DSCR Sculpted | F27: DSCR_Sculpted
C30: Generation profile lookups
D32: LU_Gen_Profiles | F32: LU_Gen_Profiles
D33: P10
D34: P50
D35: P90
C38: Timing of Discount Rates
D40: LU_Timing | F40: LU_Timing
D41: Start | F41: Start
D42: Middle | F42: Middle
D43: End | F43: End
C46: Yes or No
D48: LU_Yes_or_No | F48: LU_Yes_or_No
D49: Yes | F49: Yes
D50: No | F50: No

Sheet Error Checks
A1: =IF(ISERROR(RIGHT(CELL("filename",A1),LEN(CELL("filename",A1))-FIND("]",CELL("filename",A1)))), "", RIGHT(CELL("filename",A1),LEN(CELL("filename",A1))-FIND("]",CELL("filename",A1)))) -> Error Checks
A2: =Model_Name -> Model 13 - Equity Completed.xlsm
A3: Navigator
B4: Error Checks: | F4: =Overall_Error_Check -> 0
B6: =MAX($B$5:$B5)+1 -> 1 | C6: Error Checks
C8: Summary of Errors
D10: Assumptions
E12: Balance Sheet has no errors | I12: =HL_BS_Errors -> 0
E13: Balance Sheet balances | I13: =HL_BS_Balance -> 0
E14: Insolvency Check for Balance Sheet | I14: =HL_BS_Insolvency -> 0
E15: Opening Balance Sheet has no errors | I15: =HL_Op_BS_Errors -> 0
E16: Opening Balance Sheet balances | I16: =HL_Op_BS_Balance -> 0
E17: Insolvency Check for Opening Balance Sheet | I17: =HL_Op_BS_Insolvency -> 0
E18: Cash Flow Statement has no errors
E19: Cash Flow Statement reconciles
E20: Cash Flow Waterfall reconciles | I20: =HL_Cash_Flow_Waterfall_Rec_Check -> 0
E21: Construction sources and uses of funds reconciles
E22: Operations sources and uses of funds reconciles
E23: DSRA balance is met | I23: =HL_DSRA_Bal -> 0
E24: DSRA is solved | I24: =HL_DSRA_Solved -> 0
E28: =C8 -> Summary of Errors | I28: =MIN(1,SUM(I11:I27)) -> 0

Sheet Change Log
A1: =IF(ISERROR(RIGHT(CELL("filename",A1),LEN(CELL("filename",A1))-FIND("]",CELL("filename",A1)))), "", RIGHT(CELL("filename",A1),LEN(CELL("filename",A1))-FIND("]",CELL("filename",A1)))) -> Change Log
A2: =Model_Name -> Model 13 - Equity Completed.xlsm
A3: Navigator
B4: Error Checks: | F4: =Overall_Error_Check -> 0
B6: =MAX($B$5:$B5)+1 -> 1 | C6: =A1 -> Change Log
C8: Summary
F10: Date | G10: Model Version | H10: Details of change | I10: Worksheet Reference | J10: Row, column, cell reference | K10: Author
F11: 2013-05-21 | G11: Untitled attachment 00059.xlsm | H11: I changed it | I11: Change Log | J11: F11 | K11: LB
F12: 2013-05-21 | G12: Untitled attachment 00059.xlsm | H12: So did I. | I12: Timing | J12: A4 | K12: LB
F13: 2013-05-21 | G13: Untitled attachment 00059.xlsm | H13: And me. | I13: Navigator | J13: B9 | K13: Dave
